Workbook

Sheet Main
B10: 2019-11-15
B12: Sheet No. | C12: Template Name | D12: Summary
B13: 1 | C13: Future Intra | D13: For Intraday trading in F&O segment
B14: 2 | C14: Cash Intra | D14: For Intraday trading in cash market segment
B15: 3 | C15: Mid-cap Intra | D15: For Intraday trading in Mid-cap stocks
B16: 4 | C16: Bulk Deals | D16: Reveals Bulk Deals carried on NSE & BSE
B17: 5 | C17: Call Tracker
K27: `

Sheet Future Intra
M5: Back to Main Page
A6: FOR INTRA DAY TRADING | L6: =Main!B10 -> 2019-11-15
A9: Sr.no | B9: Sector | C9: Scrip | D9: CLOSE RATE | E9: Pivot Point | F9: Supports | I9: Resistances
B10: Sector | D10: Point | E10: Point | F10: S1 | G10: S2 | H10: S3 | I10: R1 | J10: R2 | K10: R3 | L10: HIGH | M10: LOW | N10: OI | O10: % Change in OI
A11: 1 | B11: Index | C11: BANKNIFTY | D11: 30770.55 | E11: 30653.97 | F11: 30477.93 | G11: 30185.32 | H11: 30009.28 | I11: 30946.58 | J11: 31122.62 | K11: 31415.23 | L11: 30830 | M11: 30361.35 | N11: 1803600 | O11: 1.67%
A12: 2 | B12: Index | C12: NIFTY | D12: 11899.65 | E12: 11883.17 | F12: 11841.93 | G12: 11784.22 | H12: 11742.98 | I12: 11940.88 | J12: 11982.12 | K12: 12039.83 | L12: 11924.4 | M12: 11825.45 | N12: 16197825 | O12: -1.04%
A13: 3 | B13: Index | C13: NIFTYIT | D13: 15457.00 | E13: 15409.67 | F13: 15348.33 | G13: 15239.67 | H13: 15178.33 | I13: 15518.33 | J13: 15579.67 | K13: 15688.33 | L13: 15471 | M13: 15301 | N13: 8800 | O13: -14.98%
A14: 4 | B14: Cement | C14: ACC | D14: 1492.20 | E14: 1492.25 | F14: 1474.95 | G14: 1457.70 | H14: 1440.40 | I14: 1509.50 | J14: 1526.80 | K14: 1544.05 | L14: 1509.55 | M14: 1475 | N14: 2784000 | O14: -0.73%
A15: 5 | B15: Others | C15: ADANIENT | D15: 202.80 | E15: 200.40 | F15: 197.00 | G15: 191.20 | H15: 187.80 | I15: 206.20 | J15: 209.60 | K15: 215.40 | L15: 203.8 | M15: 194.6 | N15: 30916000 | O15: 0.34%
A16: 6 | B16: Others | C16: ADANIPORTS | D16: 370.40 | E16: 370.67 | F16: 366.93 | G16: 363.47 | H16: 359.73 | I16: 374.13 | J16: 377.87 | K16: 381.33 | L16: 374.4 | M16: 367.2 | N16: 18130000 | O16: 1.95%
A17: 7 | B17: Power | C17: ADANIPOWER | D17: 61.85 | E17: 61.73 | F17: 60.12 | G17: 58.38 | H17: 56.77 | I17: 63.47 | J17: 65.08 | K17: 66.82 | L17: 63.35 | M17: 60 | N17: 79860000 | O17: 3.47%
A18: 8 | B18: Automobile | C18: AMARAJABAT | D18: 742.95 | E18: 735.97 | F18: 727.03 | G18: 711.12 | H18: 702.18 | I18: 751.88 | J18: 760.82 | K18: 776.73 | L18: 744.9 | M18: 720.05 | N18: 1649400 | O18: -1.26%
A19: 9 | B19: Cement | C19: AMBUJACEM | D19: 200.50 | E19: 198.18 | F19: 195.62 | G19: 190.73 | H19: 188.17 | I19: 203.07 | J19: 205.63 | K19: 210.52 | L19: 200.75 | M19: 193.3 | N19: 18940000 | O19: -0.56%
A20: 10 | B20: Others | C20: APOLLOHOSP | D20: 1426.80 | E20: 1420.82 | F20: 1394.88 | G20: 1362.97 | H20: 1337.03 | I20: 1452.73 | J20: 1478.67 | K20: 1510.58 | L20: 1446.75 | M20: 1388.9 | N20: 1970000 | O20: 11.77%
A21: 11 | B21: Automobile | C21: APOLLOTYRE | D21: 162.70 | E21: 163.25 | F21: 161.10 | G21: 159.50 | H21: 157.35 | I21: 164.85 | J21: 167.00 | K21: 168.60 | L21: 165.4 | M21: 161.65 | N21: 10806000 | O21: -1.48%
A22: 12 | B22: Automobile | C22: ASHOKLEY | D22: 79.30 | E22: 78.97 | F22: 77.58 | G22: 75.87 | H22: 74.48 | I22: 80.68 | J22: 82.07 | K22: 83.78 | L22: 80.35 | M22: 77.25 | N22: 87750000 | O22: -4.00%
A23: 13 | B23: FMCG | C23: ASIANPAINT | D23: 1777.80 | E23: 1783.85 | F23: 1765.70 | G23: 1753.60 | H23: 1735.45 | I23: 1795.95 | J23: 1814.10 | K23: 1826.20 | L23: 1802 | M23: 1771.75 | N23: 7844400 | O23: 1.04%
A24: 14 | B24: Pharma | C24: AUROPHARMA | D24: 395.30 | E24: 399.10 | F24: 385.40 | G24: 375.50 | H24: 361.80 | I24: 409.00 | J24: 422.70 | K24: 432.60 | L24: 412.8 | M24: 389.2 | N24: 21006000 | O24: 7.36%
A25: 15 | B25: Banking | C25: AXISBANK | D25: 718.25 | E25: 716.38 | F25: 709.97 | G25: 701.68 | H25: 695.27 | I25: 724.67 | J25: 731.08 | K25: 739.37 | L25: 722.8 | M25: 708.1 | N25: 57470400 | O25: 0.08%
A26: 16 | B26: Automobile | C26: BAJAJ-AUTO | D26: 3243.45 | E26: 3233.93 | F26: 3213.77 | G26: 3184.08 | H26: 3163.92 | I26: 3263.62 | J26: 3283.78 | K26: 3313.47 | L26: 3254.1 | M26: 3204.25 | N26: 2267750 | O26: 1.28%
A27: 17 | B27: Finance | C27: BAJAJFINSV | D27: 9061.95 | E27: 9014.65 | F27: 8957.30 | G27: 8852.65 | H27: 8795.30 | I27: 9119.30 | J27: 9176.65 | K27: 9281.30 | L27: 9072 | M27: 8910 | N27: 1476500 | O27: 1.92%
A28: 18 | B28: Finance | C28: BAJFINANCE | D28: 4227.55 | E28: 4198.93 | F28: 4160.87 | G28: 4094.18 | H28: 4056.12 | I28: 4265.62 | J28: 4303.68 | K28: 4370.37 | L28: 4237 | M28: 4132.25 | N28: 7490750 | O28: 1.87%
A29: 19 | B29: Automobile | C29: BALKRISIND | D29: 814.85 | E29: 817.88 | F29: 803.77 | G29: 792.68 | H29: 778.57 | I29: 828.97 | J29: 843.08 | K29: 854.17 | L29: 832 | M29: 806.8 | N29: 2001600 | O29: 12.96%
A30: 20 | B30: Banking | C30: BANKBARODA | D30: 93.50 | E30: 92.88 | F30: 91.42 | G30: 89.33 | H30: 87.87 | I30: 94.97 | J30: 96.43 | K30: 98.52 | L30: 94.35 | M30: 90.8 | N30: 75327300 | O30: -2.09%
A31: 21 | B31: Banking | C31: BANKINDIA | D31: 66.35 | E31: 65.65 | F31: 64.40 | G31: 62.45 | H31: 61.20 | I31: 67.60 | J31: 68.85 | K31: 70.80 | L31: 66.9 | M31: 63.7 | N31: 20676000 | O31: -6.41%
A32: 22 | B32: FMCG | C32: BATAINDIA | D32: 1717.55 | E32: 1729.38 | F32: 1679.62 | G32: 1641.68 | H32: 1591.92 | I32: 1767.32 | J32: 1817.08 | K32: 1855.02 | L32: 1779.15 | M32: 1691.45 | N32: 2313300 | O32: -13.79%
A33: 23 | B33: Capital_Goods | C33: BEL | D33: 109.30 | E33: 109.67 | F33: 108.43 | G33: 107.57 | H33: 106.33 | I33: 110.53 | J33: 111.77 | K33: 112.63 | L33: 110.9 | M33: 108.8 | N33: 28254000 | O33: -0.78%
A34: 24 | B34: FMCG | C34: BERGEPAINT | D34: 479.50 | E34: 480.25 | F34: 475.65 | G34: 471.80 | H34: 467.20 | I34: 484.10 | J34: 488.70 | K34: 492.55 | L34: 484.85 | M34: 476.4 | N34: 8309400 | O34: 0.45%
A35: 25 | B35: Automobile | C35: BHARATFORG | D35: 432.80 | E35: 429.27 | F35: 421.98 | G35: 411.17 | H35: 403.88 | I35: 440.08 | J35: 447.37 | K35: 458.18 | L35: 436.55 | M35: 418.45 | N35: 8298000 | O35: 3.35%
A36: 26 | B36: Telecom | C36: BHARTIARTL | D36: 364.00 | E36: 361.20 | F36: 354.40 | G36: 344.80 | H36: 338.00 | I36: 370.80 | J36: 377.60 | K36: 387.20 | L36: 368 | M36: 351.6 | N36: 34137993 | O36: 12.13%
A37: 27 | B37: Capital_Goods | C37: BHEL | D37: 53.95 | E37: 54.18 | F37: 53.02 | G37: 52.08 | H37: 50.92 | I37: 55.12 | J37: 56.28 | K37: 57.22 | L37: 55.35 | M37: 53.25 | N37: 58139000 | O37: 2.63%
A38: 28 | B38: Pharma | C38: BIOCON | D38: 255.35 | E38: 254.72 | F38: 250.93 | G38: 246.52 | H38: 242.73 | I38: 259.13 | J38: 262.92 | K38: 267.33 | L38: 258.5 | M38: 250.3 | N38: 10931200 | O38: -2.51%
A39: 29 | B39: Automobile | C39: BOSCHLTD | D39: 15216.40 | E39: 15187.68 | F39: 15078.72 | G39: 14941.03 | H39: 14832.07 | I39: 15325.37 | J39: 15434.33 | K39: 15572.02 | L39: 15296.65 | M39: 15050 | N39: 149460 | O39: 0.26%
A40: 30 | B40: Oil_Gas | C40: BPCL | D40: 516.55 | E40: 513.82 | F40: 506.83 | G40: 497.12 | H40: 490.13 | I40: 523.53 | J40: 530.52 | K40: 540.23 | L40: 520.8 | M40: 504.1 | N40: 22854600 | O40: -1.90%
A41: 31 | B41: FMCG | C41: BRITANNIA | D41: 3242.70 | E41: 3243.85 | F41: 3207.85 | G41: 3173.00 | H41: 3137.00 | I41: 3278.70 | J41: 3314.70 | K41: 3349.55 | L41: 3279.85 | M41: 3209 | N41: 2077400 | O41: -3.13%
A42: 32 | B42: Pharma | C42: CADILAHC | D42: 234.50 | E42: 229.55 | F42: 223.45 | G42: 212.40 | H42: 206.30 | I42: 240.60 | J42: 246.70 | K42: 257.75 | L42: 235.65 | M42: 218.5 | N42: 8544800 | O42: -3.87%
A43: 33 | B43: Banking | C43: CANBK | D43: 200.50 | E43: 198.68 | F43: 195.47 | G43: 190.43 | H43: 187.22 | I43: 203.72 | J43: 206.93 | K43: 211.97 | L43: 201.9 | M43: 193.65 | N43: 13109000 | O43: 1.21%
A44: 34 | B44: Oil_Gas | C44: CASTROLIND | D44: 145.10 | E44: 145.08 | F44: 143.62 | G44: 142.13 | H44: 140.67 | I44: 146.57 | J44: 148.03 | K44: 149.52 | L44: 146.55 | M44: 143.6 | N44: 4749800 | O44: -2.65%
A45: 35 | B45: Textile | C45: CENTURYTEX | D45: 407.10 | E45: 401.20 | F45: 389.40 | G45: 371.70 | H45: 359.90 | I45: 418.90 | J45: 430.70 | K45: 448.40 | L45: 413 | M45: 383.5 | N45: 3110400 | O45: 4.68%
A46: 36 | B46: Power | C46: CESC | D46: 759.30 | E46: 757.35 | F46: 746.25 | G46: 733.20 | H46: 722.10 | I46: 770.40 | J46: 781.50 | K46: 794.55 | L46: 768.45 | M46: 744.3 | N46: 956000 | O46: -5.08%
A47: 37 | B47: Finance | C47: CHOLAFIN | D47: 308.00 | E47: 303.82 | F47: 297.88 | G47: 287.77 | H47: 281.83 | I47: 313.93 | J47: 319.87 | K47: 329.98 | L47: 309.75 | M47: 293.7 | N47: 4020000 | O47: 4.82%
A48: 38 | B48: Pharma | C48: CIPLA | D48: 452.25 | E48: 451.77 | F48: 444.53 | G48: 436.82 | H48: 429.58 | I48: 459.48 | J48: 466.72 | K48: 474.43 | L48: 459 | M48: 444.05 | N48: 13862600 | O48: 1.22%
A49: 39 | B49: Others | C49: COALINDIA | D49: 203.20 | E49: 204.75 | F49: 201.00 | G49: 198.80 | H49: 195.05 | I49: 206.95 | J49: 210.70 | K49: 212.90 | L49: 208.5 | M49: 202.55 | N49: 23295500 | O49: -0.70%
A50: 40 | B50: FMCG | C50: COLPAL | D50: 1547.60 | E50: 1549.68 | F50: 1539.37 | G50: 1531.13 | H50: 1520.82 | I50: 1557.92 | J50: 1568.23 | K50: 1576.47 | L50: 1560 | M50: 1541.45 | N50: 2762200 | O50: -0.68%
A51: 41 | B51: Others | C51: CONCOR | D51: 577.50 | E51: 578.77 | F51: 573.08 | G51: 568.67 | H51: 562.98 | I51: 583.18 | J51: 588.87 | K51: 593.28 | L51: 584.45 | M51: 574.35 | N51: 6189480 | O51: 3.10%
A52: 42 | B52: Capital_Goods | C52: CUMMINSIND | D52: 561.85 | E52: 560.52 | F52: 554.03 | G52: 546.22 | H52: 539.73 | I52: 568.33 | J52: 574.82 | K52: 582.63 | L52: 567 | M52: 552.7 | N52: 1797100 | O52: -1.50%
A53: 43 | B53: FMCG | C53: DABUR | D53: 464.00 | E53: 463.23 | F53: 457.47 | G53: 450.93 | H53: 445.17 | I53: 469.77 | J53: 475.53 | K53: 482.07 | L53: 469 | M53: 456.7 | N53: 11252500 | O53: 1.56%
A54: 44 | B54: Media | C54: DISHTV | D54: 13.50 | E54: 13.47 | F54: 12.73 | G54: 11.97 | H54: 11.23 | I54: 14.23 | J54: 14.97 | K54: 15.73 | L54: 14.2 | M54: 12.7 | N54: 93774900 | O54: 0.40%
A55: 45 | B55: Pharma | C55: DIVISLAB | D55: 1655.55 | E55: 1666.00 | F55: 1632.00 | G55: 1608.45 | H55: 1574.45 | I55: 1689.55 | J55: 1723.55 | K55: 1747.10 | L55: 1700 | M55: 1642.45 | N55: 2494000 | O55: 6.45%
A56: 46 | B56: Realty | C56: DLF | D56: 208.30 | E56: 206.73 | F56: 204.02 | G56: 199.73 | H56: 197.02 | I56: 211.02 | J56: 213.73 | K56: 218.02 | L56: 209.45 | M56: 202.45 | N56: 35098200 | O56: 0.30%
A57: 47 | B57: Pharma | C57: DRREDDY | D57: 2743.95 | E57: 2754.48 | F57: 2724.62 | G57: 2705.28 | H57: 2675.42 | I57: 2773.82 | J57: 2803.68 | K57: 2823.02 | L57: 2784.35 | M57: 2735.15 | N57: 3491250 | O57: 3.46%
A58: 48 | B58: Automobile | C58: EICHERMOT | D58: 21621.00 | E58: 21600.80 | F58: 21433.80 | G58: 21246.60 | H58: 21079.60 | I58: 21788.00 | J58: 21955.00 | K58: 22142.20 | L58: 21767.8 | M58: 21413.6 | N58: 290705 | O58: -0.83%
A59: 49 | B59: Finance | C59: EQUITAS | D59: 84.80 | E59: 84.67 | F59: 82.73 | G59: 80.67 | H59: 78.73 | I59: 86.73 | J59: 88.67 | K59: 90.73 | L59: 86.6 | M59: 82.6 | N59: 10324300 | O59: -0.89%
A60: 50 | B60: Automobile | C60: ESCORTS | D60: 651.90 | E60: 650.83 | F60: 644.82 | G60: 637.73 | H60: 631.72 | I60: 657.92 | J60: 663.93 | K60: 671.02 | L60: 656.85 | M60: 643.75 | N60: 4901600 | O60: 1.20%
A61: 51 | B61: Automobile | C61: EXIDEIND | D61: 189.35 | E61: 188.40 | F61: 186.80 | G61: 184.25 | H61: 182.65 | I61: 190.95 | J61: 192.55 | K61: 195.10 | L61: 190 | M61: 185.85 | N61: 10537000 | O61: -0.88%
A62: 52 | B62: Banking | C62: FEDERALBNK | D62: 84.55 | E62: 84.07 | F62: 82.73 | G62: 80.92 | H62: 79.58 | I62: 85.88 | J62: 87.22 | K62: 89.03 | L62: 85.4 | M62: 82.25 | N62: 59570000 | O62: -1.49%
A63: 53 | B63: Oil_Gas | C63: GAIL | D63: 122.40 | E63: 122.43 | F63: 119.87 | G63: 117.33 | H63: 114.77 | I63: 124.97 | J63: 127.53 | K63: 130.07 | L63: 125 | M63: 119.9 | N63: 52534566 | O63: 4.58%
A64: 54 | B64: Pharma | C64: GLENMARK | D64: 283.15 | E64: 279.07 | F64: 272.13 | G64: 261.12 | H64: 254.18 | I64: 290.08 | J64: 297.02 | K64: 308.03 | L64: 286 | M64: 268.05 | N64: 7535600 | O64: 8.72%
A65: 55 | B65: Infrastructure | C65: GMRINFRA | D65: 21.15 | E65: 21.07 | F65: 20.63 | G65: 20.12 | H65: 19.68 | I65: 21.58 | J65: 22.02 | K65: 22.53 | L65: 21.5 | M65: 20.55 | N65: 125685000 | O65: 0.65%
A66: 56 | B66: FMCG | C66: GODREJCP | D66: 718.20 | E66: 720.40 | F66: 713.45 | G66: 708.70 | H66: 701.75 | I66: 725.15 | J66: 732.10 | K66: 736.85 | L66: 727.35 | M66: 715.65 | N66: 4164000 | O66: -0.21%
A67: 57 | B67: Cement | C67: GRASIM | D67: 735.90 | E67: 736.82 | F67: 716.78 | G67: 697.67 | H67: 677.63 | I67: 755.93 | J67: 775.97 | K67: 795.08 | L67: 756.85 | M67: 717.7 | N67: 19863750 | O67: 0.28%
A68: 58 | B68: Others | C68: HAVELLS | D68: 674.15 | E68: 675.97 | F68: 668.28 | G68: 662.42 | H68: 654.73 | I68: 681.83 | J68: 689.52 | K68: 695.38 | L68: 683.65 | M68: 670.1 | N68: 5790000 | O68: 4.34%
A69: 59 | B69: Technology | C69: HCLTECH | D69: 1151.30 | E69: 1149.37 | F69: 1139.43 | G69: 1127.57 | H69: 1117.63 | I69: 1161.23 | J69: 1171.17 | K69: 1183.03 | L69: 1159.3 | M69: 1137.5 | N69: 11018700 | O69: 1.26%
A70: 60 | B70: Finance | C70: HDFC | D70: 2227.50 | E70: 2218.35 | F70: 2204.20 | G70: 2180.90 | H70: 2166.75 | I70: 2241.65 | J70: 2255.80 | K70: 2279.10 | L70: 2232.5 | M70: 2195.05 | N70: 33882250 | O70: 0.05%
A71: 61 | B71: Banking | C71: HDFCBANK | D71: 1274.25 | E71: 1269.68 | F71: 1262.67 | G71: 1251.08 | H71: 1244.07 | I71: 1281.27 | J71: 1288.28 | K71: 1299.87 | L71: 1276.7 | M71: 1258.1 | N71: 25464000 | O71: -0.56%
A72: 62 | B72: Automobile | C72: HEROMOTOCO | D72: 2598.85 | E72: 2598.03 | F72: 2580.92 | G72: 2562.98 | H72: 2545.87 | I72: 2615.97 | J72: 2633.08 | K72: 2651.02 | L72: 2615.15 | M72: 2580.1 | N72: 3355600 | O72: -0.03%
A73: 63 | B73: Technology | C73: HEXAWARE | D73: 334.70 | E73: 333.15 | F73: 330.70 | G73: 326.70 | H73: 324.25 | I73: 337.15 | J73: 339.60 | K73: 343.60 | L73: 335.6 | M73: 329.15 | N73: 1519500 | O73: -6.89%
A74: 64 | B74: Metals | C74: HINDALCO | D74: 189.05 | E74: 190.22 | F74: 187.18 | G74: 185.32 | H74: 182.28 | I74: 192.08 | J74: 195.12 | K74: 196.98 | L74: 193.25 | M74: 188.35 | N74: 28196000 | O74: 2.13%
A75: 65 | B75: Oil_Gas | C75: HINDPETRO | D75: 289.65 | E75: 289.32 | F75: 285.63 | G75: 281.62 | H75: 277.93 | I75: 293.33 | J75: 297.02 | K75: 301.03 | L75: 293 | M75: 285.3 | N75: 21548100 | O75: 2.16%
A76: 66 | B76: FMCG | C76: HINDUNILVR | D76: 2076.35 | E76: 2080.57 | F76: 2063.13 | G76: 2049.92 | H76: 2032.48 | I76: 2093.78 | J76: 2111.22 | K76: 2124.43 | L76: 2098 | M76: 2067.35 | N76: 9064800 | O76: 2.06%
A77: 67 | B77: Finance | C77: IBULHSGFIN | D77: 201.50 | E77: 204.83 | F77: 194.17 | G77: 186.83 | H77: 176.17 | I77: 212.17 | J77: 222.83 | K77: 230.17 | L77: 215.5 | M77: 197.5 | N77: 29632400 | O77: -0.24%
A78: 68 | B78: Banking | C78: ICICIBANK | D78: 497.80 | E78: 493.60 | F78: 488.40 | G78: 479.00 | H78: 473.80 | I78: 503.00 | J78: 508.20 | K78: 517.60 | L78: 498.8 | M78: 484.2 | N78: 79538250 | O78: 0.92%
A79: 69 | B79: Finance | C79: ICICIPRULI | D79: 522.70 | E79: 522.57 | F79: 516.63 | G79: 510.57 | H79: 504.63 | I79: 528.63 | J79: 534.57 | K79: 540.63 | L79: 528.5 | M79: 516.5 | N79: 7342500 | O79: -0.79%
A80: 70 | B80: Telecom | C80: IDEA | D80: 2.95 | E80: 3.10 | F80: 2.75 | G80: 2.55 | H80: 2.20 | I80: 3.30 | J80: 3.65 | K80: 3.85 | L80: 3.45 | M80: 2.9 | N80: 604282000 | O80: 0.33%
A81: 71 | B81: Banking | C81: IDFCFIRSTB | D81: 41.65 | E81: 41.43 | F81: 40.97 | G81: 40.28 | H81: 39.82 | I81: 42.12 | J81: 42.58 | K81: 43.27 | L81: 41.9 | M81: 40.75 | N81: 243228000 | O81: 1.80%
A82: 72 | B82: Oil_Gas | C82: IGL | D82: 423.70 | E82: 421.95 | F82: 418.95 | G82: 414.20 | H82: 411.20 | I82: 426.70 | J82: 429.70 | K82: 434.45 | L82: 424.95 | M82: 417.2 | N82: 5896000 | O82: 7.04%
A83: 73 | B83: Others | C83: INDIGO | D83: 1517.20 | E83: 1502.83 | F83: 1478.82 | G83: 1440.43 | H83: 1416.42 | I83: 1541.22 | J83: 1565.23 | K83: 1603.62 | L83: 1526.85 | M83: 1464.45 | N83: 3171900 | O83: -1.10%
A84: 74 | B84: Banking | C84: INDUSINDBK | D84: 1379.45 | E84: 1379.15 | F84: 1357.95 | G84: 1336.45 | H84: 1315.25 | I84: 1400.65 | J84: 1421.85 | K84: 1443.35 | L84: 1400.35 | M84: 1357.65 | N84: 10689600 | O84: 0.40%
A85: 75 | B85: Telecom | C85: INFRATEL | D85: 203.85 | E85: 201.38 | F85: 196.67 | G85: 189.48 | H85: 184.77 | I85: 208.57 | J85: 213.28 | K85: 220.47 | L85: 206.1 | M85: 194.2 | N85: 14830000 | O85: 18.51%
A86: 76 | B86: Technology | C86: INFY | D86: 707.30 | E86: 705.18 | F86: 699.87 | G86: 692.43 | H86: 687.12 | I86: 712.62 | J86: 717.93 | K86: 725.37 | L86: 710.5 | M86: 697.75 | N86: 56880000 | O86: -2.15%
A87: 77 | B87: Oil_Gas | C87: IOC | D87: 137.10 | E87: 136.43 | F87: 132.32 | G87: 127.53 | H87: 123.42 | I87: 141.22 | J87: 145.33 | K87: 150.12 | L87: 140.55 | M87: 131.65 | N87: 33167500 | O87: 7.20%
A88: 78 | B88: FMCG | C88: ITC | D88: 254.80 | E88: 255.10 | F88: 253.40 | G88: 252.00 | H88: 250.30 | I88: 256.50 | J88: 258.20 | K88: 259.60 | L88: 256.8 | M88: 253.7 | N88: 100063200 | O88: 1.17%
A89: 79 | B89: Metals | C89: JINDALSTEL | D89: 140.20 | E89: 141.38 | F89: 137.97 | G89: 135.73 | H89: 132.32 | I89: 143.62 | J89: 147.03 | K89: 149.27 | L89: 144.8 | M89: 139.15 | N89: 40067200 | O89: -0.62%
A90: 80 | B90: Metals | C90: JSWSTEEL | D90: 246.65 | E90: 247.12 | F90: 244.38 | G90: 242.12 | H90: 239.38 | I90: 249.38 | J90: 252.12 | K90: 254.38 | L90: 249.85 | M90: 244.85 | N90: 52460300 | O90: -0.78%
A91: 81 | B91: Others | C91: JUBLFOOD | D91: 1617.60 | E91: 1611.38 | F91: 1587.22 | G91: 1556.83 | H91: 1532.67 | I91: 1641.77 | J91: 1665.93 | K91: 1696.32 | L91: 1635.55 | M91: 1581 | N91: 2456000 | O91: 4.87%
A92: 82 | B92: Others | C92: JUSTDIAL | D92: 515.70 | E92: 514.13 | F92: 503.77 | G92: 491.83 | H92: 481.47 | I92: 526.07 | J92: 536.43 | K92: 548.37 | L92: 524.5 | M92: 502.2 | N92: 3815000 | O92: -8.28%
A93: 83 | B93: Banking | C93: KOTAKBANK | D93: 1601.15 | E93: 1600.72 | F93: 1588.53 | G93: 1575.92 | H93: 1563.73 | I93: 1613.33 | J93: 1625.52 | K93: 1638.13 | L93: 1612.9 | M93: 1588.1 | N93: 8270000 | O93: -1.88%
A94: 84 | B94: Finance | C94: L&TFH | D94: 96.25 | E94: 95.38 | F94: 94.17 | G94: 92.08 | H94: 90.87 | I94: 97.47 | J94: 98.68 | K94: 100.77 | L94: 96.6 | M94: 93.3 | N94: 34211100 | O94: 0.28%
A95: 85 | B95: Finance | C95: LICHSGFIN | D95: 421.85 | E95: 420.07 | F95: 415.38 | G95: 408.92 | H95: 404.23 | I95: 426.53 | J95: 431.22 | K95: 437.68 | L95: 424.75 | M95: 413.6 | N95: 9124100 | O95: -0.18%
A96: 86 | B96: Capital_Goods | C96: LT | D96: 1385.15 | E96: 1392.53 | F96: 1374.62 | G96: 1364.08 | H96: 1346.17 | I96: 1403.07 | J96: 1420.98 | K96: 1431.52 | L96: 1410.45 | M96: 1382 | N96: 13167375 | O96: 3.50%
A97: 87 | B97: Pharma | C97: LUPIN | D97: 740.50 | E97: 734.82 | F97: 727.18 | G97: 713.87 | H97: 706.23 | I97: 748.13 | J97: 755.77 | K97: 769.08 | L97: 742.45 | M97: 721.5 | N97: 7995400 | O97: -3.51%
A98: 88 | B98: Automobile | C98: M&M | D98: 578.60 | E98: 575.42 | F98: 571.18 | G98: 563.77 | H98: 559.53 | I98: 582.83 | J98: 587.07 | K98: 594.48 | L98: 579.65 | M98: 568 | N98: 21615000 | O98: -0.21%
A99: 89 | B99: Finance | C99: M&MFIN | D99: 328.55 | E99: 326.52 | F99: 323.38 | G99: 318.22 | H99: 315.08 | I99: 331.68 | J99: 334.82 | K99: 339.98 | L99: 329.65 | M99: 321.35 | N99: 12681250 | O99: 0.10%
A100: 90 | B100: Finance | C100: MANAPPURAM | D100: 163.05 | E100: 162.33 | F100: 160.27 | G100: 157.48 | H100: 155.42 | I100: 165.12 | J100: 167.18 | K100: 169.97 | L100: 164.4 | M100: 159.55 | N100: 15624000 | O100: 0.31%
A101: 91 | B101: FMCG | C101: MARICO | D101: 357.85 | E101: 360.03 | F101: 353.02 | G101: 348.18 | H101: 341.17 | I101: 364.87 | J101: 371.88 | K101: 376.72 | L101: 367.05 | M101: 355.2 | N101: 11052600 | O101: 3.89%
A102: 92 | B102: Automobile | C102: MARUTI | D102: 7271.50 | E102: 7248.35 | F102: 7204.20 | G102: 7136.90 | H102: 7092.75 | I102: 7315.65 | J102: 7359.80 | K102: 7427.10 | L102: 7292.5 | M102: 7181.05 | N102: 2724625 | O102: 1.59%
A103: 93 | B103: FMCG | C103: MCDOWELL-N | D103: 620.30 | E103: 619.45 | F103: 614.85 | G103: 609.40 | H103: 604.80 | I103: 624.90 | J103: 629.50 | K103: 634.95 | L103: 624.05 | M103: 614 | N103: 10581250 | O103: 2.22%
A104: 94 | B104: Finance | C104: MFSL | D104: 479.75 | E104: 478.82 | F104: 469.03 | G104: 458.32 | H104: 448.53 | I104: 489.53 | J104: 499.32 | K104: 510.03 | L104: 488.6 | M104: 468.1 | N104: 5580200 | O104: 2.95%
A105: 95 | B105: Oil_Gas | C105: MGL | D105: 1033.85 | E105: 1030.18 | F105: 1016.37 | G105: 998.88 | H105: 985.07 | I105: 1047.67 | J105: 1061.48 | K105: 1078.97 | L105: 1044 | M105: 1012.7 | N105: 2391000 | O105: 17.97%
A106: 96 | B106: Technology | C106: MINDTREE | D106: 691.65 | E106: 687.40 | F106: 680.25 | G106: 668.85 | H106: 661.70 | I106: 698.80 | J106: 705.95 | K106: 717.35 | L106: 694.55 | M106: 676 | N106: 1464000 | O106: 0.21%
A107: 97 | B107: Automobile | C107: MOTHERSUMI | D107: 136.65 | E107: 136.07 | F107: 134.18 | G107: 131.72 | H107: 129.83 | I107: 138.53 | J107: 140.42 | K107: 142.88 | L107: 137.95 | M107: 133.6 | N107: 31091500 | O107: 0.42%
A108: 98 | B108: Automobile | C108: MRF | D108: 63534.70 | E108: 63299.40 | F108: 62962.25 | G108: 62389.80 | H108: 62052.65 | I108: 63871.85 | J108: 64209.00 | K108: 64781.45 | L108: 63636.55 | M108: 62726.95 | N108: 18700 | O108: -1.11%
A109: 99 | B109: Finance | C109: MUTHOOTFIN | D109: 713.75 | E109: 699.23 | F109: 679.82 | G109: 645.88 | H109: 626.47 | I109: 733.17 | J109: 752.58 | K109: 786.52 | L109: 718.65 | M109: 665.3 | N109: 3477000 | O109: 26.60%
A110: 100 | B110: Metals | C110: NATIONALUM | D110: 41.40 | E110: 41.37 | F110: 40.53 | G110: 39.67 | H110: 38.83 | I110: 42.23 | J110: 43.07 | K110: 43.93 | L110: 42.2 | M110: 40.5 | N110: 54458000 | O110: 7.52%
A111: 101 | B111: Infrastructure | C111: NBCC | D111: 37.40 | E111: 37.80 | F111: 36.50 | G111: 35.60 | H111: 34.30 | I111: 38.70 | J111: 40.00 | K111: 40.90 | L111: 39.1 | M111: 36.9 | N111: 37166700 | O111: 2.60%
A112: 102 | B112: Infrastructure | C112: NCC | D112: 54.70 | E112: 55.13 | F112: 53.62 | G112: 52.53 | H112: 51.02 | I112: 56.22 | J112: 57.73 | K112: 58.82 | L112: 56.65 | M112: 54.05 | N112: 43452000 | O112: 0.75%
A113: 103 | B113: FMCG | C113: NESTLEIND | D113: 14264.60 | E113: 14234.57 | F113: 14159.53 | G113: 14054.47 | H113: 13979.43 | I113: 14339.63 | J113: 14414.67 | K113: 14519.73 | L113: 14309.6 | M113: 14129.5 | N113: 484050 | O113: 0.97%
A114: 104 | B114: Technology | C114: NIITTECH | D114: 1510.95 | E114: 1499.12 | F114: 1483.08 | G114: 1455.22 | H114: 1439.18 | I114: 1526.98 | J114: 1543.02 | K114: 1570.88 | L114: 1515.15 | M114: 1471.25 | N114: 581625 | O114: 1.97%
A115: 105 | B115: Metals | C115: NMDC | D115: 98.85 | E115: 99.98 | F115: 96.97 | G115: 95.08 | H115: 92.07 | I115: 101.87 | J115: 104.88 | K115: 106.77 | L115: 103 | M115: 98.1 | N115: 22098000 | O115: -2.39%
A116: 106 | B116: Power | C116: NTPC | D116: 118.55 | E116: 118.45 | F116: 117.80 | G116: 117.05 | H116: 116.40 | I116: 119.20 | J116: 119.85 | K116: 120.60 | L116: 119.1 | M116: 117.7 | N116: 48969600 | O116: -0.66%
A117: 107 | B117: Oil_Gas | C117: OIL | D117: 160.25 | E117: 160.48 | F117: 158.02 | G117: 155.78 | H117: 153.32 | I117: 162.72 | J117: 165.18 | K117: 167.42 | L117: 162.95 | M117: 158.25 | N117: 9068532 | O117: 0.30%
A118: 108 | B118: Oil_Gas | C118: ONGC | D118: 136.40 | E118: 137.02 | F118: 134.98 | G118: 133.57 | H118: 131.53 | I118: 138.43 | J118: 140.47 | K118: 141.88 | L118: 139.05 | M118: 135.6 | N118: 21002650 | O118: 3.44%
A119: 109 | B119: Textile | C119: PAGEIND | D119: 23617.15 | E119: 23693.10 | F119: 23302.35 | G119: 22987.55 | H119: 22596.80 | I119: 24007.90 | J119: 24398.65 | K119: 24713.45 | L119: 24083.85 | M119: 23378.3 | N119: 175650 | O119: 3.52%
A120: 110 | B120: Pharma | C120: PEL | D120: 1756.05 | E120: 1761.30 | F120: 1729.75 | G120: 1703.45 | H120: 1671.90 | I120: 1787.60 | J120: 1819.15 | K120: 1845.45 | L120: 1792.85 | M120: 1735 | N120: 4507350 | O120: -2.14%
A121: 111 | B121: Oil_Gas | C121: PETRONET | D121: 277.40 | E121: 278.68 | F121: 274.52 | G121: 271.63 | H121: 267.47 | I121: 281.57 | J121: 285.73 | K121: 288.62 | L121: 282.85 | M121: 275.8 | N121: 20259000 | O121: 5.38%
A122: 112 | B122: Finance | C122: PFC | D122: 112.00 | E122: 111.02 | F122: 109.28 | G122: 106.57 | H122: 104.83 | I122: 113.73 | J122: 115.47 | K122: 118.18 | L122: 112.75 | M122: 108.3 | N122: 28898200 | O122: -0.89%
A123: 113 | B123: FMCG | C123: PIDILITIND | D123: 1343.15 | E123: 1336.42 | F123: 1318.88 | G123: 1294.62 | H123: 1277.08 | I123: 1360.68 | J123: 1378.22 | K123: 1402.48 | L123: 1353.95 | M123: 1312.15 | N123: 3727000 | O123: -6.20%
A124: 114 | B124: Banking | C124: PNB | D124: 60.50 | E124: 60.18 | F124: 59.22 | G124: 57.93 | H124: 56.97 | I124: 61.47 | J124: 62.43 | K124: 63.72 | L124: 61.15 | M124: 58.9 | N124: 110297900 | O124: -0.23%
A125: 115 | B125: Power | C125: POWERGRID | D125: 188.60 | E125: 188.77 | F125: 187.53 | G125: 186.47 | H125: 185.23 | I125: 189.83 | J125: 191.07 | K125: 192.13 | L125: 190 | M125: 187.7 | N125: 36340000 | O125: 2.30%
A126: 116 | B126: Media | C126: PVR | D126: 1756.05 | E126: 1745.78 | F126: 1733.07 | G126: 1710.08 | H126: 1697.37 | I126: 1768.77 | J126: 1781.48 | K126: 1804.47 | L126: 1758.5 | M126: 1722.8 | N126: 1311200 | O126: 1.64%
A127: 117 | B127: Cement | C127: RAMCOCEM | D127: 784.35 | E127: 784.55 | F127: 772.60 | G127: 760.85 | H127: 748.90 | I127: 796.30 | J127: 808.25 | K127: 820.00 | L127: 796.5 | M127: 772.8 | N127: 1077600 | O127: 2.05%
A128: 118 | B128: Banking | C128: RBLBANK | D128: 319.25 | E128: 323.10 | F128: 311.25 | G128: 303.25 | H128: 291.40 | I128: 331.10 | J128: 342.95 | K128: 350.95 | L128: 334.95 | M128: 315.1 | N128: 13763700 | O128: 5.13%
A129: 119 | B129: Power | C129: RECLTD | D129: 135.60 | E129: 136.02 | F129: 133.63 | G129: 131.67 | H129: 129.28 | I129: 137.98 | J129: 140.37 | K129: 142.33 | L129: 138.4 | M129: 134.05 | N129: 21132000 | O129: 6.50%
A130: 120 | B130: Oil_Gas | C130: RELIANCE | D130: 1464.00 | E130: 1468.83 | F130: 1455.67 | G130: 1447.33 | H130: 1434.17 | I130: 1477.17 | J130: 1490.33 | K130: 1498.67 | L130: 1482 | M130: 1460.5 | N130: 50081500 | O130: -0.11%
A131: 121 | B131: Metals | C131: SAIL | D131: 37.40 | E131: 37.55 | F131: 36.75 | G131: 36.10 | H131: 35.30 | I131: 38.20 | J131: 39.00 | K131: 39.65 | L131: 38.35 | M131: 36.9 | N131: 88377300 | O131: 6.44%
A132: 122 | B132: Banking | C132: SBIN | D132: 307.10 | E132: 306.02 | F132: 301.73 | G132: 296.37 | H132: 292.08 | I132: 311.38 | J132: 315.67 | K132: 321.03 | L132: 310.3 | M132: 300.65 | N132: 92592000 | O132: 3.92%
A133: 123 | B133: Cement | C133: SHREECEM | D133: 19727.45 | E133: 19762.65 | F133: 19573.80 | G133: 19420.15 | H133: 19231.30 | I133: 19916.30 | J133: 20105.15 | K133: 20258.80 | L133: 19951.5 | M133: 19609 | N133: 151950 | O133: 0.90%
A134: 124 | B134: Capital_Goods | C134: SIEMENS | D134: 1613.10 | E134: 1623.32 | F134: 1597.83 | G134: 1582.57 | H134: 1557.08 | I134: 1638.58 | J134: 1664.07 | K134: 1679.33 | L134: 1648.8 | M134: 1608.05 | N134: 1736900 | O134: 6.47%
A135: 125 | B135: Textile | C135: SRF | D135: 3171.95 | E135: 3166.43 | F135: 3136.57 | G135: 3101.18 | H135: 3071.32 | I135: 3201.82 | J135: 3231.68 | K135: 3267.07 | L135: 3196.3 | M135: 3131.05 | N135: 920000 | O135: 2.59%
A136: 126 | B136: Finance | C136: SRTRANSFIN | D136: 1138.15 | E136: 1130.55 | F136: 1119.15 | G136: 1100.15 | H136: 1088.75 | I136: 1149.55 | J136: 1160.95 | K136: 1179.95 | L136: 1141.95 | M136: 1111.55 | N136: 4086000 | O136: -1.20%
A137: 127 | B137: Pharma | C137: SUNPHARMA | D137: 411.40 | E137: 412.68 | F137: 407.02 | G137: 402.63 | H137: 396.97 | I137: 417.07 | J137: 422.73 | K137: 427.12 | L137: 418.35 | M137: 408.3 | N137: 63740100 | O137: 0.90%
A138: 128 | B138: Media | C138: SUNTV | D138: 488.70 | E138: 484.20 | F138: 474.65 | G138: 460.60 | H138: 451.05 | I138: 498.25 | J138: 507.80 | K138: 521.85 | L138: 493.75 | M138: 470.15 | N138: 3328200 | O138: -8.08%
A139: 129 | B139: Fertilisers | C139: TATACHEM | D139: 633.05 | E139: 631.80 | F139: 626.35 | G139: 619.65 | H139: 614.20 | I139: 638.50 | J139: 643.95 | K139: 650.65 | L139: 637.25 | M139: 625.1 | N139: 2284200 | O139: -4.37%
A140: 130 | B140: Technology | C140: TATAELXSI | D140: 793.95 | E140: 792.80 | F140: 787.20 | G140: 780.45 | H140: 774.85 | I140: 799.55 | J140: 805.15 | K140: 811.90 | L140: 798.4 | M140: 786.05 | N140: 996000 | O140: -2.24%
A141: 131 | B141: FMCG | C141: TATAGLOBAL | D141: 295.60 | E141: 292.90 | F141: 288.85 | G141: 282.10 | H141: 278.05 | I141: 299.65 | J141: 303.70 | K141: 310.45 | L141: 296.95 | M141: 286.15 | N141: 14096700 | O141: 0.56%
A142: 132 | B142: Automobile | C142: TATAMOTORS | D142: 167.65 | E142: 167.92 | F142: 165.33 | G142: 163.02 | H142: 160.43 | I142: 170.23 | J142: 172.82 | K142: 175.13 | L142: 170.5 | M142: 165.6 | N142: 57561000 | O142: -0.50%
A143: 133 | B143: Automobile | C143: TATAMTRDVR | D143: 76.95 | E143: 77.10 | F143: 75.85 | G143: 74.75 | H143: 73.50 | I143: 78.20 | J143: 79.45 | K143: 80.55 | L143: 78.35 | M143: 76 | N143: 36045200 | O143: 1.09%
A144: 134 | B144: Power | C144: TATAPOWER | D144: 54.90 | E144: 55.13 | F144: 54.27 | G144: 53.63 | H144: 52.77 | I144: 55.77 | J144: 56.63 | K144: 57.27 | L144: 56 | M144: 54.5 | N144: 77040000 | O144: 1.24%
A145: 135 | B145: Metals | C145: TATASTEEL | D145: 393.25 | E145: 393.78 | F145: 388.87 | G145: 384.48 | H145: 379.57 | I145: 398.17 | J145: 403.08 | K145: 407.47 | L145: 398.7 | M145: 389.4 | N145: 23612152 | O145: -0.77%
A146: 136 | B146: Technology | C146: TCS | D146: 2196.95 | E146: 2183.22 | F146: 2166.53 | G146: 2136.12 | H146: 2119.43 | I146: 2213.63 | J146: 2230.32 | K146: 2260.73 | L146: 2199.9 | M146: 2152.8 | N146: 19167750 | O146: -0.62%
A147: 137 | B147: Technology | C147: TECHM | D147: 759.35 | E147: 757.80 | F147: 752.20 | G147: 745.05 | H147: 739.45 | I147: 764.95 | J147: 770.55 | K147: 777.70 | L147: 763.4 | M147: 750.65 | N147: 15897600 | O147: 0.55%
A148: 138 | B148: FMCG | C148: TITAN | D148: 1169.55 | E148: 1169.83 | F148: 1162.72 | G148: 1155.88 | H148: 1148.77 | I148: 1176.67 | J148: 1183.78 | K148: 1190.62 | L148: 1176.95 | M148: 1163 | N148: 12597750 | O148: -0.96%
A149: 139 | B149: Pharma | C149: TORNTPHARM | D149: 1777.80 | E149: 1777.68 | F149: 1763.12 | G149: 1748.43 | H149: 1733.87 | I149: 1792.37 | J149: 1806.93 | K149: 1821.62 | L149: 1792.25 | M149: 1763 | N149: 322000 | O149: 5.92%
A150: 140 | B150: Power | C150: TORNTPOWER | D150: 295.15 | E150: 295.13 | F150: 292.62 | G150: 290.08 | H150: 287.57 | I150: 297.67 | J150: 300.18 | K150: 302.72 | L150: 297.65 | M150: 292.6 | N150: 4263000 | O150: 2.75%
A151: 141 | B151: Automobile | C151: TVSMOTOR | D151: 441.70 | E151: 444.33 | F151: 436.57 | G151: 431.43 | H151: 423.67 | I151: 449.47 | J151: 457.23 | K151: 462.37 | L151: 452.1 | M151: 439.2 | N151: 8799800 | O151: 1.52%
A152: 142 | B152: FMCG | C152: UBL | D152: 1248.20 | E152: 1243.18 | F152: 1233.92 | G152: 1219.63 | H152: 1210.37 | I152: 1257.47 | J152: 1266.73 | K152: 1281.02 | L152: 1252.45 | M152: 1228.9 | N152: 1861300 | O152: -2.28%
A153: 143 | B153: Finance | C153: UJJIVAN | D153: 275.75 | E153: 271.80 | F153: 266.10 | G153: 256.45 | H153: 250.75 | I153: 281.45 | J153: 287.15 | K153: 296.80 | L153: 277.5 | M153: 262.15 | N153: 8787700 | O153: 0.38%
A154: 144 | B154: Cement | C154: ULTRACEMCO | D154: 4018.05 | E154: 4050.35 | F154: 3975.70 | G154: 3933.35 | H154: 3858.70 | I154: 4092.70 | J154: 4167.35 | K154: 4209.70 | L154: 4125 | M154: 4008 | N154: 2686400 | O154: 6.20%
A155: 145 | B155: Banking | C155: UNIONBANK | D155: 52.25 | E155: 52.48 | F155: 50.57 | G155: 48.88 | H155: 46.97 | I155: 54.17 | J155: 56.08 | K155: 57.77 | L155: 54.4 | M155: 50.8 | N155: 33460000 | O155: 4.44%
A156: 146 | B156: Fertilisers | C156: UPL | D156: 537.40 | E156: 538.52 | F156: 531.53 | G156: 525.67 | H156: 518.68 | I156: 544.38 | J156: 551.37 | K156: 557.23 | L156: 545.5 | M156: 532.65 | N156: 16084800 | O156: 1.03%
A157: 147 | B157: Metals | C157: VEDL | D157: 144.55 | E157: 146.12 | F157: 141.63 | G157: 138.72 | H157: 134.23 | I157: 149.03 | J157: 153.52 | K157: 156.43 | L157: 150.6 | M157: 143.2 | N157: 58947000 | O157: 6.78%
A158: 148 | B158: Capital_Goods | C158: VOLTAS | D158: 713.45 | E158: 709.38 | F158: 704.12 | G158: 694.78 | H158: 689.52 | I158: 718.72 | J158: 723.98 | K158: 733.32 | L158: 714.65 | M158: 700.05 | N158: 2918000 | O158: 8.15%
A159: 149 | B159: Technology | C159: WIPRO | D159: 253.60 | E159: 253.77 | F159: 252.03 | G159: 250.47 | H159: 248.73 | I159: 255.33 | J159: 257.07 | K159: 258.63 | L159: 255.5 | M159: 252.2 | N159: 24796800 | O159: 0.64%
A160: 150 | B160: Banking | C160: YESBANK | D160: 68.75 | E160: 68.87 | F160: 66.83 | G160: 64.92 | H160: 62.88 | I160: 70.78 | J160: 72.82 | K160: 74.73 | L160: 70.9 | M160: 66.95 | N160: 183103800 | O160: 0.16%
A161: 151 | B161: Media | C161: ZEEL | D161: 283.00 | E161: 286.68 | F161: 277.87 | G161: 272.73 | H161: 263.92 | I161: 291.82 | J161: 300.63 | K161: 305.77 | L161: 295.5 | M161: 281.55 | N161: 31162900 | O161: -1.07%
A178: Pivot Point: This is trigger point for intra day buy/sell based on the price range of the previous day
A179: As per the tool,the trader should take BUY position just above Pivot and keep the stop loss of pivot point and the first target would be Resistance 1(R1)
A180: If R1 is crossed then R2 becomes the next target with stop loss of at R1
A181: Similarly if price goes below pivot point then the trader should sell and keep a stop loss of pivot point and the first target would be S1
A182: If S1 is crossed then S2 becomes the next target with stop loss of at S1
A184: Disclaimer:
A185: This document has been prepared by the Retail Research Desk of Asit C Mehta
A186: Investment Intermediates Ltd. and is meant for use of the recipient only
A187: and is not for circulation. This document is not to be reported or
A188: copied or made available to others. It should not be considered to be
A189: taken as an offer to sell or a solicitation to buy any security. The
A190: information contained herein is from sources believed reliable. We do
A191: not represent that it is accurate or complete and it should not be
A192: relied upon as such. We may from time to time have positions in and buy
A193: and sell securities referred to herein

Sheet Cash Intra
M5: Back to Main Page
A6: FOR INTRA DAY TRADING | K6: =Main!B10 -> 2019-11-15
A8: Sr.no | B8: Scrip | C8: CLOSE RATE | D8: Pivot Point | E8: Supports | H8: Resistances
C9: Point | E9: S1 | F9: S2 | G9: S3 | H9: R1 | I9: R2 | J9: R3 | K9: HIGH | L9: LOW | M9: Total Trade Quanity in Lakhs
A10: 1 | B10: Nifty 50 | C10: 11872.1 | D10: 11856.80 | E10: 11817.95 | F10: 11763.80 | G10: 11724.95 | H10: 11910.95 | I10: 11949.80 | J10: 12003.95 | K10: 11895.65 | L10: 11802.65
A11: 2 | B11: Nifty Bank | C11: 30749.95 | D11: 30625.83 | E11: 30462.47 | F11: 30174.98 | G11: 30011.62 | H11: 30913.32 | I11: 31076.68 | J11: 31364.17 | K11: 30789.2 | L11: 30338.35
A12: 3 | B12: Nifty CPSE | C12: 1978.6 | D12: 1975.28 | E12: 1960.92 | F12: 1943.23 | G12: 1928.87 | H12: 1992.97 | I12: 2007.33 | J12: 2025.02 | K12: 1989.65 | L12: 1957.6
A13: 4 | B13: Nifty Infra | C13: 3219.1 | D13: 3220.70 | E13: 3203.40 | F13: 3187.70 | G13: 3170.40 | H13: 3236.40 | I13: 3253.70 | J13: 3269.40 | K13: 3238 | L13: 3205
A14: 5 | B14: Nifty IT | C14: 15388.75 | D14: 15338.78 | E14: 15267.27 | F14: 15145.78 | G14: 15074.27 | H14: 15460.27 | I14: 15531.78 | J14: 15653.27 | K14: 15410.3 | L14: 15217.3
A15: 6 | B15: Nifty PSE | C15: 3275.8 | D15: 3275.57 | E15: 3254.63 | F15: 3233.47 | G15: 3212.53 | H15: 3296.73 | I15: 3317.67 | J15: 3338.83 | K15: 3296.5 | L15: 3254.4
A16: 7 | B16: Nifty Midcap 50 | C16: 4572.25 | D16: 4562.13 | E16: 4537.22 | F16: 4502.18 | G16: 4477.27 | H16: 4597.17 | I16: 4622.08 | J16: 4657.12 | K16: 4587.05 | L16: 4527.1
A17: 8 | B17: ACC | C17: 1486.9 | D17: 1489.68 | E17: 1470.77 | F17: 1454.63 | G17: 1435.72 | H17: 1505.82 | I17: 1524.73 | J17: 1540.87 | K17: 1508.6 | L17: 1473.55 | M17: 7.37571
A18: 9 | B18: AUBANK | C18: 836.05 | D18: 820.42 | E18: 792.13 | F18: 748.22 | G18: 719.93 | H18: 864.33 | I18: 892.62 | J18: 936.53 | K18: 848.7 | L18: 776.5 | M18: 26.97966
A19: 10 | B19: ADANIPORTS | C19: 369.1 | D19: 369.68 | E19: 365.27 | F19: 361.43 | G19: 357.02 | H19: 373.52 | I19: 377.93 | J19: 381.77 | K19: 374.1 | L19: 365.85 | M19: 26.62084
A20: 11 | B20: ADANIPOWER | C20: 61.8 | D20: 61.63 | E20: 59.97 | F20: 58.13 | G20: 56.47 | H20: 63.47 | I20: 65.13 | J20: 66.97 | K20: 63.3 | L20: 59.8 | M20: 225.41888
A21: 12 | B21: ABCAPITAL | C21: 80.25 | D21: 81.03 | E21: 78.22 | F21: 76.18 | G21: 73.37 | H21: 83.07 | I21: 85.88 | J21: 87.92 | K21: 83.85 | L21: 79 | M21: 25.79465
A22: 13 | B22: ABFRL | C22: 208 | D22: 208.22 | E22: 204.53 | F22: 201.07 | G22: 197.38 | H22: 211.68 | I22: 215.37 | J22: 218.83 | K22: 211.9 | L22: 204.75 | M22: 7.02009
A23: 14 | B23: AJANTPHARM | C23: 975.55 | D23: 978.77 | E23: 967.78 | F23: 960.02 | G23: 949.03 | H23: 986.53 | I23: 997.52 | J23: 1005.28 | K23: 989.75 | L23: 971 | M23: 0.42356
A24: 15 | B24: ALKEM | C24: 2021.25 | D24: 2037.42 | E24: 1994.83 | F24: 1968.42 | G24: 1925.83 | H24: 2063.83 | I24: 2106.42 | J24: 2132.83 | K24: 2080 | L24: 2011 | M24: 0.91701
A25: 16 | B25: ALBK | C25: 25.55 | D25: 25.52 | E25: 25.13 | F25: 24.72 | G25: 24.33 | H25: 25.93 | I25: 26.32 | J25: 26.73 | K25: 25.9 | L25: 25.1 | M25: 5.22584
A26: 17 | B26: AMARAJABAT | C26: 748.3 | D26: 742.20 | E26: 734.40 | F26: 720.50 | G26: 712.70 | H26: 756.10 | I26: 763.90 | J26: 777.80 | K26: 750 | L26: 728.3 | M26: 14.57387
A27: 18 | B27: AMBUJACEM | C27: 200.55 | D27: 198.18 | E27: 195.37 | F27: 190.18 | G27: 187.37 | H27: 203.37 | I27: 206.18 | J27: 211.37 | K27: 201 | L27: 193 | M27: 46.39427
A28: 19 | B28: APOLLOHOSP | C28: 1419.15 | D28: 1415.65 | E28: 1389.80 | F28: 1360.45 | G28: 1334.60 | H28: 1445.00 | I28: 1470.85 | J28: 1500.20 | K28: 1441.5 | L28: 1386.3 | M28: 16.43108
A29: 20 | B29: APOLLOTYRE | C29: 162.7 | D29: 163.25 | E29: 161.35 | F29: 160.00 | G29: 158.10 | H29: 164.60 | I29: 166.50 | J29: 167.85 | K29: 165.15 | L29: 161.9 | M29: 22.72057
A30: 21 | B30: ASHOKLEY | C30: 79 | D30: 78.93 | E30: 77.47 | F30: 75.93 | G30: 74.47 | H30: 80.47 | I30: 81.93 | J30: 83.47 | K30: 80.4 | L30: 77.4 | M30: 265.87855
A31: 22 | B31: ASIANPAINT | C31: 1771.85 | D31: 1779.43 | E31: 1758.87 | F31: 1745.88 | G31: 1725.32 | H31: 1792.42 | I31: 1812.98 | J31: 1825.97 | K31: 1800 | L31: 1766.45 | M31: 11.168
A32: 23 | B32: AUROPHARMA | C32: 395.8 | D32: 399.27 | E32: 385.88 | F32: 375.97 | G32: 362.58 | H32: 409.18 | I32: 422.57 | J32: 432.48 | K32: 412.65 | L32: 389.35 | M32: 169.78139
A33: 24 | B33: DMART | C33: 1920 | D33: 1932.20 | E33: 1897.80 | F33: 1875.60 | G33: 1841.20 | H33: 1954.40 | I33: 1988.80 | J33: 2011.00 | K33: 1966.6 | L33: 1910 | M33: 2.61824
A34: 25 | B34: AXISBANK | C34: 715.9 | D34: 714.98 | E34: 708.17 | F34: 700.43 | G34: 693.62 | H34: 722.72 | I34: 729.53 | J34: 737.27 | K34: 721.8 | L34: 707.25 | M34: 80.00528
A35: 26 | B35: BAJAJ-AUTO | C35: 3233.3 | D35: 3222.98 | E35: 3201.42 | F35: 3169.53 | G35: 3147.97 | H35: 3254.87 | I35: 3276.43 | J35: 3308.32 | K35: 3244.55 | L35: 3191.1 | M35: 3.10906
A36: 27 | B36: BAJFINANCE | C36: 4210.55 | D36: 4183.98 | E36: 4146.97 | F36: 4083.38 | G36: 4046.37 | H36: 4247.57 | I36: 4284.58 | J36: 4348.17 | K36: 4221 | L36: 4120.4 | M36: 13.83629
A37: 28 | B37: BAJAJFINSV | C37: 9061.85 | D37: 9017.62 | E37: 8944.23 | F37: 8826.62 | G37: 8753.23 | H37: 9135.23 | I37: 9208.62 | J37: 9326.23 | K37: 9091 | L37: 8900 | M37: 3.48634
A38: 29 | B38: BAJAJHLDNG | C38: 3716.25 | D38: 3720.42 | E38: 3690.83 | F38: 3665.42 | G38: 3635.83 | H38: 3745.83 | I38: 3775.42 | J38: 3800.83 | K38: 3750 | L38: 3695 | M38: 0.233
A39: 30 | B39: BALKRISIND | C39: 822.6 | D39: 825.42 | E39: 813.23 | F39: 803.87 | G39: 791.68 | H39: 834.78 | I39: 846.97 | J39: 856.33 | K39: 837.6 | L39: 816.05 | M39: 5.12885
A40: 31 | B40: BANDHANBNK | C40: 557.55 | D40: 562.10 | E40: 547.50 | F40: 537.45 | G40: 522.85 | H40: 572.15 | I40: 586.75 | J40: 596.80 | K40: 576.7 | L40: 552.05 | M40: 18.83718
A41: 32 | B41: BANKBARODA | C41: 93.3 | D41: 92.65 | E41: 91.30 | F41: 89.30 | G41: 87.95 | H41: 94.65 | I41: 96.00 | J41: 98.00 | K41: 94 | L41: 90.65 | M41: 296.59716
A42: 33 | B42: BANKINDIA | C42: 66.25 | D42: 65.63 | E42: 64.52 | F42: 62.78 | G42: 61.67 | H42: 67.37 | I42: 68.48 | J42: 70.22 | K42: 66.75 | L42: 63.9 | M42: 72.93774
A43: 34 | B43: BATAINDIA | C43: 1711.15 | D43: 1724.27 | E43: 1673.28 | F43: 1635.42 | G43: 1584.43 | H43: 1762.13 | I43: 1813.12 | J43: 1850.98 | K43: 1775.25 | L43: 1686.4 | M43: 27.67571
A44: 35 | B44: BERGEPAINT | C44: 482 | D44: 483.30 | E44: 477.90 | F44: 473.80 | G44: 468.40 | H44: 487.40 | I44: 492.80 | J44: 496.90 | K44: 488.7 | L44: 479.2 | M44: 16.36558
A45: 36 | B45: BEL | C45: 109.3 | D45: 109.67 | E45: 108.43 | F45: 107.57 | G45: 106.33 | H45: 110.53 | I45: 111.77 | J45: 112.63 | K45: 110.9 | L45: 108.8 | M45: 59.99657
A46: 37 | B46: BHARATFORG | C46: 436.45 | D46: 432.45 | E46: 425.00 | F46: 413.55 | G46: 406.10 | H46: 443.90 | I46: 451.35 | J46: 462.80 | K46: 439.9 | L46: 421 | M46: 29.07511
A47: 38 | B47: BHEL | C47: 53.85 | D47: 54.17 | E47: 52.98 | F47: 52.12 | G47: 50.93 | H47: 55.03 | I47: 56.22 | J47: 57.08 | K47: 55.35 | L47: 53.3 | M47: 218.08147
A48: 39 | B48: BPCL | C48: 514.65 | D48: 512.83 | E48: 505.62 | F48: 496.58 | G48: 489.37 | H48: 521.87 | I48: 529.08 | J48: 538.12 | K48: 520.05 | L48: 503.8 | M48: 54.16081
A49: 40 | B49: BHARTIARTL | C49: 362.5 | D49: 359.97 | E49: 352.83 | F49: 343.17 | G49: 336.03 | H49: 369.63 | I49: 376.77 | J49: 386.43 | K49: 367.1 | L49: 350.3 | M49: 210.91587
A50: 41 | B50: INFRATEL | C50: 208.65 | D50: 206.22 | E50: 201.18 | F50: 193.72 | G50: 188.68 | H50: 213.68 | I50: 218.72 | J50: 226.18 | K50: 211.25 | L50: 198.75 | M50: 134.53599
A51: 42 | B51: BIOCON | C51: 254.7 | D51: 254.23 | E51: 250.12 | F51: 245.53 | G51: 241.42 | H51: 258.82 | I51: 262.93 | J51: 267.52 | K51: 258.35 | L51: 249.65 | M51: 28.55539
A52: 43 | B52: BBTC | C52: 1192.45 | D52: 1202.62 | E52: 1177.83 | F52: 1163.22 | G52: 1138.43 | H52: 1217.23 | I52: 1242.02 | J52: 1256.63 | K52: 1227.4 | L52: 1188 | M52: 0.78607
A53: 44 | B53: BOSCHLTD | C53: 15195.95 | D53: 15189.15 | E53: 15058.30 | F53: 14920.65 | G53: 14789.80 | H53: 15326.80 | I53: 15457.65 | J53: 15595.30 | K53: 15320 | L53: 15051.5 | M53: 0.08304
A54: 45 | B54: BRITANNIA | C54: 3230.8 | D54: 3235.23 | E54: 3195.57 | F54: 3160.33 | G54: 3120.67 | H54: 3270.47 | I54: 3310.13 | J54: 3345.37 | K54: 3274.9 | L54: 3200 | M54: 5.15326
A55: 46 | B55: CESC | C55: 759.15 | D55: 757.60 | E55: 746.40 | F55: 733.65 | G55: 722.45 | H55: 770.35 | I55: 781.55 | J55: 794.30 | K55: 768.8 | L55: 744.85 | M55: 4.42896
A56: 47 | B56: CADILAHC | C56: 234.25 | D56: 229.88 | E56: 224.37 | F56: 214.48 | G56: 208.97 | H56: 239.77 | I56: 245.28 | J56: 255.17 | K56: 235.4 | L56: 220 | M56: 43.73085
A57: 48 | B57: CANBK | C57: 200.1 | D57: 198.42 | E57: 195.38 | F57: 190.67 | G57: 187.63 | H57: 203.13 | I57: 206.17 | J57: 210.88 | K57: 201.45 | L57: 193.7 | M57: 66.30768
A58: 49 | B58: CASTROLIND | C58: 144.75 | D58: 144.85 | E58: 143.25 | F58: 141.75 | G58: 140.15 | H58: 146.35 | I58: 147.95 | J58: 149.45 | K58: 146.45 | L58: 143.35 | M58: 6.67539
A59: 50 | B59: CHOLAFIN | C59: 308.95 | D59: 304.38 | E59: 298.07 | F59: 287.18 | G59: 280.87 | H59: 315.27 | I59: 321.58 | J59: 332.47 | K59: 310.7 | L59: 293.5 | M59: 18.37984
A60: 51 | B60: CIPLA | C60: 451.4 | D60: 450.75 | E60: 443.30 | F60: 435.20 | G60: 427.75 | H60: 458.85 | I60: 466.30 | J60: 474.40 | K60: 458.2 | L60: 442.65 | M60: 26.59601
A61: 52 | B61: CUB | C61: 206.55 | D61: 206.08 | E61: 203.67 | F61: 200.78 | G61: 198.37 | H61: 208.97 | I61: 211.38 | J61: 214.27 | K61: 208.5 | L61: 203.2 | M61: 3.52318
A62: 53 | B62: COALINDIA | C62: 202.35 | D62: 204.20 | E62: 199.90 | F62: 197.45 | G62: 193.15 | H62: 206.65 | I62: 210.95 | J62: 213.40 | K62: 208.5 | L62: 201.75 | M62: 48.89669
A63: 54 | B63: COLPAL | C63: 1547.2 | D63: 1548.75 | E63: 1538.40 | F63: 1529.60 | G63: 1519.25 | H63: 1557.55 | I63: 1567.90 | J63: 1576.70 | K63: 1559.1 | L63: 1539.95 | M63: 6.01227
A64: 55 | B64: CONCOR | C64: 575.4 | D64: 576.83 | E64: 570.72 | F64: 566.03 | G64: 559.92 | H64: 581.52 | I64: 587.63 | J64: 592.32 | K64: 582.95 | L64: 572.15 | M64: 7.71324
A65: 56 | B65: COROMANDEL | C65: 476.05 | D65: 475.28 | E65: 470.87 | F65: 465.68 | G65: 461.27 | H65: 480.47 | I65: 484.88 | J65: 490.07 | K65: 479.7 | L65: 470.1 | M65: 1.40098
A66: 57 | B66: CROMPTON | C66: 260.25 | D66: 260.10 | E66: 256.70 | F66: 253.15 | G66: 249.75 | H66: 263.65 | I66: 267.05 | J66: 270.60 | K66: 263.5 | L66: 256.55 | M66: 4.73633
A67: 58 | B67: CUMMINSIND | C67: 560.4 | D67: 560.77 | E67: 552.33 | F67: 544.27 | G67: 535.83 | H67: 568.83 | I67: 577.27 | J67: 585.33 | K67: 569.2 | L67: 552.7 | M67: 2.56669
A68: 59 | B68: DLF | C68: 208.9 | D68: 207.08 | E68: 204.32 | F68: 199.73 | G68: 196.97 | H68: 211.67 | I68: 214.43 | J68: 219.02 | K68: 209.85 | L68: 202.5 | M68: 132.44986
A69: 60 | B69: DABUR | C69: 462.55 | D69: 462.10 | E69: 455.45 | F69: 448.35 | G69: 441.70 | H69: 469.20 | I69: 475.85 | J69: 482.95 | K69: 468.75 | L69: 455 | M69: 15.9302
A70: 61 | B70: DALBHARAT | C70: 829.85 | D70: 829.82 | E70: 817.93 | F70: 806.02 | G70: 794.13 | H70: 841.73 | I70: 853.62 | J70: 865.53 | K70: 841.7 | L70: 817.9 | M70: 1.46853
A71: 62 | B71: DIVISLAB | C71: 1656.5 | D71: 1664.88 | E71: 1635.07 | F71: 1613.63 | G71: 1583.82 | H71: 1686.32 | I71: 1716.13 | J71: 1737.57 | K71: 1694.7 | L71: 1643.45 | M71: 8.92696
A72: 63 | B72: DRREDDY | C72: 2734.05 | D72: 2745.45 | E72: 2713.55 | F72: 2693.05 | G72: 2661.15 | H72: 2765.95 | I72: 2797.85 | J72: 2818.35 | K72: 2777.35 | L72: 2724.95 | M72: 6.48568
A73: 64 | B73: EDELWEISS | C73: 128.25 | D73: 124.18 | E73: 120.12 | F73: 111.98 | G73: 107.92 | H73: 132.32 | I73: 136.38 | J73: 144.52 | K73: 128.25 | L73: 116.05 | M73: 41.69234
A74: 65 | B74: EICHERMOT | C74: 21558.15 | D74: 21546.05 | E74: 21367.10 | F74: 21176.05 | G74: 20997.10 | H74: 21737.10 | I74: 21916.05 | J74: 22107.10 | K74: 21725 | L74: 21355 | M74: 0.98083
A75: 66 | B75: EMAMILTD | C75: 319 | D75: 320.67 | E75: 315.18 | F75: 311.37 | G75: 305.88 | H75: 324.48 | I75: 329.97 | J75: 333.78 | K75: 326.15 | L75: 316.85 | M75: 0.99153
A76: 67 | B76: ENDURANCE | C76: 1058.2 | D76: 1067.08 | E76: 1042.22 | F76: 1026.23 | G76: 1001.37 | H76: 1083.07 | I76: 1107.93 | J76: 1123.92 | K76: 1091.95 | L76: 1051.1 | M76: 0.05616
A77: 68 | B77: ENGINERSIN | C77: 104.15 | D77: 103.72 | E77: 101.93 | F77: 99.72 | G77: 97.93 | H77: 105.93 | I77: 107.72 | J77: 109.93 | K77: 105.5 | L77: 101.5 | M77: 20.54131
A78: 69 | B78: ESCORTS | C78: 651.9 | D78: 650.65 | E78: 644.35 | F78: 636.80 | G78: 630.50 | H78: 658.20 | I78: 664.50 | J78: 672.05 | K78: 656.95 | L78: 643.1 | M78: 15.79736
A79: 70 | B79: EXIDEIND | C79: 190.7 | D79: 189.83 | E79: 188.22 | F79: 185.73 | G79: 184.12 | H79: 192.32 | I79: 193.93 | J79: 196.42 | K79: 191.45 | L79: 187.35 | M79: 16.49089
A80: 71 | B80: FEDERALBNK | C80: 84.5 | D80: 83.98 | E80: 82.77 | F80: 81.03 | G80: 79.82 | H80: 85.72 | I80: 86.93 | J80: 88.67 | K80: 85.2 | L80: 82.25 | M80: 117.20303
A81: 72 | B81: FCONSUMER | C81: 23.55 | D81: 23.70 | E81: 22.90 | F81: 22.25 | G81: 21.45 | H81: 24.35 | I81: 25.15 | J81: 25.80 | K81: 24.5 | L81: 23.05 | M81: 13.75467
A82: 73 | B82: FRETAIL | C82: 344.45 | D82: 346.15 | E82: 339.65 | F82: 334.85 | G82: 328.35 | H82: 350.95 | I82: 357.45 | J82: 362.25 | K82: 352.65 | L82: 341.35 | M82: 3.46063
A83: 74 | B83: GAIL | C83: 121.8 | D83: 122.13 | E83: 119.27 | F83: 116.73 | G83: 113.87 | H83: 124.67 | I83: 127.53 | J83: 130.07 | K83: 125 | L83: 119.6 | M83: 228.33339
A84: 75 | B84: GMRINFRA | C84: 21 | D84: 21.03 | E84: 20.62 | F84: 20.23 | G84: 19.82 | H84: 21.42 | I84: 21.83 | J84: 22.22 | K84: 21.45 | L84: 20.65 | M84: 160.02361
A85: 76 | B85: GICRE | C85: 268.3 | D85: 273.00 | E85: 261.30 | F85: 254.30 | G85: 242.60 | H85: 280.00 | I85: 291.70 | J85: 298.70 | K85: 284.7 | L85: 266 | M85: 6.61519
A86: 77 | B86: GLENMARK | C86: 282.05 | D86: 278.08 | E86: 271.22 | F86: 260.38 | G86: 253.52 | H86: 288.92 | I86: 295.78 | J86: 306.62 | K86: 284.95 | L86: 267.25 | M86: 32.44792
A87: 78 | B87: GODREJAGRO | C87: 474.4 | D87: 476.38 | E87: 471.02 | F87: 467.63 | G87: 462.27 | H87: 479.77 | I87: 485.13 | J87: 488.52 | K87: 481.75 | L87: 473 | M87: 0.39278
A88: 79 | B88: GODREJCP | C88: 715.45 | D88: 718.05 | E88: 710.35 | F88: 705.25 | G88: 697.55 | H88: 723.15 | I88: 730.85 | J88: 735.95 | K88: 725.75 | L88: 712.95 | M88: 4.78181
A89: 80 | B89: GODREJIND | C89: 438.9 | D89: 437.02 | E89: 431.88 | F89: 424.87 | G89: 419.73 | H89: 444.03 | I89: 449.17 | J89: 456.18 | K89: 442.15 | L89: 430 | M89: 1.34834
A90: 81 | B90: GODREJPROP | C90: 919.7 | D90: 924.35 | E90: 907.35 | F90: 895.00 | G90: 878.00 | H90: 936.70 | I90: 953.70 | J90: 966.05 | K90: 941.35 | L90: 912 | M90: 2.00113
A91: 82 | B91: GRAPHITE | C91: 304.7 | D91: 304.48 | E91: 298.57 | F91: 292.43 | G91: 286.52 | H91: 310.62 | I91: 316.53 | J91: 322.67 | K91: 310.4 | L91: 298.35 | M91: 20.13468
A92: 83 | B92: GRASIM | C92: 733.95 | D92: 734.27 | E92: 711.68 | F92: 689.42 | G92: 666.83 | H92: 756.53 | I92: 779.12 | J92: 801.38 | K92: 756.85 | L92: 712 | M92: 42.63295
A93: 84 | B93: GSPL | C93: 217.5 | D93: 217.85 | E93: 215.75 | F93: 214.00 | G93: 211.90 | H93: 219.60 | I93: 221.70 | J93: 223.45 | K93: 219.95 | L93: 216.1 | M93: 3.67386
A94: 85 | B94: HEG | C94: 1064.75 | D94: 1055.48 | E94: 1032.87 | F94: 1000.98 | G94: 978.37 | H94: 1087.37 | I94: 1109.98 | J94: 1141.87 | K94: 1078.1 | L94: 1023.6 | M94: 6.75093
A95: 86 | B95: HCLTECH | C95: 1147.8 | D95: 1146.77 | E95: 1136.13 | F95: 1124.47 | G95: 1113.83 | H95: 1158.43 | I95: 1169.07 | J95: 1180.73 | K95: 1157.4 | L95: 1135.1 | M95: 12.70462
A96: 87 | B96: HDFCAMC | C96: 3604 | D96: 3638.35 | E96: 3502.70 | F96: 3401.40 | G96: 3265.75 | H96: 3739.65 | I96: 3875.30 | J96: 3976.60 | K96: 3774 | L96: 3537.05 | M96: 15.8536
A97: 88 | B97: HDFCBANK | C97: 1273.9 | D97: 1269.37 | E97: 1261.73 | F97: 1249.57 | G97: 1241.93 | H97: 1281.53 | I97: 1289.17 | J97: 1301.33 | K97: 1277 | L97: 1257.2 | M97: 55.27609
A98: 89 | B98: HDFCLIFE | C98: 586.35 | D98: 587.58 | E98: 580.27 | F98: 574.18 | G98: 566.87 | H98: 593.67 | I98: 600.98 | J98: 607.07 | K98: 594.9 | L98: 581.5 | M98: 26.63642
A99: 90 | B99: HAVELLS | C99: 672.2 | D99: 674.63 | E99: 665.72 | F99: 659.23 | G99: 650.32 | H99: 681.12 | I99: 690.03 | J99: 696.52 | K99: 683.55 | L99: 668.15 | M99: 9.75688
A100: 91 | B100: HEROMOTOCO | C100: 2591.65 | D100: 2592.27 | E100: 2576.38 | F100: 2561.12 | G100: 2545.23 | H100: 2607.53 | I100: 2623.42 | J100: 2638.68 | K100: 2608.15 | L100: 2577 | M100: 4.6117
A101: 92 | B101: HEXAWARE | C101: 333.5 | D101: 332.03 | E101: 329.37 | F101: 325.23 | G101: 322.57 | H101: 336.17 | I101: 338.83 | J101: 342.97 | K101: 334.7 | L101: 327.9 | M101: 5.84634
A102: 93 | B102: HINDALCO | C102: 188.5 | D102: 189.90 | E102: 186.40 | F102: 184.30 | G102: 180.80 | H102: 192.00 | I102: 195.50 | J102: 197.60 | K102: 193.4 | L102: 187.8 | M102: 67.20055
A103: 94 | B103: HINDPETRO | C103: 288.55 | D103: 288.30 | E103: 284.55 | F103: 280.55 | G103: 276.80 | H103: 292.30 | I103: 296.05 | J103: 300.05 | K103: 292.05 | L103: 284.3 | M103: 56.17128
A104: 95 | B104: HINDUNILVR | C104: 2069.05 | D104: 2073.70 | E104: 2056.80 | F104: 2044.55 | G104: 2027.65 | H104: 2085.95 | I104: 2102.85 | J104: 2115.10 | K104: 2090.6 | L104: 2061.45 | M104: 12.91198
A105: 96 | B105: HINDZINC | C105: 210.05 | D105: 209.08 | E105: 207.22 | F105: 204.38 | G105: 202.52 | H105: 211.92 | I105: 213.78 | J105: 216.62 | K105: 210.95 | L105: 206.25 | M105: 5.08466
A106: 97 | B106: HUDCO | C106: 42.9 | D106: 43.65 | E106: 41.50 | F106: 40.10 | G106: 37.95 | H106: 45.05 | I106: 47.20 | J106: 48.60 | K106: 45.8 | L106: 42.25 | M106: 83.2209
A107: 98 | B107: HDFC | C107: 2226.8 | D107: 2216.62 | E107: 2200.38 | F107: 2173.97 | G107: 2157.73 | H107: 2243.03 | I107: 2259.27 | J107: 2285.68 | K107: 2232.85 | L107: 2190.2 | M107: 19.53996
A108: 99 | B108: ICICIBANK | C108: 498.65 | D108: 494.08 | E108: 488.32 | F108: 477.98 | G108: 472.22 | H108: 504.42 | I108: 510.18 | J108: 520.52 | K108: 499.85 | L108: 483.75 | M108: 353.96276
A109: 100 | B109: ICICIGI | C109: 1373.55 | D109: 1370.13 | E109: 1360.42 | F109: 1347.28 | G109: 1337.57 | H109: 1383.27 | I109: 1392.98 | J109: 1406.12 | K109: 1379.85 | L109: 1357 | M109: 4.55
A110: 101 | B110: ICICIPRULI | C110: 525.4 | D110: 525.50 | E110: 518.95 | F110: 512.50 | G110: 505.95 | H110: 531.95 | I110: 538.50 | J110: 544.95 | K110: 532.05 | L110: 519.05 | M110: 20.14684
A111: 102 | B111: IDBI | C111: 31.85 | D111: 32.07 | E111: 31.13 | F111: 30.42 | G111: 29.48 | H111: 32.78 | I111: 33.72 | J111: 34.43 | K111: 33 | L111: 31.35 | M111: 22.81066
A112: 103 | B112: IDFCFIRSTB | C112: 41.7 | D112: 41.52 | E112: 41.08 | F112: 40.47 | G112: 40.03 | H112: 42.13 | I112: 42.57 | J112: 43.18 | K112: 41.95 | L112: 40.9 | M112: 114.08938
A113: 104 | B113: ITC | C113: 253.9 | D113: 254.35 | E113: 252.80 | F113: 251.70 | G113: 250.15 | H113: 255.45 | I113: 257.00 | J113: 258.10 | K113: 255.9 | L113: 253.25 | M113: 88.80734
A114: 105 | B114: IBULHSGFIN | C114: 211.35 | D114: 214.43 | E114: 205.02 | F114: 198.68 | G114: 189.27 | H114: 220.77 | I114: 230.18 | J114: 236.52 | K114: 223.85 | L114: 208.1 | M114: 450.73367
A115: 106 | B115: IBVENTURES | C115: 148.7 | D115: 147.75 | E115: 141.50 | F115: 134.30 | G115: 128.05 | H115: 154.95 | I115: 161.20 | J115: 168.40 | K115: 154 | L115: 140.55 | M115: 15.30515
A116: 107 | B116: INDIANB | C116: 114.5 | D116: 115.18 | E116: 111.87 | F116: 109.23 | G116: 105.92 | H116: 117.82 | I116: 121.13 | J116: 123.77 | K116: 118.5 | L116: 112.55 | M116: 15.55496
A117: 108 | B117: INDHOTEL | C117: 155.25 | D117: 154.50 | E117: 151.20 | F117: 147.15 | G117: 143.85 | H117: 158.55 | I117: 161.85 | J117: 165.90 | K117: 157.8 | L117: 150.45 | M117: 17.64991
A118: 109 | B118: IOC | C118: 136.85 | D118: 136.08 | E118: 132.17 | F118: 127.48 | G118: 123.57 | H118: 140.77 | I118: 144.68 | J118: 149.37 | K118: 140 | L118: 131.4 | M118: 157.19623
A119: 110 | B119: IGL | C119: 424.65 | D119: 422.95 | E119: 419.90 | F119: 415.15 | G119: 412.10 | H119: 427.70 | I119: 430.75 | J119: 435.50 | K119: 426 | L119: 418.2 | M119: 13.91329
A120: 111 | B120: INDUSINDBK | C120: 1375.1 | D120: 1376.00 | E120: 1352.30 | F120: 1329.50 | G120: 1305.80 | H120: 1398.80 | I120: 1422.50 | J120: 1445.30 | K120: 1399.7 | L120: 1353.2 | M120: 52.79888
A121: 112 | B121: NAUKRI | C121: 2610.5 | D121: 2625.17 | E121: 2570.33 | F121: 2530.17 | G121: 2475.33 | H121: 2665.33 | I121: 2720.17 | J121: 2760.33 | K121: 2680 | L121: 2585 | M121: 4.13709
A122: 113 | B122: INFY | C122: 705.3 | D122: 703.82 | E122: 697.83 | F122: 690.37 | G122: 684.38 | H122: 711.28 | I122: 717.27 | J122: 724.73 | K122: 709.8 | L122: 696.35 | M122: 105.39902
A123: 114 | B123: INDIGO | C123: 1516.9 | D123: 1502.30 | E123: 1479.60 | F123: 1442.30 | G123: 1419.60 | H123: 1539.60 | I123: 1562.30 | J123: 1599.60 | K123: 1525 | L123: 1465 | M123: 12.24651
A124: 115 | B124: IPCALAB | C124: 1138.45 | D124: 1125.13 | E124: 1103.27 | F124: 1068.08 | G124: 1046.22 | H124: 1160.32 | I124: 1182.18 | J124: 1217.37 | K124: 1147 | L124: 1089.95 | M124: 3.90594
A125: 116 | B125: JSWENERGY | C125: 70.4 | D125: 71.03 | E125: 68.77 | F125: 67.13 | G125: 64.87 | H125: 72.67 | I125: 74.93 | J125: 76.57 | K125: 73.3 | L125: 69.4 | M125: 5.5494
A126: 117 | B126: JSWSTEEL | C126: 245.75 | D126: 246.57 | E126: 243.43 | F126: 241.12 | G126: 237.98 | H126: 248.88 | I126: 252.02 | J126: 254.33 | K126: 249.7 | L126: 244.25 | M126: 45.22524
A127: 118 | B127: JINDALSTEL | C127: 139.65 | D127: 140.88 | E127: 137.37 | F127: 135.08 | G127: 131.57 | H127: 143.17 | I127: 146.68 | J127: 148.97 | K127: 144.4 | L127: 138.6 | M127: 188.04406
A128: 119 | B128: JUBLFOOD | C128: 1613.05 | D128: 1608.70 | E128: 1584.35 | F128: 1555.65 | G128: 1531.30 | H128: 1637.40 | I128: 1661.75 | J128: 1690.45 | K128: 1633.05 | L128: 1580 | M128: 11.83626
A129: 120 | B129: JUBILANT | C129: 503.2 | D129: 509.07 | E129: 495.13 | F129: 487.07 | G129: 473.13 | H129: 517.13 | I129: 531.07 | J129: 539.13 | K129: 523 | L129: 501 | M129: 1.29962
A130: 121 | B130: KOTAKBANK | C130: 1597.6 | D130: 1597.35 | E130: 1584.30 | F130: 1571.00 | G130: 1557.95 | H130: 1610.65 | I130: 1623.70 | J130: 1637.00 | K130: 1610.4 | L130: 1584.05 | M130: 26.39298
A131: 122 | B131: L&TFH | C131: 95.85 | D131: 95.22 | E131: 94.03 | F131: 92.22 | G131: 91.03 | H131: 97.03 | I131: 98.22 | J131: 100.03 | K131: 96.4 | L131: 93.4 | M131: 57.13197
A132: 123 | B132: LTTS | C132: 1413.1 | D132: 1419.32 | E132: 1388.78 | F132: 1364.47 | G132: 1333.93 | H132: 1443.63 | I132: 1474.17 | J132: 1498.48 | K132: 1449.85 | L132: 1395 | M132: 1.39271
A133: 124 | B133: LICHSGFIN | C133: 420.3 | D133: 418.60 | E133: 413.80 | F133: 407.30 | G133: 402.50 | H133: 425.10 | I133: 429.90 | J133: 436.40 | K133: 423.4 | L133: 412.1 | M133: 22.6345
A134: 125 | B134: LTI | C134: 1630.4 | D134: 1633.48 | E134: 1606.92 | F134: 1583.43 | G134: 1556.87 | H134: 1656.97 | I134: 1683.53 | J134: 1707.02 | K134: 1660.05 | L134: 1610 | M134: 0.95036
A135: 126 | B135: LT | C135: 1380.45 | D135: 1387.78 | E135: 1369.62 | F135: 1358.78 | G135: 1340.62 | H135: 1398.62 | I135: 1416.78 | J135: 1427.62 | K135: 1405.95 | L135: 1376.95 | M135: 30.00518
A136: 127 | B136: LUPIN | C136: 738.35 | D136: 733.02 | E136: 726.23 | F136: 714.12 | G136: 707.33 | H136: 745.13 | I136: 751.92 | J136: 764.03 | K136: 739.8 | L136: 720.9 | M136: 9.32902
A137: 128 | B137: MRF | C137: 63621.5 | D137: 63368.93 | E137: 63037.87 | F137: 62454.23 | G137: 62123.17 | H137: 63952.57 | I137: 64283.63 | J137: 64867.27 | K137: 63700 | L137: 62785.3 | M137: 0.03395
A138: 129 | B138: MGL | C138: 1030.1 | D138: 1026.48 | E138: 1011.62 | F138: 993.13 | G138: 978.27 | H138: 1044.97 | I138: 1059.83 | J138: 1078.32 | K138: 1041.35 | L138: 1008 | M138: 17.35048
A139: 130 | B139: M&MFIN | C139: 328.35 | D139: 326.22 | E139: 323.13 | F139: 317.92 | G139: 314.83 | H139: 331.43 | I139: 334.52 | J139: 339.73 | K139: 329.3 | L139: 321 | M139: 11.25712
A140: 131 | B140: M&M | C140: 578.45 | D140: 575.28 | E140: 570.92 | F140: 563.38 | G140: 559.02 | H140: 582.82 | I140: 587.18 | J140: 594.72 | K140: 579.65 | L140: 567.75 | M140: 21.93683
A141: 132 | B141: MANAPPURAM | C141: 162.95 | D141: 162.43 | E141: 160.37 | F141: 157.78 | G141: 155.72 | H141: 165.02 | I141: 167.08 | J141: 169.67 | K141: 164.5 | L141: 159.85 | M141: 27.95948
A142: 133 | B142: MRPL | C142: 48.3 | D142: 48.13 | E142: 47.62 | F142: 46.93 | G142: 46.42 | H142: 48.82 | I142: 49.33 | J142: 50.02 | K142: 48.65 | L142: 47.45 | M142: 1.94191
A143: 134 | B143: MARICO | C143: 356.55 | D143: 358.68 | E143: 351.87 | F143: 347.18 | G143: 340.37 | H143: 363.37 | I143: 370.18 | J143: 374.87 | K143: 365.5 | L143: 354 | M143: 37.3881
A144: 135 | B144: MARUTI | C144: 7247.15 | D144: 7225.72 | E144: 7181.43 | F144: 7115.72 | G144: 7071.43 | H144: 7291.43 | I144: 7335.72 | J144: 7401.43 | K144: 7270 | L144: 7160 | M144: 8.02462
A145: 136 | B145: MFSL | C145: 479.35 | D145: 477.98 | E145: 467.97 | F145: 456.58 | G145: 446.57 | H145: 489.37 | I145: 499.38 | J145: 510.77 | K145: 488 | L145: 466.6 | M145: 22.53411
A146: 137 | B146: MINDTREE | C146: 689.55 | D146: 685.93 | E146: 678.62 | F146: 667.68 | G146: 660.37 | H146: 696.87 | I146: 704.18 | J146: 715.12 | K146: 693.25 | L146: 675 | M146: 3.00668
A147: 138 | B147: MOTHERSUMI | C147: 136.35 | D147: 135.78 | E147: 133.77 | F147: 131.18 | G147: 129.17 | H147: 138.37 | I147: 140.38 | J147: 142.97 | K147: 137.8 | L147: 133.2 | M147: 77.57471
A148: 139 | B148: MPHASIS | C148: 893.35 | D148: 893.12 | E148: 887.23 | F148: 881.12 | G148: 875.23 | H148: 899.23 | I148: 905.12 | J148: 911.23 | K148: 899 | L148: 887 | M148: 0.78354
A149: 140 | B149: MUTHOOTFIN | C149: 711.5 | D149: 698.08 | E149: 678.67 | F149: 645.83 | G149: 626.42 | H149: 730.92 | I149: 750.33 | J149: 783.17 | K149: 717.5 | L149: 665.25 | M149: 63.38305
A150: 141 | B150: NATCOPHARM | C150: 560.55 | D150: 557.88 | E150: 551.77 | F150: 542.98 | G150: 536.87 | H150: 566.67 | I150: 572.78 | J150: 581.57 | K150: 564 | L150: 549.1 | M150: 1.45869
A151: 142 | B151: NBCC | C151: 37.3 | D151: 37.80 | E151: 36.50 | F151: 35.70 | G151: 34.40 | H151: 38.60 | I151: 39.90 | J151: 40.70 | K151: 39.1 | L151: 37 | M151: 161.31172
A152: 143 | B152: NHPC | C152: 23.55 | D152: 23.60 | E152: 23.35 | F152: 23.15 | G152: 22.90 | H152: 23.80 | I152: 24.05 | J152: 24.25 | K152: 23.85 | L152: 23.4 | M152: 17.64666
A153: 144 | B153: NMDC | C153: 98.55 | D153: 99.73 | E153: 96.62 | F153: 94.68 | G153: 91.57 | H153: 101.67 | I153: 104.78 | J153: 106.72 | K153: 102.85 | L153: 97.8 | M153: 48.33533
A154: 145 | B154: NTPC | C154: 118.55 | D154: 118.42 | E154: 117.68 | F154: 116.82 | G154: 116.08 | H154: 119.28 | I154: 120.02 | J154: 120.88 | K154: 119.15 | L154: 117.55 | M154: 52.08393
A155: 146 | B155: NATIONALUM | C155: 42.15 | D155: 41.97 | E155: 41.28 | F155: 40.42 | G155: 39.73 | H155: 42.83 | I155: 43.52 | J155: 44.38 | K155: 42.65 | L155: 41.1 | M155: 169.75548
A156: 147 | B156: NESTLEIND | C156: 14231.35 | D156: 14210.77 | E156: 14120.58 | F156: 14009.82 | G156: 13919.63 | H156: 14321.53 | I156: 14411.72 | J156: 14522.48 | K156: 14300.95 | L156: 14100 | M156: 0.60476
A157: 148 | B157: OBEROIRLTY | C157: 516.25 | D157: 516.92 | E157: 512.83 | F157: 509.42 | G157: 505.33 | H157: 520.33 | I157: 524.42 | J157: 527.83 | K157: 521 | L157: 513.5 | M157: 1.15747
A158: 149 | B158: ONGC | C158: 136.2 | D158: 137.03 | E158: 134.82 | F158: 133.43 | G158: 131.22 | H158: 138.42 | I158: 140.63 | J158: 142.02 | K158: 139.25 | L158: 135.65 | M158: 81.78628
A159: 150 | B159: OIL | C159: 159.8 | D159: 159.87 | E159: 157.48 | F159: 155.17 | G159: 152.78 | H159: 162.18 | I159: 164.57 | J159: 166.88 | K159: 162.25 | L159: 157.55 | M159: 6.55488
A160: 151 | B160: OFSS | C160: 3058.8 | D160: 3067.27 | E160: 3011.53 | F160: 2964.27 | G160: 2908.53 | H160: 3114.53 | I160: 3170.27 | J160: 3217.53 | K160: 3123 | L160: 3020 | M160: 0.29286
A161: 152 | B161: ORIENTBANK | C161: 51 | D161: 50.92 | E161: 50.13 | F161: 49.27 | G161: 48.48 | H161: 51.78 | I161: 52.57 | J161: 53.43 | K161: 51.7 | L161: 50.05 | M161: 4.81138
A162: 153 | B162: PIIND | C162: 1426.7 | D162: 1426.28 | E162: 1405.42 | F162: 1384.13 | G162: 1363.27 | H162: 1447.57 | I162: 1468.43 | J162: 1489.72 | K162: 1447.15 | L162: 1405 | M162: 1.94745
A163: 154 | B163: PNBHOUSING | C163: 541.5 | D163: 546.32 | E163: 532.18 | F163: 522.87 | G163: 508.73 | H163: 555.63 | I163: 569.77 | J163: 579.08 | K163: 560.45 | L163: 537 | M163: 2.57586
A164: 155 | B164: PAGEIND | C164: 23583.9 | D164: 23687.93 | E164: 23335.87 | F164: 23087.83 | G164: 22735.77 | H164: 23935.97 | I164: 24288.03 | J164: 24536.07 | K164: 24040 | L164: 23439.9 | M164: 0.3072
A165: 156 | B165: PETRONET | C165: 276.3 | D165: 278.02 | E165: 273.18 | F165: 270.07 | G165: 265.23 | H165: 281.13 | I165: 285.97 | J165: 289.08 | K165: 282.85 | L165: 274.9 | M165: 30.50324
A166: 157 | B166: PFIZER | C166: 4001.2 | D166: 4014.05 | E166: 3986.15 | F166: 3971.10 | G166: 3943.20 | H166: 4029.10 | I166: 4057.00 | J166: 4072.05 | K166: 4041.95 | L166: 3999 | M166: 0.17583
A167: 158 | B167: PIDILITIND | C167: 1344.4 | D167: 1334.02 | E167: 1318.13 | F167: 1291.87 | G167: 1275.98 | H167: 1360.28 | I167: 1376.17 | J167: 1402.43 | K167: 1349.9 | L167: 1307.75 | M167: 14.35858
A168: 159 | B168: PEL | C168: 1758.1 | D168: 1770.90 | E168: 1732.85 | F168: 1707.60 | G168: 1669.55 | H168: 1796.15 | I168: 1834.20 | J168: 1859.45 | K168: 1808.95 | L168: 1745.65 | M168: 12.64496
A169: 160 | B169: PFC | C169: 111.9 | D169: 110.92 | E169: 109.08 | F169: 106.27 | G169: 104.43 | H169: 113.73 | I169: 115.57 | J169: 118.38 | K169: 112.75 | L169: 108.1 | M169: 62.51547
A170: 161 | B170: POWERGRID | C170: 188 | D170: 188.35 | E170: 186.55 | F170: 185.10 | G170: 183.30 | H170: 189.80 | I170: 191.60 | J170: 193.05 | K170: 190.15 | L170: 186.9 | M170: 109.01461
A171: 162 | B171: PRESTIGE | C171: 300.4 | D171: 298.97 | E171: 296.93 | F171: 293.47 | G171: 291.43 | H171: 302.43 | I171: 304.47 | J171: 307.93 | K171: 301 | L171: 295.5 | M171: 0.66049
A172: 163 | B172: PGHH | C172: 10988.4 | D172: 11012.77 | E172: 10775.63 | F172: 10562.87 | G172: 10325.73 | H172: 11225.53 | I172: 11462.67 | J172: 11675.43 | K172: 11249.9 | L172: 10800 | M172: 0.02769
A173: 164 | B173: PNB | C173: 60.3 | D173: 60.03 | E173: 59.12 | F173: 57.93 | G173: 57.02 | H173: 61.22 | I173: 62.13 | J173: 63.32 | K173: 60.95 | L173: 58.85 | M173: 183.17596
A174: 165 | B174: QUESS | C174: 567.55 | D174: 561.97 | E174: 533.93 | F174: 500.32 | G174: 472.28 | H174: 595.58 | I174: 623.62 | J174: 657.23 | K174: 590 | L174: 528.35 | M174: 3.50188
A175: 166 | B175: RBLBANK | C175: 318 | D175: 322.75 | E175: 309.50 | F175: 301.00 | G175: 287.75 | H175: 331.25 | I175: 344.50 | J175: 353.00 | K175: 336 | L175: 314.25 | M175: 166.24413
A176: 167 | B176: RECLTD | C176: 135.1 | D176: 135.53 | E176: 133.07 | F176: 131.03 | G176: 128.57 | H176: 137.57 | I176: 140.03 | J176: 142.07 | K176: 138 | L176: 133.5 | M176: 59.46131
A177: 168 | B177: RAJESHEXPO | C177: 682.1 | D177: 679.68 | E177: 671.92 | F177: 661.73 | G177: 653.97 | H177: 689.87 | I177: 697.63 | J177: 707.82 | K177: 687.45 | L177: 669.5 | M177: 1.28196
A178: 169 | B178: RELIANCE | C178: 1462.75 | D178: 1466.72 | E178: 1451.83 | F178: 1440.92 | G178: 1426.03 | H178: 1477.63 | I178: 1492.52 | J178: 1503.43 | K178: 1481.6 | L178: 1455.8 | M178: 65.18339
A179: 170 | B179: RNAM | C179: 358.25 | D179: 363.12 | E179: 348.23 | F179: 338.22 | G179: 323.33 | H179: 373.13 | I179: 388.02 | J179: 398.03 | K179: 378 | L179: 353.1 | M179: 67.91834
A180: 171 | B180: SBILIFE | C180: 999.9 | D180: 999.27 | E180: 985.53 | F180: 971.17 | G180: 957.43 | H180: 1013.63 | I180: 1027.37 | J180: 1041.73 | K180: 1013 | L180: 984.9 | M180: 34.417
A181: 172 | B181: SRF | C181: 3159.7 | D181: 3159.90 | E181: 3129.80 | F181: 3099.90 | G181: 3069.80 | H181: 3189.80 | I181: 3219.90 | J181: 3249.80 | K181: 3190 | L181: 3130 | M181: 3.16254
A182: 173 | B182: SHREECEM | C182: 19670.5 | D182: 19732.58 | E182: 19487.97 | F182: 19305.43 | G182: 19060.82 | H182: 19915.12 | I182: 20159.73 | J182: 20342.27 | K182: 19977.2 | L182: 19550.05 | M182: 0.18505
A183: 174 | B183: SRTRANSFIN | C183: 1137.25 | D183: 1130.22 | E183: 1118.78 | F183: 1100.32 | G183: 1088.88 | H183: 1148.68 | I183: 1160.12 | J183: 1178.58 | K183: 1141.65 | L183: 1111.75 | M183: 8.74225
A184: 175 | B184: SIEMENS | C184: 1612.5 | D184: 1623.63 | E184: 1597.12 | F184: 1581.73 | G184: 1555.22 | H184: 1639.02 | I184: 1665.53 | J184: 1680.92 | K184: 1650.15 | L184: 1608.25 | M184: 5.82704
A185: 176 | B185: SBIN | C185: 306 | D185: 305.07 | E185: 300.63 | F185: 295.27 | G185: 290.83 | H185: 310.43 | I185: 314.87 | J185: 320.23 | K185: 309.5 | L185: 299.7 | M185: 436.17772
A186: 177 | B186: SAIL | C186: 37.3 | D186: 37.47 | E186: 36.68 | F186: 36.07 | G186: 35.28 | H186: 38.08 | I186: 38.87 | J186: 39.48 | K186: 38.25 | L186: 36.85 | M186: 313.08358
A187: 178 | B187: STRTECH | C187: 123.95 | D187: 125.80 | E187: 120.90 | F187: 117.85 | G187: 112.95 | H187: 128.85 | I187: 133.75 | J187: 136.80 | K187: 130.7 | L187: 122.75 | M187: 17.24943
A188: 179 | B188: SUNPHARMA | C188: 410.2 | D188: 411.70 | E188: 406.05 | F188: 401.90 | G188: 396.25 | H188: 415.85 | I188: 421.50 | J188: 425.65 | K188: 417.35 | L188: 407.55 | M188: 47.50176
A189: 180 | B189: SUNTV | C189: 490.8 | D189: 485.93 | E189: 475.87 | F189: 460.93 | G189: 450.87 | H189: 500.87 | I189: 510.93 | J189: 525.87 | K189: 496 | L189: 471 | M189: 54.21401
A190: 181 | B190: SYNGENE | C190: 322.45 | D190: 323.87 | E190: 316.78 | F190: 311.12 | G190: 304.03 | H190: 329.53 | I190: 336.62 | J190: 342.28 | K190: 330.95 | L190: 318.2 | M190: 1.11175
A191: 182 | B191: TVSMOTOR | C191: 448.3 | D191: 451.75 | E191: 441.55 | F191: 434.80 | G191: 424.60 | H191: 458.50 | I191: 468.70 | J191: 475.45 | K191: 461.95 | L191: 445 | M191: 17.99094
A192: 183 | B192: TATACHEM | C192: 631.4 | D192: 630.67 | E192: 625.33 | F192: 619.27 | G192: 613.93 | H192: 636.73 | I192: 642.07 | J192: 648.13 | K192: 636 | L192: 624.6 | M192: 3.26012
A193: 184 | B193: TCS | C193: 2196.8 | D193: 2181.17 | E193: 2162.33 | F193: 2127.87 | G193: 2109.03 | H193: 2215.63 | I193: 2234.47 | J193: 2268.93 | K193: 2200 | L193: 2146.7 | M193: 29.95915
A194: 185 | B194: TATAGLOBAL | C194: 295.5 | D194: 292.53 | E194: 288.22 | F194: 280.93 | G194: 276.62 | H194: 299.82 | I194: 304.13 | J194: 311.42 | K194: 296.85 | L194: 285.25 | M194: 49.84429
A195: 186 | B195: TATAMTRDVR | C195: 76.65 | D195: 76.90 | E195: 75.50 | F195: 74.35 | G195: 72.95 | H195: 78.05 | I195: 79.45 | J195: 80.60 | K195: 78.3 | L195: 75.75 | M195: 34.97833
A196: 187 | B196: TATAMOTORS | C196: 167.05 | D196: 167.62 | E196: 164.93 | F196: 162.82 | G196: 160.13 | H196: 169.73 | I196: 172.42 | J196: 174.53 | K196: 170.3 | L196: 165.5 | M196: 254.33481
A197: 188 | B197: TATAPOWER | C197: 54.65 | D197: 54.98 | E197: 54.02 | F197: 53.38 | G197: 52.42 | H197: 55.62 | I197: 56.58 | J197: 57.22 | K197: 55.95 | L197: 54.35 | M197: 60.76033
A198: 189 | B198: TATASTEEL | C198: 391.95 | D198: 393.35 | E198: 388.00 | F198: 384.05 | G198: 378.70 | H198: 397.30 | I198: 402.65 | J198: 406.60 | K198: 398.7 | L198: 389.4 | M198: 108.69425
A199: 190 | B199: TECHM | C199: 758.35 | D199: 756.72 | E199: 749.93 | F199: 741.52 | G199: 734.73 | H199: 765.13 | I199: 771.92 | J199: 780.33 | K199: 763.5 | L199: 748.3 | M199: 25.64424
A200: 191 | B200: NIACL | C200: 158.25 | D200: 158.25 | E200: 158.25 | F200: 158.25 | G200: 158.25 | H200: 158.25 | I200: 158.25 | J200: 158.25 | K200: 158.25 | L200: 158.25 | M200: 1.4617
A201: 192 | B201: RAMCOCEM | C201: 781.9 | D201: 782.57 | E201: 770.13 | F201: 758.37 | G201: 745.93 | H201: 794.33 | I201: 806.77 | J201: 818.53 | K201: 795 | L201: 770.8 | M201: 1.36136
A202: 193 | B202: TITAN | C202: 1169.1 | D202: 1169.13 | E202: 1161.97 | F202: 1154.83 | G202: 1147.67 | H202: 1176.27 | I202: 1183.43 | J202: 1190.57 | K202: 1176.3 | L202: 1162 | M202: 25.71355
A203: 194 | B203: TORNTPHARM | C203: 1771.55 | D203: 1771.67 | E203: 1755.88 | F203: 1740.22 | G203: 1724.43 | H203: 1787.33 | I203: 1803.12 | J203: 1818.78 | K203: 1787.45 | L203: 1756 | M203: 0.70054
A204: 195 | B204: TORNTPOWER | C204: 294.2 | D204: 294.22 | E204: 291.43 | F204: 288.67 | G204: 285.88 | H204: 296.98 | I204: 299.77 | J204: 302.53 | K204: 297 | L204: 291.45 | M204: 4.70438
A205: 196 | B205: UPL | C205: 535.55 | D205: 536.95 | E205: 529.70 | F205: 523.85 | G205: 516.60 | H205: 542.80 | I205: 550.05 | J205: 555.90 | K205: 544.2 | L205: 531.1 | M205: 24.12598
... 30 more rows

Sheet MidCap Intra
L5: Back To Main Page
A6: FOR INTRA DAY TRADING | K6: =Main!B10 -> 2019-11-15
A9: Sr.no | B9: Scrip | C9: CLOSE RATE | D9: Pivot Point | E9: Supports | H9: Resistances
C10: Point | E10: S1 | F10: S2 | G10: S3 | H10: R1 | I10: R2 | J10: R3 | K10: HIGH | L10: LOW | M10: Total Trade Quanity in Lakhs
A11: 1 | B11: 3MINDIA | C11: 22269.55 | D11: 22297.85 | E11: 22131.70 | F11: 21993.85 | G11: 21827.70 | H11: 22435.70 | I11: 22601.85 | J11: 22739.70 | K11: 22464 | L11: 22160 | M11: 0.0146
A12: 2 | B12: ACC | C12: 1486.9 | D12: 1489.68 | E12: 1470.77 | F12: 1454.63 | G12: 1435.72 | H12: 1505.82 | I12: 1524.73 | J12: 1540.87 | K12: 1508.6 | L12: 1473.55 | M12: 7.37571
A13: 3 | B13: AIAENG | C13: 1641.8 | D13: 1659.98 | E13: 1621.77 | F13: 1601.73 | G13: 1563.52 | H13: 1680.02 | I13: 1718.23 | J13: 1738.27 | K13: 1698.2 | L13: 1639.95 | M13: 0.84255
A14: 4 | B14: APLAPOLLO | C14: 1493.1 | D14: 1497.70 | E14: 1465.40 | F14: 1437.70 | G14: 1405.40 | H14: 1525.40 | I14: 1557.70 | J14: 1585.40 | K14: 1530 | L14: 1470 | M14: 0.26115
A15: 5 | B15: AUBANK | C15: 836.05 | D15: 820.42 | E15: 792.13 | F15: 748.22 | G15: 719.93 | H15: 864.33 | I15: 892.62 | J15: 936.53 | K15: 848.7 | L15: 776.5 | M15: 26.97966
A16: 6 | B16: AAVAS | C16: 1596.15 | D16: 1574.38 | E16: 1533.77 | F16: 1471.38 | G16: 1430.77 | H16: 1636.77 | I16: 1677.38 | J16: 1739.77 | K16: 1615 | L16: 1512 | M16: 0.54799
A17: 7 | B17: ABBOTINDIA | C17: 12043.25 | D17: 12078.45 | E17: 11863.80 | F17: 11684.35 | G17: 11469.70 | H17: 12257.90 | I17: 12472.55 | J17: 12652.00 | K17: 12293.1 | L17: 11899 | M17: 0.32851
A18: 8 | B18: ADANIGAS | C18: 147.4 | D18: 147.82 | E18: 146.73 | F18: 146.07 | G18: 144.98 | H18: 148.48 | I18: 149.57 | J18: 150.23 | K18: 148.9 | L18: 147.15 | M18: 5.4643
A19: 9 | B19: ADANIGREEN | C19: 95.05 | D19: 95.68 | E19: 92.87 | F19: 90.68 | G19: 87.87 | H19: 97.87 | I19: 100.68 | J19: 102.87 | K19: 98.5 | L19: 93.5 | M19: 16.11104
A20: 10 | B20: ADANIPORTS | C20: 369.1 | D20: 369.68 | E20: 365.27 | F20: 361.43 | G20: 357.02 | H20: 373.52 | I20: 377.93 | J20: 381.77 | K20: 374.1 | L20: 365.85 | M20: 26.62084
A21: 11 | B21: ADANIPOWER | C21: 61.8 | D21: 61.63 | E21: 59.97 | F21: 58.13 | G21: 56.47 | H21: 63.47 | I21: 65.13 | J21: 66.97 | K21: 63.3 | L21: 59.8 | M21: 225.41888
A22: 12 | B22: ADANITRANS | C22: 271.15 | D22: 271.88 | E22: 267.52 | F22: 263.88 | G22: 259.52 | H22: 275.52 | I22: 279.88 | J22: 283.52 | K22: 276.25 | L22: 268.25 | M22: 2.14175
A23: 13 | B23: ABCAPITAL | C23: 80.25 | D23: 81.03 | E23: 78.22 | F23: 76.18 | G23: 73.37 | H23: 83.07 | I23: 85.88 | J23: 87.92 | K23: 83.85 | L23: 79 | M23: 25.79465
A24: 14 | B24: ABFRL | C24: 208 | D24: 208.22 | E24: 204.53 | F24: 201.07 | G24: 197.38 | H24: 211.68 | I24: 215.37 | J24: 218.83 | K24: 211.9 | L24: 204.75 | M24: 7.02009
A25: 15 | B25: ADVENZYMES | C25: 166.35 | D25: 168.42 | E25: 163.38 | F25: 160.42 | G25: 155.38 | H25: 171.38 | I25: 176.42 | J25: 179.38 | K25: 173.45 | L25: 165.45 | M25: 0.70807
A26: 16 | B26: AEGISCHEM | C26: 179.2 | D26: 176.18 | E26: 168.02 | F26: 156.83 | G26: 148.67 | H26: 187.37 | I26: 195.53 | J26: 206.72 | K26: 184.35 | L26: 165 | M26: 6.49
A27: 17 | B27: AJANTPHARM | C27: 975.55 | D27: 978.77 | E27: 967.78 | F27: 960.02 | G27: 949.03 | H27: 986.53 | I27: 997.52 | J27: 1005.28 | K27: 989.75 | L27: 971 | M27: 0.42356
A28: 18 | B28: AKZOINDIA | C28: 1930.15 | D28: 1923.03 | E28: 1906.07 | F28: 1881.98 | G28: 1865.02 | H28: 1947.12 | I28: 1964.08 | J28: 1988.17 | K28: 1940 | L28: 1898.95 | M28: 0.14543
A29: 19 | B29: APLLTD | C29: 565.25 | D29: 564.70 | E29: 557.40 | F29: 549.55 | G29: 542.25 | H29: 572.55 | I29: 579.85 | J29: 587.70 | K29: 572 | L29: 556.85 | M29: 0.43114
A30: 20 | B30: ALKEM | C30: 2021.25 | D30: 2037.42 | E30: 1994.83 | F30: 1968.42 | G30: 1925.83 | H30: 2063.83 | I30: 2106.42 | J30: 2132.83 | K30: 2080 | L30: 2011 | M30: 0.91701
A31: 21 | B31: ALBK | C31: 25.55 | D31: 25.52 | E31: 25.13 | F31: 24.72 | G31: 24.33 | H31: 25.93 | I31: 26.32 | J31: 26.73 | K31: 25.9 | L31: 25.1 | M31: 5.22584
A32: 22 | B32: ALLCARGO | C32: 94.55 | D32: 95.25 | E32: 93.50 | F32: 92.45 | G32: 90.70 | H32: 96.30 | I32: 98.05 | J32: 99.10 | K32: 97 | L32: 94.2 | M32: 1.18063
A33: 23 | B33: AMARAJABAT | C33: 748.3 | D33: 742.20 | E33: 734.40 | F33: 720.50 | G33: 712.70 | H33: 756.10 | I33: 763.90 | J33: 777.80 | K33: 750 | L33: 728.3 | M33: 14.57387
A34: 24 | B34: AMBER | C34: 978.2 | D34: 985.82 | E34: 956.63 | F34: 935.07 | G34: 905.88 | H34: 1007.38 | I34: 1036.57 | J34: 1058.13 | K34: 1015 | L34: 964.25 | M34: 0.37973
A35: 25 | B35: AMBUJACEM | C35: 200.55 | D35: 198.18 | E35: 195.37 | F35: 190.18 | G35: 187.37 | H35: 203.37 | I35: 206.18 | J35: 211.37 | K35: 201 | L35: 193 | M35: 46.39427
A36: 26 | B36: ANDHRABANK | C36: 17.15 | D36: 17.22 | E36: 16.93 | F36: 16.72 | G36: 16.43 | H36: 17.43 | I36: 17.72 | J36: 17.93 | K36: 17.5 | L36: 17 | M36: 4.88989
A37: 27 | B37: APOLLOHOSP | C37: 1419.15 | D37: 1415.65 | E37: 1389.80 | F37: 1360.45 | G37: 1334.60 | H37: 1445.00 | I37: 1470.85 | J37: 1500.20 | K37: 1441.5 | L37: 1386.3 | M37: 16.43108
A38: 28 | B38: APOLLOTYRE | C38: 162.7 | D38: 163.25 | E38: 161.35 | F38: 160.00 | G38: 158.10 | H38: 164.60 | I38: 166.50 | J38: 167.85 | K38: 165.15 | L38: 161.9 | M38: 22.72057
A39: 29 | B39: ARVINDFASN | C39: 385.9 | D39: 388.65 | E39: 378.30 | F39: 370.70 | G39: 360.35 | H39: 396.25 | I39: 406.60 | J39: 414.20 | K39: 399 | L39: 381.05 | M39: 0.18969
A40: 30 | B40: ASHOKLEY | C40: 79 | D40: 78.93 | E40: 77.47 | F40: 75.93 | G40: 74.47 | H40: 80.47 | I40: 81.93 | J40: 83.47 | K40: 80.4 | L40: 77.4 | M40: 265.87855
A41: 31 | B41: ASHOKA | C41: 96.05 | D41: 97.90 | E41: 92.80 | F41: 89.55 | G41: 84.45 | H41: 101.15 | I41: 106.25 | J41: 109.50 | K41: 103 | L41: 94.65 | M41: 14.4704
A42: 32 | B42: ASIANPAINT | C42: 1771.85 | D42: 1779.43 | E42: 1758.87 | F42: 1745.88 | G42: 1725.32 | H42: 1792.42 | I42: 1812.98 | J42: 1825.97 | K42: 1800 | L42: 1766.45 | M42: 11.168
A43: 33 | B43: ASTERDM | C43: 152.85 | D43: 150.20 | E43: 145.40 | F43: 137.95 | G43: 133.15 | H43: 157.65 | I43: 162.45 | J43: 169.90 | K43: 155 | L43: 142.75 | M43: 2.32796
A44: 34 | B44: ASTRAZEN | C44: 2648.8 | D44: 2612.07 | E44: 2565.18 | F44: 2481.57 | G44: 2434.68 | H44: 2695.68 | I44: 2742.57 | J44: 2826.18 | K44: 2658.95 | L44: 2528.45 | M44: 0.53592
A45: 35 | B45: ASTRAL | C45: 1085.55 | D45: 1084.98 | E45: 1067.57 | F45: 1049.58 | G45: 1032.17 | H45: 1102.97 | I45: 1120.38 | J45: 1138.37 | K45: 1102.4 | L45: 1067 | M45: 1.23757
A46: 36 | B46: ATUL | C46: 3976.75 | D46: 4015.77 | E46: 3928.98 | F46: 3881.22 | G46: 3794.43 | H46: 4063.53 | I46: 4150.32 | J46: 4198.08 | K46: 4102.55 | L46: 3968 | M46: 0.12049
A47: 37 | B47: AUROPHARMA | C47: 395.8 | D47: 399.27 | E47: 385.88 | F47: 375.97 | G47: 362.58 | H47: 409.18 | I47: 422.57 | J47: 432.48 | K47: 412.65 | L47: 389.35 | M47: 169.78139
A48: 38 | B48: AVANTIFEED | C48: 530.8 | D48: 525.60 | E48: 510.30 | F48: 489.80 | G48: 474.50 | H48: 546.10 | I48: 561.40 | J48: 581.90 | K48: 540.9 | L48: 505.1 | M48: 13.6675
A49: 39 | B49: DMART | C49: 1920 | D49: 1932.20 | E49: 1897.80 | F49: 1875.60 | G49: 1841.20 | H49: 1954.40 | I49: 1988.80 | J49: 2011.00 | K49: 1966.6 | L49: 1910 | M49: 2.61824
A50: 40 | B50: AXISBANK | C50: 715.9 | D50: 714.98 | E50: 708.17 | F50: 700.43 | G50: 693.62 | H50: 722.72 | I50: 729.53 | J50: 737.27 | K50: 721.8 | L50: 707.25 | M50: 80.00528
A51: 41 | B51: BASF | C51: 964.05 | D51: 974.70 | E51: 949.35 | F51: 934.65 | G51: 909.30 | H51: 989.40 | I51: 1014.75 | J51: 1029.45 | K51: 1000.05 | L51: 960 | M51: 0.16429
A52: 42 | B52: BEML | C52: 949.6 | D52: 952.83 | E52: 941.77 | F52: 933.93 | G52: 922.87 | H52: 960.67 | I52: 971.73 | J52: 979.57 | K52: 963.9 | L52: 945 | M52: 2.50905
A53: 43 | B53: BSE | C53: 503.95 | D53: 507.55 | E53: 499.10 | F53: 494.25 | G53: 485.80 | H53: 512.40 | I53: 520.85 | J53: 525.70 | K53: 516 | L53: 502.7 | M53: 0.66508
A54: 44 | B54: BAJAJ-AUTO | C54: 3233.3 | D54: 3222.98 | E54: 3201.42 | F54: 3169.53 | G54: 3147.97 | H54: 3254.87 | I54: 3276.43 | J54: 3308.32 | K54: 3244.55 | L54: 3191.1 | M54: 3.10906
A55: 45 | B55: BAJAJCON | C55: 241.3 | D55: 243.42 | E55: 237.88 | F55: 234.47 | G55: 228.93 | H55: 246.83 | I55: 252.37 | J55: 255.78 | K55: 248.95 | L55: 240 | M55: 1.41806
A56: 46 | B56: BAJAJELEC | C56: 321.65 | D56: 323.70 | E56: 317.60 | F56: 313.55 | G56: 307.45 | H56: 327.75 | I56: 333.85 | J56: 337.90 | K56: 329.8 | L56: 319.65 | M56: 1.28966
A57: 47 | B57: BAJFINANCE | C57: 4210.55 | D57: 4183.98 | E57: 4146.97 | F57: 4083.38 | G57: 4046.37 | H57: 4247.57 | I57: 4284.58 | J57: 4348.17 | K57: 4221 | L57: 4120.4 | M57: 13.83629
A58: 48 | B58: BAJAJFINSV | C58: 9061.85 | D58: 9017.62 | E58: 8944.23 | F58: 8826.62 | G58: 8753.23 | H58: 9135.23 | I58: 9208.62 | J58: 9326.23 | K58: 9091 | L58: 8900 | M58: 3.48634
A59: 49 | B59: BAJAJHLDNG | C59: 3716.25 | D59: 3720.42 | E59: 3690.83 | F59: 3665.42 | G59: 3635.83 | H59: 3745.83 | I59: 3775.42 | J59: 3800.83 | K59: 3750 | L59: 3695 | M59: 0.233
A60: 50 | B60: BALKRISIND | C60: 822.6 | D60: 825.42 | E60: 813.23 | F60: 803.87 | G60: 791.68 | H60: 834.78 | I60: 846.97 | J60: 856.33 | K60: 837.6 | L60: 816.05 | M60: 5.12885
A61: 51 | B61: BALMLAWRIE | C61: 189.8 | D61: 192.25 | E61: 186.55 | F61: 183.30 | G61: 177.60 | H61: 195.50 | I61: 201.20 | J61: 204.45 | K61: 197.95 | L61: 189 | M61: 1.9855
A62: 52 | B62: BALRAMCHIN | C62: 146.75 | D62: 146.08 | E62: 144.67 | F62: 142.58 | G62: 141.17 | H62: 148.17 | I62: 149.58 | J62: 151.67 | K62: 147.5 | L62: 144 | M62: 4.92965
A63: 53 | B63: BANDHANBNK | C63: 557.55 | D63: 562.10 | E63: 547.50 | F63: 537.45 | G63: 522.85 | H63: 572.15 | I63: 586.75 | J63: 596.80 | K63: 576.7 | L63: 552.05 | M63: 18.83718
A64: 54 | B64: BANKBARODA | C64: 93.3 | D64: 92.65 | E64: 91.30 | F64: 89.30 | G64: 87.95 | H64: 94.65 | I64: 96.00 | J64: 98.00 | K64: 94 | L64: 90.65 | M64: 296.59716
A65: 55 | B65: BANKINDIA | C65: 66.25 | D65: 65.63 | E65: 64.52 | F65: 62.78 | G65: 61.67 | H65: 67.37 | I65: 68.48 | J65: 70.22 | K65: 66.75 | L65: 63.9 | M65: 72.93774
A66: 56 | B66: MAHABANK | C66: 11.2 | D66: 11.27 | E66: 11.03 | F66: 10.87 | G66: 10.63 | H66: 11.43 | I66: 11.67 | J66: 11.83 | K66: 11.5 | L66: 11.1 | M66: 3.13723
A67: 57 | B67: BATAINDIA | C67: 1711.15 | D67: 1724.27 | E67: 1673.28 | F67: 1635.42 | G67: 1584.43 | H67: 1762.13 | I67: 1813.12 | J67: 1850.98 | K67: 1775.25 | L67: 1686.4 | M67: 27.67571
A68: 58 | B68: BAYERCROP | C68: 3320.7 | D68: 3333.23 | E68: 3287.47 | F68: 3254.23 | G68: 3208.47 | H68: 3366.47 | I68: 3412.23 | J68: 3445.47 | K68: 3379 | L68: 3300 | M68: 0.03073
A69: 59 | B69: BERGEPAINT | C69: 482 | D69: 483.30 | E69: 477.90 | F69: 473.80 | G69: 468.40 | H69: 487.40 | I69: 492.80 | J69: 496.90 | K69: 488.7 | L69: 479.2 | M69: 16.36558
A70: 60 | B70: BDL | C70: 339.05 | D70: 344.38 | E70: 331.97 | F70: 324.88 | G70: 312.47 | H70: 351.47 | I70: 363.88 | J70: 370.97 | K70: 356.8 | L70: 337.3 | M70: 0.9159
A71: 61 | B71: BEL | C71: 109.3 | D71: 109.67 | E71: 108.43 | F71: 107.57 | G71: 106.33 | H71: 110.53 | I71: 111.77 | J71: 112.63 | K71: 110.9 | L71: 108.8 | M71: 59.99657
A72: 62 | B72: BHARATFORG | C72: 436.45 | D72: 432.45 | E72: 425.00 | F72: 413.55 | G72: 406.10 | H72: 443.90 | I72: 451.35 | J72: 462.80 | K72: 439.9 | L72: 421 | M72: 29.07511
A73: 63 | B73: BHEL | C73: 53.85 | D73: 54.17 | E73: 52.98 | F73: 52.12 | G73: 50.93 | H73: 55.03 | I73: 56.22 | J73: 57.08 | K73: 55.35 | L73: 53.3 | M73: 218.08147
A74: 64 | B74: BPCL | C74: 514.65 | D74: 512.83 | E74: 505.62 | F74: 496.58 | G74: 489.37 | H74: 521.87 | I74: 529.08 | J74: 538.12 | K74: 520.05 | L74: 503.8 | M74: 54.16081
A75: 65 | B75: BHARTIARTL | C75: 362.5 | D75: 359.97 | E75: 352.83 | F75: 343.17 | G75: 336.03 | H75: 369.63 | I75: 376.77 | J75: 386.43 | K75: 367.1 | L75: 350.3 | M75: 210.91587
A76: 66 | B76: INFRATEL | C76: 208.65 | D76: 206.22 | E76: 201.18 | F76: 193.72 | G76: 188.68 | H76: 213.68 | I76: 218.72 | J76: 226.18 | K76: 211.25 | L76: 198.75 | M76: 134.53599
A77: 67 | B77: BIOCON | C77: 254.7 | D77: 254.23 | E77: 250.12 | F77: 245.53 | G77: 241.42 | H77: 258.82 | I77: 262.93 | J77: 267.52 | K77: 258.35 | L77: 249.65 | M77: 28.55539
A78: 68 | B78: BIRLACORPN | C78: 657.3 | D78: 659.25 | E78: 648.60 | F78: 639.90 | G78: 629.25 | H78: 667.95 | I78: 678.60 | J78: 687.30 | K78: 669.9 | L78: 650.55 | M78: 0.73293
A79: 69 | B79: BSOFT | C79: 67.3 | D79: 67.50 | E79: 65.80 | F79: 64.30 | G79: 62.60 | H79: 69.00 | I79: 70.70 | J79: 72.20 | K79: 69.2 | L79: 66 | M79: 3.01839
A80: 70 | B80: BLISSGVS | C80: 137.55 | D80: 137.22 | E80: 134.43 | F80: 131.32 | G80: 128.53 | H80: 140.33 | I80: 143.12 | J80: 146.23 | K80: 140 | L80: 134.1 | M80: 4.27977
A81: 71 | B81: BLUEDART | C81: 2173.1 | D81: 2187.83 | E81: 2152.37 | F81: 2131.63 | G81: 2096.17 | H81: 2208.57 | I81: 2244.03 | J81: 2264.77 | K81: 2223.3 | L81: 2167.1 | M81: 0.0238
A82: 72 | B82: BLUESTARCO | C82: 798.15 | D82: 804.07 | E82: 787.08 | F82: 776.02 | G82: 759.03 | H82: 815.13 | I82: 832.12 | J82: 843.18 | K82: 821.05 | L82: 793 | M82: 0.95994
A83: 73 | B83: BBTC | C83: 1192.45 | D83: 1202.62 | E83: 1177.83 | F83: 1163.22 | G83: 1138.43 | H83: 1217.23 | I83: 1242.02 | J83: 1256.63 | K83: 1227.4 | L83: 1188 | M83: 0.78607
A84: 74 | B84: BOMDYEING | C84: 80.75 | D84: 81.75 | E84: 79.25 | F84: 77.75 | G84: 75.25 | H84: 83.25 | I84: 85.75 | J84: 87.25 | K84: 84.25 | L84: 80.25 | M84: 17.14468
A85: 75 | B85: BOSCHLTD | C85: 15195.95 | D85: 15189.15 | E85: 15058.30 | F85: 14920.65 | G85: 14789.80 | H85: 15326.80 | I85: 15457.65 | J85: 15595.30 | K85: 15320 | L85: 15051.5 | M85: 0.08304
A86: 76 | B86: BRIGADE | C86: 206.65 | D86: 210.02 | E86: 202.43 | F86: 198.22 | G86: 190.63 | H86: 214.23 | I86: 221.82 | J86: 226.03 | K86: 217.6 | L86: 205.8 | M86: 0.89623
A87: 77 | B87: BRITANNIA | C87: 3230.8 | D87: 3235.23 | E87: 3195.57 | F87: 3160.33 | G87: 3120.67 | H87: 3270.47 | I87: 3310.13 | J87: 3345.37 | K87: 3274.9 | L87: 3200 | M87: 5.15326
A88: 78 | B88: CARERATING | C88: 508.75 | D88: 512.13 | E88: 501.72 | F88: 494.68 | G88: 484.27 | H88: 519.17 | I88: 529.58 | J88: 536.62 | K88: 522.55 | L88: 505.1 | M88: 0.47683
A89: 79 | B89: CCL | C89: 204.9 | D89: 203.78 | E89: 200.67 | F89: 196.43 | G89: 193.32 | H89: 208.02 | I89: 211.13 | J89: 215.37 | K89: 206.9 | L89: 199.55 | M89: 2.52422
A90: 80 | B90: CESC | C90: 759.15 | D90: 757.60 | E90: 746.40 | F90: 733.65 | G90: 722.45 | H90: 770.35 | I90: 781.55 | J90: 794.30 | K90: 768.8 | L90: 744.85 | M90: 4.42896
A91: 81 | B91: CGPOWER | C91: 16.15 | D91: 16.45 | E91: 15.75 | F91: 15.35 | G91: 14.65 | H91: 16.85 | I91: 17.55 | J91: 17.95 | K91: 17.15 | L91: 16.05 | M91: 13.65525
A92: 82 | B92: CRISIL | C92: 1422.45 | D92: 1407.48 | E92: 1389.97 | F92: 1357.48 | G92: 1339.97 | H92: 1439.97 | I92: 1457.48 | J92: 1489.97 | K92: 1425 | L92: 1375 | M92: 0.42356
A93: 83 | B93: CADILAHC | C93: 234.25 | D93: 229.88 | E93: 224.37 | F93: 214.48 | G93: 208.97 | H93: 239.77 | I93: 245.28 | J93: 255.17 | K93: 235.4 | L93: 220 | M93: 43.73085
A94: 84 | B94: CANFINHOME | C94: 378.6 | D94: 380.00 | E94: 375.10 | F94: 371.60 | G94: 366.70 | H94: 383.50 | I94: 388.40 | J94: 391.90 | K94: 384.9 | L94: 376.5 | M94: 1.45342
A95: 85 | B95: CANBK | C95: 200.1 | D95: 198.42 | E95: 195.38 | F95: 190.67 | G95: 187.63 | H95: 203.13 | I95: 206.17 | J95: 210.88 | K95: 201.45 | L95: 193.7 | M95: 66.30768
A96: 86 | B96: CAPLIPOINT | C96: 379.35 | D96: 378.12 | E96: 372.73 | F96: 366.12 | G96: 360.73 | H96: 384.73 | I96: 390.12 | J96: 396.73 | K96: 383.5 | L96: 371.5 | M96: 0.57351
A97: 87 | B97: CGCL | C97: 191.5 | D97: 190.45 | E97: 183.15 | F97: 174.80 | G97: 167.50 | H97: 198.80 | I97: 206.10 | J97: 214.45 | K97: 197.75 | L97: 182.1 | M97: 6.54037
A98: 88 | B98: CARBORUNIV | C98: 310.25 | D98: 308.38 | E98: 305.57 | F98: 300.88 | G98: 298.07 | H98: 313.07 | I98: 315.88 | J98: 320.57 | K98: 311.2 | L98: 303.7 | M98: 0.28785
A99: 89 | B99: CASTROLIND | C99: 144.75 | D99: 144.85 | E99: 143.25 | F99: 141.75 | G99: 140.15 | H99: 146.35 | I99: 147.95 | J99: 149.45 | K99: 146.45 | L99: 143.35 | M99: 6.67539
A100: 90 | B100: CEATLTD | C100: 959.6 | D100: 964.72 | E100: 949.88 | F100: 940.17 | G100: 925.33 | H100: 974.43 | I100: 989.27 | J100: 998.98 | K100: 979.55 | L100: 955 | M100: 0.41792
A101: 91 | B101: CENTRALBK | C101: 19.35 | D101: 19.45 | E101: 19.00 | F101: 18.65 | G101: 18.20 | H101: 19.80 | I101: 20.25 | J101: 20.60 | K101: 19.9 | L101: 19.1 | M101: 5.33774
A102: 92 | B102: CDSL | C102: 223.05 | D102: 225.47 | E102: 218.98 | F102: 214.92 | G102: 208.43 | H102: 229.53 | I102: 236.02 | J102: 240.08 | K102: 231.95 | L102: 221.4 | M102: 3.21331
A103: 93 | B103: CENTURYPLY | C103: 177.95 | D103: 174.82 | E103: 168.13 | F103: 158.32 | G103: 151.63 | H103: 184.63 | I103: 191.32 | J103: 201.13 | K103: 181.5 | L103: 165 | M103: 12.79612
A104: 94 | B104: CERA | C104: 2440.15 | D104: 2453.72 | E104: 2387.43 | F104: 2334.72 | G104: 2268.43 | H104: 2506.43 | I104: 2572.72 | J104: 2625.43 | K104: 2520 | L104: 2401 | M104: 0.11879
A105: 95 | B105: CHALET | C105: 342.6 | D105: 350.57 | E105: 332.03 | F105: 321.47 | G105: 302.93 | H105: 361.13 | I105: 379.67 | J105: 390.23 | K105: 369.1 | L105: 340 | M105: 0.05011
A106: 96 | B106: CHAMBLFERT | C106: 160.6 | D106: 162.23 | E106: 158.37 | F106: 156.13 | G106: 152.27 | H106: 164.47 | I106: 168.33 | J106: 170.57 | K106: 166.1 | L106: 160 | M106: 1.75585
A107: 97 | B107: CHENNPETRO | C107: 141.1 | D107: 142.93 | E107: 138.17 | F107: 135.23 | G107: 130.47 | H107: 145.87 | I107: 150.63 | J107: 153.57 | K107: 147.7 | L107: 140 | M107: 1.84847
A108: 98 | B108: CHOLAHLDNG | C108: 470.15 | D108: 468.65 | E108: 458.50 | F108: 446.85 | G108: 436.70 | H108: 480.30 | I108: 490.45 | J108: 502.10 | K108: 478.8 | L108: 457 | M108: 0.29941
A109: 99 | B109: CHOLAFIN | C109: 308.95 | D109: 304.38 | E109: 298.07 | F109: 287.18 | G109: 280.87 | H109: 315.27 | I109: 321.58 | J109: 332.47 | K109: 310.7 | L109: 293.5 | M109: 18.37984
A110: 100 | B110: CIPLA | C110: 451.4 | D110: 450.75 | E110: 443.30 | F110: 435.20 | G110: 427.75 | H110: 458.85 | I110: 466.30 | J110: 474.40 | K110: 458.2 | L110: 442.65 | M110: 26.59601
A111: 101 | B111: CUB | C111: 206.55 | D111: 206.08 | E111: 203.67 | F111: 200.78 | G111: 198.37 | H111: 208.97 | I111: 211.38 | J111: 214.27 | K111: 208.5 | L111: 203.2 | M111: 3.52318
A112: 102 | B112: COALINDIA | C112: 202.35 | D112: 204.20 | E112: 199.90 | F112: 197.45 | G112: 193.15 | H112: 206.65 | I112: 210.95 | J112: 213.40 | K112: 208.5 | L112: 201.75 | M112: 48.89669
A113: 103 | B113: COCHINSHIP | C113: 406.5 | D113: 408.97 | E113: 401.53 | F113: 396.57 | G113: 389.13 | H113: 413.93 | I113: 421.37 | J113: 426.33 | K113: 416.4 | L113: 404 | M113: 1.00293
A114: 104 | B114: COFFEEDAY | C114: 43.55 | D114: 43.05 | E114: 41.60 | F114: 39.65 | G114: 38.20 | H114: 45.00 | I114: 46.45 | J114: 48.40 | K114: 44.5 | L114: 41.1 | M114: 22.16753
A115: 105 | B115: COLPAL | C115: 1547.2 | D115: 1548.75 | E115: 1538.40 | F115: 1529.60 | G115: 1519.25 | H115: 1557.55 | I115: 1567.90 | J115: 1576.70 | K115: 1559.1 | L115: 1539.95 | M115: 6.01227
A116: 106 | B116: CONCOR | C116: 575.4 | D116: 576.83 | E116: 570.72 | F116: 566.03 | G116: 559.92 | H116: 581.52 | I116: 587.63 | J116: 592.32 | K116: 582.95 | L116: 572.15 | M116: 7.71324
A117: 107 | B117: COROMANDEL | C117: 476.05 | D117: 475.28 | E117: 470.87 | F117: 465.68 | G117: 461.27 | H117: 480.47 | I117: 484.88 | J117: 490.07 | K117: 479.7 | L117: 470.1 | M117: 1.40098
A118: 108 | B118: CORPBANK | C118: 15.75 | D118: 15.83 | E118: 15.47 | F118: 15.18 | G118: 14.82 | H118: 16.12 | I118: 16.48 | J118: 16.77 | K118: 16.2 | L118: 15.55 | M118: 2.23318
A119: 109 | B119: COX&KINGS | C119: 1.6 | D119: 1.63 | E119: 1.57 | F119: 1.53 | G119: 1.47 | H119: 1.67 | I119: 1.73 | J119: 1.77 | K119: 1.7 | L119: 1.6 | M119: 56.22929
A120: 110 | B120: CREDITACC | C120: 732.4 | D120: 731.22 | E120: 710.43 | F120: 688.47 | G120: 667.68 | H120: 753.18 | I120: 773.97 | J120: 795.93 | K120: 752 | L120: 709.25 | M120: 1.06485
A121: 111 | B121: CROMPTON | C121: 260.25 | D121: 260.10 | E121: 256.70 | F121: 253.15 | G121: 249.75 | H121: 263.65 | I121: 267.05 | J121: 270.60 | K121: 263.5 | L121: 256.55 | M121: 4.73633
A122: 112 | B122: CUMMINSIND | C122: 560.4 | D122: 560.77 | E122: 552.33 | F122: 544.27 | G122: 535.83 | H122: 568.83 | I122: 577.27 | J122: 585.33 | K122: 569.2 | L122: 552.7 | M122: 2.56669
A123: 113 | B123: CYIENT | C123: 399.7 | D123: 398.13 | E123: 387.27 | F123: 374.83 | G123: 363.97 | H123: 410.57 | I123: 421.43 | J123: 433.87 | K123: 409 | L123: 385.7 | M123: 1.68702
A124: 114 | B124: DBCORP | C124: 143.1 | D124: 142.75 | E124: 141.50 | F124: 139.90 | G124: 138.65 | H124: 144.35 | I124: 145.60 | J124: 147.20 | K124: 144 | L124: 141.15 | M124: 0.18903
A125: 115 | B125: DCBBANK | C125: 182.65 | D125: 182.08 | E125: 180.57 | F125: 178.48 | G125: 176.97 | H125: 184.17 | I125: 185.68 | J125: 187.77 | K125: 183.6 | L125: 180 | M125: 2.2798
A126: 116 | B126: DCMSHRIRAM | C126: 318.15 | D126: 320.85 | E126: 314.35 | F126: 310.55 | G126: 304.05 | H126: 324.65 | I126: 331.15 | J126: 334.95 | K126: 327.35 | L126: 317.05 | M126: 0.42404
A127: 117 | B127: DLF | C127: 208.9 | D127: 207.08 | E127: 204.32 | F127: 199.73 | G127: 196.97 | H127: 211.67 | I127: 214.43 | J127: 219.02 | K127: 209.85 | L127: 202.5 | M127: 132.44986
A128: 118 | B128: DABUR | C128: 462.55 | D128: 462.10 | E128: 455.45 | F128: 448.35 | G128: 441.70 | H128: 469.20 | I128: 475.85 | J128: 482.95 | K128: 468.75 | L128: 455 | M128: 15.9302
A129: 119 | B129: DALBHARAT | C129: 829.85 | D129: 829.82 | E129: 817.93 | F129: 806.02 | G129: 794.13 | H129: 841.73 | I129: 853.62 | J129: 865.53 | K129: 841.7 | L129: 817.9 | M129: 1.46853
A130: 120 | B130: DEEPAKNTR | C130: 356.95 | D130: 357.57 | E130: 351.13 | F130: 345.32 | G130: 338.88 | H130: 363.38 | I130: 369.82 | J130: 375.63 | K130: 364 | L130: 351.75 | M130: 2.4282
A131: 121 | B131: DELTACORP | C131: 189.85 | D131: 191.12 | E131: 186.23 | F131: 182.62 | G131: 177.73 | H131: 194.73 | I131: 199.62 | J131: 203.23 | K131: 196 | L131: 187.5 | M131: 6.15621
A132: 122 | B132: DEN | C132: 41 | D132: 42.18 | E132: 39.77 | F132: 38.53 | G132: 36.12 | H132: 43.42 | I132: 45.83 | J132: 47.07 | K132: 44.6 | L132: 40.95 | M132: 0.75908
A133: 123 | B133: DHFL | C133: 24.4 | D133: 25.23 | E133: 23.57 | F133: 22.73 | G133: 21.07 | H133: 26.07 | I133: 27.73 | J133: 28.57 | K133: 26.9 | L133: 24.4 | M133: 77.11603
A134: 124 | B134: DBL | C134: 397.9 | D134: 401.63 | E134: 391.27 | F134: 384.63 | G134: 374.27 | H134: 408.27 | I134: 418.63 | J134: 425.27 | K134: 412 | L134: 395 | M134: 2.49356
A135: 125 | B135: DISHTV | C135: 13.4 | D135: 13.47 | E135: 12.73 | F135: 12.07 | G135: 11.33 | H135: 14.13 | I135: 14.87 | J135: 15.53 | K135: 14.2 | L135: 12.8 | M135: 552.51745
A136: 126 | B136: DCAL | C136: 123.65 | D136: 122.73 | E136: 120.67 | F136: 117.68 | G136: 115.62 | H136: 125.72 | I136: 127.78 | J136: 130.77 | K136: 124.8 | L136: 119.75 | M136: 2.30855
A137: 127 | B137: DIVISLAB | C137: 1656.5 | D137: 1664.88 | E137: 1635.07 | F137: 1613.63 | G137: 1583.82 | H137: 1686.32 | I137: 1716.13 | J137: 1737.57 | K137: 1694.7 | L137: 1643.45 | M137: 8.92696
A138: 128 | B138: DIXON | C138: 3263.15 | D138: 3224.58 | E138: 3089.57 | F138: 2915.98 | G138: 2780.97 | H138: 3398.17 | I138: 3533.18 | J138: 3706.77 | K138: 3359.6 | L138: 3051 | M138: 3.84991
A139: 129 | B139: LALPATHLAB | C139: 1588.2 | D139: 1565.17 | E139: 1530.33 | F139: 1472.47 | G139: 1437.63 | H139: 1623.03 | I139: 1657.87 | J139: 1715.73 | K139: 1600 | L139: 1507.3 | M139: 3.19834
A140: 130 | B140: DRREDDY | C140: 2734.05 | D140: 2745.45 | E140: 2713.55 | F140: 2693.05 | G140: 2661.15 | H140: 2765.95 | I140: 2797.85 | J140: 2818.35 | K140: 2777.35 | L140: 2724.95 | M140: 6.48568
A141: 131 | B141: EIDPARRY | C141: 187.85 | D141: 189.95 | E141: 181.90 | F141: 175.95 | G141: 167.90 | H141: 195.90 | I141: 203.95 | J141: 209.90 | K141: 198 | L141: 184 | M141: 8.83347
A142: 132 | B142: EIHOTEL | C142: 150.9 | D142: 150.48 | E142: 148.67 | F142: 146.43 | G142: 144.62 | H142: 152.72 | I142: 154.53 | J142: 156.77 | K142: 152.3 | L142: 148.25 | M142: 3.03369
A143: 133 | B143: EDELWEISS | C143: 128.25 | D143: 124.18 | E143: 120.12 | F143: 111.98 | G143: 107.92 | H143: 132.32 | I143: 136.38 | J143: 144.52 | K143: 128.25 | L143: 116.05 | M143: 41.69234
A144: 134 | B144: EICHERMOT | C144: 21558.15 | D144: 21546.05 | E144: 21367.10 | F144: 21176.05 | G144: 20997.10 | H144: 21737.10 | I144: 21916.05 | J144: 22107.10 | K144: 21725 | L144: 21355 | M144: 0.98083
A145: 135 | B145: ELGIEQUIP | C145: 261.95 | D145: 261.32 | E145: 258.63 | F145: 255.32 | G145: 252.63 | H145: 264.63 | I145: 267.32 | J145: 270.63 | K145: 264 | L145: 258 | M145: 0.1082
A146: 136 | B146: EMAMILTD | C146: 319 | D146: 320.67 | E146: 315.18 | F146: 311.37 | G146: 305.88 | H146: 324.48 | I146: 329.97 | J146: 333.78 | K146: 326.15 | L146: 316.85 | M146: 0.99153
A147: 137 | B147: ENDURANCE | C147: 1058.2 | D147: 1067.08 | E147: 1042.22 | F147: 1026.23 | G147: 1001.37 | H147: 1083.07 | I147: 1107.93 | J147: 1123.92 | K147: 1091.95 | L147: 1051.1 | M147: 0.05616
A148: 138 | B148: ENGINERSIN | C148: 104.15 | D148: 103.72 | E148: 101.93 | F148: 99.72 | G148: 97.93 | H148: 105.93 | I148: 107.72 | J148: 109.93 | K148: 105.5 | L148: 101.5 | M148: 20.54131
A149: 139 | B149: EQUITAS | C149: 84.6 | D149: 84.52 | E149: 82.58 | F149: 80.57 | G149: 78.63 | H149: 86.53 | I149: 88.47 | J149: 90.48 | K149: 86.45 | L149: 82.5 | M149: 44.89035
A150: 140 | B150: ERIS | C150: 415 | D150: 413.50 | E150: 409.10 | F150: 403.20 | G150: 398.80 | H150: 419.40 | I150: 423.80 | J150: 429.70 | K150: 417.9 | L150: 407.6 | M150: 3.40841
A151: 141 | B151: ESCORTS | C151: 651.9 | D151: 650.65 | E151: 644.35 | F151: 636.80 | G151: 630.50 | H151: 658.20 | I151: 664.50 | J151: 672.05 | K151: 656.95 | L151: 643.1 | M151: 15.79736
A152: 142 | B152: ESSELPACK | C152: 138.95 | D152: 137.62 | E152: 133.23 | F152: 127.52 | G152: 123.13 | H152: 143.33 | I152: 147.72 | J152: 153.43 | K152: 142 | L152: 131.9 | M152: 1.80802
A153: 143 | B153: EXIDEIND | C153: 190.7 | D153: 189.83 | E153: 188.22 | F153: 185.73 | G153: 184.12 | H153: 192.32 | I153: 193.93 | J153: 196.42 | K153: 191.45 | L153: 187.35 | M153: 16.49089
A154: 144 | B154: FDC | C154: 182 | D154: 180.85 | E154: 176.70 | F154: 171.40 | G154: 167.25 | H154: 186.15 | I154: 190.30 | J154: 195.60 | K154: 185 | L154: 175.55 | M154: 1.02832
A155: 145 | B155: FEDERALBNK | C155: 84.5 | D155: 83.98 | E155: 82.77 | F155: 81.03 | G155: 79.82 | H155: 85.72 | I155: 86.93 | J155: 88.67 | K155: 85.2 | L155: 82.25 | M155: 117.20303
A156: 146 | B156: FMGOETZE | C156: 583.8 | D156: 586.58 | E156: 578.47 | F156: 573.13 | G156: 565.02 | H156: 591.92 | I156: 600.03 | J156: 605.37 | K156: 594.7 | L156: 581.25 | M156: 0.07868
A157: 147 | B157: FINEORG | C157: 1926 | D157: 2001.33 | E157: 1814.67 | F157: 1703.33 | G157: 1516.67 | H157: 2112.67 | I157: 2299.33 | J157: 2410.67 | K157: 2188 | L157: 1890 | M157: 1.1196
A158: 148 | B158: FINCABLES | C158: 360.05 | D158: 361.22 | E158: 352.93 | F158: 345.82 | G158: 337.53 | H158: 368.33 | I158: 376.62 | J158: 383.73 | K158: 369.5 | L158: 354.1 | M158: 1.24166
A159: 149 | B159: FINPIPE | C159: 575.2 | D159: 578.13 | E159: 571.12 | F159: 567.03 | G159: 560.02 | H159: 582.22 | I159: 589.23 | J159: 593.32 | K159: 585.15 | L159: 574.05 | M159: 0.40373
A160: 150 | B160: FSL | C160: 40.75 | D160: 41.30 | E160: 40.05 | F160: 39.35 | G160: 38.10 | H160: 42.00 | I160: 43.25 | J160: 43.95 | K160: 42.55 | L160: 40.6 | M160: 18.27463
A161: 151 | B161: FORTIS | C161: 156.2 | D161: 157.03 | E161: 154.37 | F161: 152.53 | G161: 149.87 | H161: 158.87 | I161: 161.53 | J161: 163.37 | K161: 159.7 | L161: 155.2 | M161: 30.9707
A162: 152 | B162: FCONSUMER | C162: 23.55 | D162: 23.70 | E162: 22.90 | F162: 22.25 | G162: 21.45 | H162: 24.35 | I162: 25.15 | J162: 25.80 | K162: 24.5 | L162: 23.05 | M162: 13.75467
A163: 153 | B163: FLFL | C163: 395.05 | D163: 395.02 | E163: 390.03 | F163: 385.02 | G163: 380.03 | H163: 400.03 | I163: 405.02 | J163: 410.03 | K163: 400 | L163: 390 | M163: 0.25672
A164: 154 | B164: FRETAIL | C164: 344.45 | D164: 346.15 | E164: 339.65 | F164: 334.85 | G164: 328.35 | H164: 350.95 | I164: 357.45 | J164: 362.25 | K164: 352.65 | L164: 341.35 | M164: 3.46063
A165: 155 | B165: GAIL | C165: 121.8 | D165: 122.13 | E165: 119.27 | F165: 116.73 | G165: 113.87 | H165: 124.67 | I165: 127.53 | J165: 130.07 | K165: 125 | L165: 119.6 | M165: 228.33339
A166: 156 | B166: GEPIL | C166: 679.95 | D166: 679.18 | E166: 670.37 | F166: 660.78 | G166: 651.97 | H166: 688.77 | I166: 697.58 | J166: 707.17 | K166: 688 | L166: 669.6 | M166: 0.16159
A167: 157 | B167: GET&D | C167: 177.45 | D167: 179.18 | E167: 174.37 | F167: 171.28 | G167: 166.47 | H167: 182.27 | I167: 187.08 | J167: 190.17 | K167: 184 | L167: 176.1 | M167: 0.31311
A168: 158 | B168: GHCL | C168: 207.65 | D168: 207.08 | E168: 205.67 | F168: 203.68 | G168: 202.27 | H168: 209.07 | I168: 210.48 | J168: 212.47 | K168: 208.5 | L168: 205.1 | M168: 1.60974
A169: 159 | B169: GMRINFRA | C169: 21 | D169: 21.03 | E169: 20.62 | F169: 20.23 | G169: 19.82 | H169: 21.42 | I169: 21.83 | J169: 22.22 | K169: 21.45 | L169: 20.65 | M169: 160.02361
A170: 160 | B170: GALAXYSURF | C170: 1544.5 | D170: 1531.48 | E170: 1513.02 | F170: 1481.53 | G170: 1463.07 | H170: 1562.97 | I170: 1581.43 | J170: 1612.92 | K170: 1549.95 | L170: 1500 | M170: 0.50856
A171: 161 | B171: GARFIBRES | C171: 1150.9 | D171: 1154.22 | E171: 1094.63 | F171: 1038.37 | G171: 978.78 | H171: 1210.48 | I171: 1270.07 | J171: 1326.33 | K171: 1213.8 | L171: 1097.95 | M171: 0.41352
A172: 162 | B172: GAYAPROJ | C172: 96.75 | D172: 94.45 | E172: 91.40 | F172: 86.05 | G172: 83.00 | H172: 99.80 | I172: 102.85 | J172: 108.20 | K172: 97.5 | L172: 89.1 | M172: 0.9513
A173: 163 | B173: GICRE | C173: 268.3 | D173: 273.00 | E173: 261.30 | F173: 254.30 | G173: 242.60 | H173: 280.00 | I173: 291.70 | J173: 298.70 | K173: 284.7 | L173: 266 | M173: 6.61519
A174: 164 | B174: GILLETTE | C174: 7161.35 | D174: 7193.12 | E174: 7118.23 | F174: 7075.12 | G174: 7000.23 | H174: 7236.23 | I174: 7311.12 | J174: 7354.23 | K174: 7268 | L174: 7150 | M174: 0.03097
A175: 165 | B175: GLAXO | C175: 1601.25 | D175: 1602.08 | E175: 1589.17 | F175: 1577.08 | G175: 1564.17 | H175: 1614.17 | I175: 1627.08 | J175: 1639.17 | K175: 1615 | L175: 1590 | M175: 0.39755
A176: 166 | B176: GLENMARK | C176: 282.05 | D176: 278.08 | E176: 271.22 | F176: 260.38 | G176: 253.52 | H176: 288.92 | I176: 295.78 | J176: 306.62 | K176: 284.95 | L176: 267.25 | M176: 32.44792
A177: 167 | B177: GODFRYPHLP | C177: 1262 | D177: 1227.37 | E177: 1154.73 | F177: 1047.47 | G177: 974.83 | H177: 1334.63 | I177: 1407.27 | J177: 1514.53 | K177: 1300 | L177: 1120.1 | M177: 9.50394
A178: 168 | B178: GODREJAGRO | C178: 474.4 | D178: 476.38 | E178: 471.02 | F178: 467.63 | G178: 462.27 | H178: 479.77 | I178: 485.13 | J178: 488.52 | K178: 481.75 | L178: 473 | M178: 0.39278
A179: 169 | B179: GODREJCP | C179: 715.45 | D179: 718.05 | E179: 710.35 | F179: 705.25 | G179: 697.55 | H179: 723.15 | I179: 730.85 | J179: 735.95 | K179: 725.75 | L179: 712.95 | M179: 4.78181
A180: 170 | B180: GODREJIND | C180: 438.9 | D180: 437.02 | E180: 431.88 | F180: 424.87 | G180: 419.73 | H180: 444.03 | I180: 449.17 | J180: 456.18 | K180: 442.15 | L180: 430 | M180: 1.34834
A181: 171 | B181: GODREJPROP | C181: 919.7 | D181: 924.35 | E181: 907.35 | F181: 895.00 | G181: 878.00 | H181: 936.70 | I181: 953.70 | J181: 966.05 | K181: 941.35 | L181: 912 | M181: 2.00113
A182: 172 | B182: GRANULES | C182: 124 | D182: 122.37 | E182: 119.73 | F182: 115.47 | G182: 112.83 | H182: 126.63 | I182: 129.27 | J182: 133.53 | K182: 125 | L182: 118.1 | M182: 13.10083
A183: 173 | B183: GRAPHITE | C183: 304.7 | D183: 304.48 | E183: 298.57 | F183: 292.43 | G183: 286.52 | H183: 310.62 | I183: 316.53 | J183: 322.67 | K183: 310.4 | L183: 298.35 | M183: 20.13468
A184: 174 | B184: GRASIM | C184: 733.95 | D184: 734.27 | E184: 711.68 | F184: 689.42 | G184: 666.83 | H184: 756.53 | I184: 779.12 | J184: 801.38 | K184: 756.85 | L184: 712 | M184: 42.63295
A185: 175 | B185: GESHIP | C185: 301.9 | D185: 301.80 | E185: 300.65 | F185: 299.40 | G185: 298.25 | H185: 303.05 | I185: 304.20 | J185: 305.45 | K185: 302.95 | L185: 300.55 | M185: 0.48632
A186: 176 | B186: GREAVESCOT | C186: 139.55 | D186: 138.30 | E186: 136.70 | F186: 133.85 | G186: 132.25 | H186: 141.15 | I186: 142.75 | J186: 145.60 | K186: 139.9 | L186: 135.45 | M186: 2.76893
A187: 177 | B187: GRINDWELL | C187: 598.35 | D187: 596.12 | E187: 590.28 | F187: 582.22 | G187: 576.38 | H187: 604.18 | I187: 610.02 | J187: 618.08 | K187: 601.95 | L187: 588.05 | M187: 0.09584
A188: 178 | B188: GUJALKALI | C188: 414.5 | D188: 413.97 | E188: 410.03 | F188: 405.57 | G188: 401.63 | H188: 418.43 | I188: 422.37 | J188: 426.83 | K188: 417.9 | L188: 409.5 | M188: 0.29695
A189: 179 | B189: GUJGASLTD | C189: 196.7 | D189: 197.72 | E189: 195.08 | F189: 193.47 | G189: 190.83 | H189: 199.33 | I189: 201.97 | J189: 203.58 | K189: 200.35 | L189: 196.1 | M189: 2.44152
A190: 180 | B190: GMDCLTD | C190: 58.95 | D190: 59.87 | E190: 57.78 | F190: 56.62 | G190: 54.53 | H190: 61.03 | I190: 63.12 | J190: 64.28 | K190: 61.95 | L190: 58.7 | M190: 2.81242
A191: 181 | B191: GNFC | C191: 193.2 | D191: 194.18 | E191: 191.27 | F191: 189.33 | G191: 186.42 | H191: 196.12 | I191: 199.03 | J191: 200.97 | K191: 197.1 | L191: 192.25 | M191: 1.95636
A192: 182 | B192: GPPL | C192: 84.75 | D192: 84.05 | E192: 82.30 | F192: 79.85 | G192: 78.10 | H192: 86.50 | I192: 88.25 | J192: 90.70 | K192: 85.8 | L192: 81.6 | M192: 2.18611
A193: 183 | B193: GSFC | C193: 72.45 | D193: 72.88 | E193: 71.82 | F193: 71.18 | G193: 70.12 | H193: 73.52 | I193: 74.58 | J193: 75.22 | K193: 73.95 | L193: 72.25 | M193: 3.08989
A194: 184 | B194: GSPL | C194: 217.5 | D194: 217.85 | E194: 215.75 | F194: 214.00 | G194: 211.90 | H194: 219.60 | I194: 221.70 | J194: 223.45 | K194: 219.95 | L194: 216.1 | M194: 3.67386
A195: 185 | B195: GULFOILLUB | C195: 836.45 | D195: 830.88 | E195: 816.77 | F195: 797.08 | G195: 782.97 | H195: 850.57 | I195: 864.68 | J195: 884.37 | K195: 845 | L195: 811.2 | M195: 0.04389
A196: 186 | B196: HEG | C196: 1064.75 | D196: 1055.48 | E196: 1032.87 | F196: 1000.98 | G196: 978.37 | H196: 1087.37 | I196: 1109.98 | J196: 1141.87 | K196: 1078.1 | L196: 1023.6 | M196: 6.75093
A197: 187 | B197: HCLTECH | C197: 1147.8 | D197: 1146.77 | E197: 1136.13 | F197: 1124.47 | G197: 1113.83 | H197: 1158.43 | I197: 1169.07 | J197: 1180.73 | K197: 1157.4 | L197: 1135.1 | M197: 12.70462
A198: 188 | B198: HDFCAMC | C198: 3604 | D198: 3638.35 | E198: 3502.70 | F198: 3401.40 | G198: 3265.75 | H198: 3739.65 | I198: 3875.30 | J198: 3976.60 | K198: 3774 | L198: 3537.05 | M198: 15.8536
A199: 189 | B199: HDFCBANK | C199: 1273.9 | D199: 1269.37 | E199: 1261.73 | F199: 1249.57 | G199: 1241.93 | H199: 1281.53 | I199: 1289.17 | J199: 1301.33 | K199: 1277 | L199: 1257.2 | M199: 55.27609
A200: 190 | B200: HDFCLIFE | C200: 586.35 | D200: 587.58 | E200: 580.27 | F200: 574.18 | G200: 566.87 | H200: 593.67 | I200: 600.98 | J200: 607.07 | K200: 594.9 | L200: 581.5 | M200: 26.63642
A201: 191 | B201: HATHWAY | C201: 20.2 | D201: 20.20 | E201: 20.05 | F201: 19.90 | G201: 19.75 | H201: 20.35 | I201: 20.50 | J201: 20.65 | K201: 20.35 | L201: 20.05 | M201: 0.8747
A202: 192 | B202: HATSUN | C202: 589.15 | D202: 591.40 | E202: 582.75 | F202: 576.35 | G202: 567.70 | H202: 597.80 | I202: 606.45 | J202: 612.85 | K202: 600.05 | L202: 585 | M202: 0.0489
A203: 193 | B203: HAVELLS | C203: 672.2 | D203: 674.63 | E203: 665.72 | F203: 659.23 | G203: 650.32 | H203: 681.12 | I203: 690.03 | J203: 696.52 | K203: 683.55 | L203: 668.15 | M203: 9.75688
A204: 194 | B204: HEIDELBERG | C204: 187.55 | D204: 188.10 | E204: 185.95 | F204: 184.35 | G204: 182.20 | H204: 189.70 | I204: 191.85 | J204: 193.45 | K204: 190.25 | L204: 186.5 | M204: 1.03001
A205: 195 | B205: HERITGFOOD | C205: 324.8 | D205: 324.63 | E205: 317.27 | F205: 309.73 | G205: 302.37 | H205: 332.17 | I205: 339.53 | J205: 347.07 | K205: 332 | L205: 317.1 | M205: 0.30197
A206: 196 | B206: HEROMOTOCO | C206: 2591.65 | D206: 2592.27 | E206: 2576.38 | F206: 2561.12 | G206: 2545.23 | H206: 2607.53 | I206: 2623.42 | J206: 2638.68 | K206: 2608.15 | L206: 2577 | M206: 4.6117
... 320 more rows

Sheet Bulk Deals
E6: Back To Main Page
A7: Subject : | B7: BULK DEAL | D7: =Main!B10 -> 2019-11-15
A9: Date | B9: Scrip code | C9: Scrip Name | D9: Client Name | E9: Buy / Sell | F9: Quantity Traded | G9: Trade Price / Wt.Avg.trade price | H9: Exchange
A10: 2019-11-14 | B10: 532172 | C10: ADROITINFO | D10: SUDHAKIRAN REDDY SUNKERNENI | E10: BUY | F10: 160,000 | G10: 8.19 | H10: BSE
A11: 2019-11-14 | B11: 532172 | C11: ADROITINFO | D11: JOKEMAN MEDIA AND ENTERTAINMENT PRIVATE LIMITED | E11: SELL | F11: 160,000 | G11: 8.19 | H11: BSE
A12: 2019-11-14 | B12: 539872 | C12: BAJAJHCARE | D12: SHASHANK PRAVINCHANDRA DOSHI | E12: BUY | F12: 97,200 | G12: 172 | H12: BSE
A13: 2019-11-14 | B13: 539660 | C13: BESTAGRO | D13: RESONANCE OPPORTUNITIES FUND | E13: BUY | F13: 50,000 | G13: 264.19 | H13: BSE
A14: 2019-11-14 | B14: 532413 | C14: CEREBRAINT | D14: NOMURA SINGAPORE LIMITED | E14: BUY | F14: 1,699,000 | G14: 18.5 | H14: BSE
A15: 2019-11-14 | B15: 507515 | C15: CJGEL | D15: JASPAL RAGHUBIR SINGH | E15: BUY | F15: 40,000 | G15: 8.21 | H15: BSE
A16: 2019-11-14 | B16: 507515 | C16: CJGEL | D16: USHA PANDE | E16: SELL | F16: 41,374 | G16: 8.22 | H16: BSE
A17: 2019-11-14 | B17: 533144 | C17: COX&KINGS | D17: ALPHA LEON ENTERPRISES LLP | E17: BUY | F17: 1,439,006 | G17: 1.50 | H17: BSE
A18: 2019-11-14 | B18: 533144 | C18: COX&KINGS | D18: ALPHA LEON ENTERPRISES LLP | E18: SELL | F18: 925,546 | G18: 1.52 | H18: BSE
A19: 2019-11-14 | B19: 539527 | C19: CREATIVE | D19: KHANDWALA SECURITIES LIMITED | E19: BUY | F19: 7,850 | G19: 365.00 | H19: BSE
A20: 2019-11-14 | B20: 539527 | C20: CREATIVE | D20: KHANDWALA COMMODITY AND DERIVATIVES PVT. LTD. . | E20: SELL | F20: 7,850 | G20: 365 | H20: BSE
A21: 2019-11-14 | B21: 539770 | C21: DARJEELING | D21: HIMANSHU SHAH | E21: SELL | F21: 31,000 | G21: 92.21 | H21: BSE
A22: 2019-11-14 | B22: 539770 | C22: DARJEELING | D22: DEEPAK MALL | E22: BUY | F22: 20,000 | G22: 92.20 | H22: BSE
A23: 2019-11-14 | B23: 542446 | C23: JONJUA | D23: USHA BAID | E23: SELL | F23: 72,800 | G23: 39.92 | H23: BSE
A24: 2019-11-14 | B24: 542446 | C24: JONJUA | D24: VIKASH KUMAR GUPTA | E24: BUY | F24: 31,200 | G24: 39.40 | H24: BSE
A25: 2019-11-14 | B25: 542446 | C25: JONJUA | D25: VIKASH KUMAR GUPTA | E25: SELL | F25: 31,200 | G25: 39.35 | H25: BSE
A26: 2019-11-14 | B26: 542446 | C26: JONJUA | D26: RAMNATH SHARMA | E26: BUY | F26: 31,200 | G26: 38.90 | H26: BSE
A27: 2019-11-14 | B27: 542446 | C27: JONJUA | D27: RAMNATH SHARMA | E27: SELL | F27: 31,200 | G27: 38.78 | H27: BSE
A28: 2019-11-14 | B28: 540937 | C28: MEDICO | D28: OVERSKUD MULTI ASSET MANAGEMENT PRIVATE LIMITED | E28: SELL | F28: 21,600 | G28: 87.75 | H28: BSE
A29: 2019-11-14 | B29: 509040 | C29: NETLINK | D29: KINNARI MITESH GOTHI | E29: SELL | F29: 19,100 | G29: 14.7 | H29: BSE
A30: 2019-11-14 | B30: 509040 | C30: NETLINK | D30: ADITYA FINCAP PRIVATE LTD. | E30: BUY | F30: 25,723 | G30: 14.69 | H30: BSE
A31: 2019-11-14 | B31: 539551 | C31: NH | D31: NTASIAN DISCOVERY MASTER FUND | E31: BUY | F31: 1,332,172 | G31: 285 | H31: BSE
A32: 2019-11-14 | B32: 539551 | C32: NH | D32: AMBADEVI MAURITIUS HOLDING LIMITED | E32: SELL | F32: 1,527,453 | G32: 285.13 | H32: BSE
A33: 2019-11-14 | B33: 539551 | C33: NH | D33: ASHOKA INVESTMENT HOLDINGS LIMITED | E33: SELL | F33: 5,092,185 | G33: 285 | H33: BSE
A34: 2019-11-14 | B34: 539551 | C34: NH | D34: ADITYA BIRLA SUN LIFE SMALL CAP FUND | E34: BUY | F34: 1,107,700 | G34: 285 | H34: BSE
A35: 2019-11-14 | B35: 512217 | C35: PRISMMEDI | D35: AMIT KUMAR JAISWAL | E35: BUY | F35: 40,000 | G35: 23.98 | H35: BSE
A36: 2019-11-14 | B36: 512217 | C36: PRISMMEDI | D36: MANISH NITIN THAKUR | E36: BUY | F36: 28,942 | G36: 24.67 | H36: BSE
A37: 2019-11-14 | B37: 512217 | C37: PRISMMEDI | D37: MANISH NITIN THAKUR | E37: SELL | F37: 39,547 | G37: 24.55 | H37: BSE
A38: 2019-11-14 | B38: 542725 | C38: SBC | D38: RIYAJ KHAN | E38: BUY | F38: 108,000 | G38: 25.6 | H38: BSE
A39: 2019-11-14 | B39: 542725 | C39: SBC | D39: RIYAJ KHAN | E39: SELL | F39: 60,000 | G39: 25.62 | H39: BSE
A40: 2019-11-14 | B40: 542725 | C40: SBC | D40: SANDEEP KUMAR SRIVASTAVA | E40: BUY | F40: 66,000 | G40: 25.62 | H40: BSE
A41: 2019-11-14 | B41: 542725 | C41: SBC | D41: SANDEEP KUMAR SRIVASTAVA | E41: SELL | F41: 6,000 | G41: 25.65 | H41: BSE
A42: 2019-11-14 | B42: 542725 | C42: SBC | D42: SWETA AGRAWAL | E42: SELL | F42: 78,000 | G42: 25.59 | H42: BSE
A43: 2019-11-14 | B43: 540736 | C43: SIDDH | D43: TEJAL GUNVANT SHETH | E43: BUY | F43: 60,000 | G43: 25 | H43: BSE
A44: 2019-11-14 | B44: 513713 | C44: WHITEORG | D44: BHOGILAL MAVJI VORA | E44: SELL | F44: 300,000 | G44: 10.5 | H44: BSE
A45: 2019-11-14 | B45: CEREBRAINT | C45: Cerebra Int Tech Ltd | D45: VALEO GLOBAL FUND | E45: BUY | F45: 2,100,000 | G45: 19 | H45: NSE
A46: 2019-11-14 | B46: CEREBRAINT | C46: Cerebra Int Tech Ltd | D46: KUBER INDIA FUND | E46: BUY | F46: 1,200,000 | G46: 19 | H46: NSE
A47: 2019-11-14 | B47: CEREBRAINT | C47: Cerebra Int Tech Ltd | D47: NOMURA SINGAPORE LIMITED | E47: BUY | F47: 1,054,239 | G47: 19 | H47: NSE
A48: 2019-11-14 | B48: IBULHSGFIN | C48: Indiabulls Hsg Fin Ltd | D48: TOWER RESEARCH CAPITAL MARKETS INDIA PRIVATE LIMITED | E48: BUY | F48: 3,918,838 | G48: 214.56 | H48: NSE
A49: 2019-11-14 | B49: IBULHSGFIN | C49: Indiabulls Hsg Fin Ltd | D49: SURJECTIVE RESEARCH CAPITAL LLP | E49: BUY | F49: 2,316,975 | G49: 214.45 | H49: NSE
A50: 2019-11-14 | B50: KHFM | C50: KHFM Hos Fac Mana Ser Ltd | D50: INDIAPRIDE ADVISORY PRIVATE LIMITED | E50: BUY | F50: 60,000 | G50: 26.45 | H50: NSE
A51: 2019-11-14 | B51: RMCL | C51: Radha Madhav Corporation | D51: HESHIKA GROWTH FUND | E51: BUY | F51: 550,000 | G51: 3.6 | H51: NSE
A52: 2019-11-14 | B52: SANCO | C52: Sanco Industries Ltd. | D52: RESOURCE OPZIONE CONSULTANCY PRIVATE LIMITED | E52: BUY | F52: 28,332 | G52: 16.1 | H52: NSE
A53: 2019-11-14 | B53: SANCO | C53: Sanco Industries Ltd. | D53: BHAMINI KAMAL PAREKH | E53: BUY | F53: 87,762 | G53: 16.1 | H53: NSE
A54: 2019-11-14 | B54: SINTEX | C54: Sintex Industries Ltd. | D54: CHETAN RASIKLAL SHAH | E54: BUY | F54: 250,000 | G54: 0.7 | H54: NSE
A55: 2019-11-14 | B55: SINTEX | C55: Sintex Industries Ltd. | D55: SETU SECURITIES PVT LTD | E55: BUY | F55: 2,500,020 | G55: 0.7 | H55: NSE
A56: 2019-11-14 | B56: SINTEX | C56: Sintex Industries Ltd. | D56: ALPHA LEON ENTERPRISES LLP | E56: BUY | F56: 2,526,328 | G56: 0.8 | H56: NSE
A57: 2019-11-14 | B57: SINTEX | C57: Sintex Industries Ltd. | D57: TANISH TRADEFIN LLP | E57: BUY | F57: 2,685,761 | G57: 0.75 | H57: NSE
A58: 2019-11-14 | B58: SINTEX | C58: Sintex Industries Ltd. | D58: SUPREME STOCKS PRIVATE LIMITED | E58: BUY | F58: 3,900,000 | G58: 0.77 | H58: NSE
A59: 2019-11-14 | B59: SINTEX | C59: Sintex Industries Ltd. | D59: ASHWIN STOCKS AND INVESTMENT PRIVATE LIMITED | E59: BUY | F59: 3,500,000 | G59: 0.76 | H59: NSE
A60: 2019-11-14 | B60: SPTL | C60: Sintex Plastics Tech Ltd | D60: ALPHA LEON ENTERPRISES LLP | E60: BUY | F60: 6,000,012 | G60: 1.32 | H60: NSE
A61: 2019-11-14 | B61: VADILALIND | C61: Vadilal Industries Ltd | D61: ARKAYA INVESTMENTS | E61: BUY | F61: 58,010 | G61: 790.61 | H61: NSE
A62: 2019-11-14 | B62: YESBANK | C62: Yes Bank Limited | D62: TOWER RESEARCH CAPITAL MARKETS INDIA PRIVATE LIMITED | E62: BUY | F62: 17,493,741 | G62: 69.16 | H62: NSE
A63: 2019-11-14 | B63: CEREBRAINT | C63: Cerebra Int Tech Ltd | D63: HANURANG PROJECTS PRIVATE LIMITED | E63: SELL | F63: 900,000 | G63: 19 | H63: NSE
A64: 2019-11-14 | B64: CEREBRAINT | C64: Cerebra Int Tech Ltd | D64: SILVER STALLION LIMITED | E64: SELL | F64: 2753239 | G64: 19 | H64: NSE
A65: 2019-11-14 | B65: IBULHSGFIN | C65: Indiabulls Hsg Fin Ltd | D65: SURJECTIVE RESEARCH CAPITAL LLP | E65: SELL | F65: 2314659 | G65: 214.45 | H65: NSE
A66: 2019-11-14 | B66: IBULHSGFIN | C66: Indiabulls Hsg Fin Ltd | D66: TOWER RESEARCH CAPITAL MARKETS INDIA PRIVATE LIMITED | E66: SELL | F66: 3757203 | G66: 214.71 | H66: NSE
A67: 2019-11-14 | B67: KHFM | C67: KHFM Hos Fac Mana Ser Ltd | D67: SANJAY KUMAR SINGH | E67: SELL | F67: 60000 | G67: 26.18 | H67: NSE
A68: 2019-11-14 | B68: RMCL | C68: Radha Madhav Corporation | D68: AUCTOR INVESTMENTS LIMITED | E68: SELL | F68: 550000 | G68: 3.6 | H68: NSE
A69: 2019-11-14 | B69: SANCO | C69: Sanco Industries Ltd. | D69: RESOURCE OPZIONE CONSULTANCY PRIVATE LIMITED | E69: SELL | F69: 69800 | G69: 16.1 | H69: NSE
A70: 2019-11-14 | B70: SINTEX | C70: Sintex Industries Ltd. | D70: TANISH TRADEFIN LLP | E70: SELL | F70: 4685762 | G70: 0.75 | H70: NSE
A71: 2019-11-14 | B71: SINTEX | C71: Sintex Industries Ltd. | D71: SUPREME STOCKS PRIVATE LIMITED | E71: SELL | F71: 3900000 | G71: 0.77 | H71: NSE
A72: 2019-11-14 | B72: SINTEX | C72: Sintex Industries Ltd. | D72: SETU SECURITIES PVT LTD | E72: SELL | F72: 4919701 | G72: 0.77 | H72: NSE
A73: 2019-11-14 | B73: SINTEX | C73: Sintex Industries Ltd. | D73: CHETAN RASIKLAL SHAH | E73: SELL | F73: 3000000 | G73: 0.8 | H73: NSE
A74: 2019-11-14 | B74: SINTEX | C74: Sintex Industries Ltd. | D74: ALPHA LEON ENTERPRISES LLP | E74: SELL | F74: 4526328 | G74: 0.78 | H74: NSE
A75: 2019-11-14 | B75: SINTEX | C75: Sintex Industries Ltd. | D75: ASHWIN STOCKS AND INVESTMENT PRIVATE LIMITED | E75: SELL | F75: 3704867 | G75: 0.75 | H75: NSE
A76: 2019-11-14 | B76: SPTL | C76: Sintex Plastics Tech Ltd | D76: ALPHA LEON ENTERPRISES LLP | E76: SELL | F76: 2794334 | G76: 1.35 | H76: NSE
A77: 2019-11-14 | B77: SPTL | C77: Sintex Plastics Tech Ltd | D77: GOVERNMENT PENSION FUND GLOBAL | E77: SELL | F77: 4035317 | G77: 1.3 | H77: NSE
A78: 2019-11-14 | B78: VADILALIND | C78: Vadilal Industries Ltd | D78: ARKAYA INVESTMENTS | E78: SELL | F78: 65426 | G78: 790.46 | H78: NSE
A79: 2019-11-14 | B79: YESBANK | C79: Yes Bank Limited | D79: TOWER RESEARCH CAPITAL MARKETS INDIA PRIVATE LIMITED | E79: SELL | F79: 17170108 | G79: 69.15 | H79: NSE

Sheet Call Tracker (Equity & F&O)
M5: Back To Main Page
A6: Retail Research Technical Calls & Fundamental Performance Report for the month of November-2019
M7: =Main!B10 -> 2019-11-15
B8: Positional Call
A9: Sr.no | B9: Date | D9: Company | E9: Rec | F9: Rec Price | G9: Stop Loss*** | H9: Call Closed At | I9: Target | J9: Remark | K9: Profit / Loss per Share | L9: Gain / Loss % | M9: Status | N9: Closed Date | O9: NSE Closed Price
A10: 1 | B10: 2019-09-26 | D10: HDFC | E10: Buy | F10: 2070 | G10: 1940 | H10: 2165 | I10: 2250-2300 | J10: Profit of Rs.95/- | K10: =H10-F10 -> 95 | L10: =K10/F10 -> 4.59% | M10: Successful | N10: 2019-11-01 | R10: H
A11: 2 | B11: 2019-10-01 | D11: UPL | E11: Buy{} | F11: 595 | G11: 564 | H11: 599.5 | I11: 650-660 | J11: Profit of Rs.4.50/- | K11: 4.5 | L11: 0.76% | M11: Neutral | N11: 2019-11-07 | R11: R
A12: 3 | B12: 2019-10-07 | D12: PIDILITIND | E12: Buy{} | F12: 1367.5 | G12: 1297 | H12: 1413.5 | I12: 1500-1520 | J12: Part Profit of Rs.46/- | K12: =H12-F12 -> 46 | L12: =K12/F12 -> 3.36% | M12: Successful | N12: 2019-10-31 | O12: =VLOOKUP(D12,Sheet2!A51:M1690,6,0) -> 1344.4 | R12: R
A13: 4 | B13: 2019-10-22 | D13: HEIDELBERG | E13: Buy | F13: 188.5 | G13: 178 | H13: 199 | I13: 205-210 | J13: Profit of Rs.10.50/- | K13: 10.5 | L13: 5.57% | M13: Successful | N13: 2019-11-05 | R13: H
A14: 5 | B14: 2019-10-27 | D14: AMBUJACEM | E14: Buy{} | F14: 197 | G14: 185.4 | H14: 203.5 | I14: 216-220 | J14: Part Profit of Rs.6.5/- | K14: =H14-F14 -> 6.5 | L14: =K14/F14 -> 3.30% | M14: Successful | N14: 2019-10-30 | O14: =VLOOKUP(D14,Sheet2!A60:M1699,6,0) -> 200.55 | R14: R
A15: 6 | B15: 2019-11-04 | D15: UBL | E15: Buy{} | F15: 1240 | G15: 1178 | H15: 1292.5 | I15: 1340-1360 | J15: Profit of Rs.52.5/- | K15: =H15-F15 -> 52.5 | L15: =K15/F15 -> 4.23% | M15: Successful | N15: 2019-11-08 | R15: H
A16: 7 | B16: 2019-11-05 | D16: TATAMOTORS | E16: Sell | F16: 173 | G16: 183.3 | H16: 166.5 | I16: 158-155 | J16: Part Profit of Rs.6.5/- | K16: =F16-H16 -> 6.5 | L16: 3.76% | M16: Successful | N16: 2019-11-14 | O16: =VLOOKUP(D16,Sheet2!A62:M1701,6,0) -> 167.05 | R16: R
A17: 8 | B17: 2019-11-06 | D17: BANDHANBNK | E17: Buy | F17: 572.5 | G17: 538 | H17: 547 | I17: 630-650 | J17: Loss of Rs.25.5/- | K17: -25.5 | L17: =K17/F17 -> -4.45% | M17: Unsuccessful | N17: 2019-11-11 | R17: H
A18: 9 | B18: 2019-11-07 | D18: PRESTIGE | E18: Buy | F18: 310-314 | G18: 288 | I18: 340-360 | J18: Open | O18: =VLOOKUP(D18,Sheet2!A64:M1703,6,0) -> 300.4 | R18: H
A19: 10 | B19: 2019-11-07 | D19: JINDALSTEL | E19: Sell | F19: 138 | G19: 148.3 | H19: 143 | I19: 120-117 | J19: Loss of Rs.5/- | K19: =F19-H19 -> -5 | L19: =K19/F19 -> -3.62% | M19: Unsuccessful | N19: 2019-11-07 | R19: R
A20: 11 | B20: 2019-11-08 | D20: CIPLA | E20: Sell | F20: 465 | G20: 491.3 | H20: 450 | I20: 425-418 | J20: Part Profit of Rs.15/- | K20: =F20-H20 -> 15 | L20: 3.23% | M20: Successful | N20: 2019-11-13 | O20: =VLOOKUP(D20,Sheet2!A66:M1705,6,0) -> 451.4 | R20: R
A21: 12 | B21: 2019-11-11 | D21: TVSMOTOR | E21: Buy | F21: 441 | G21: 417 | H21: 455.5 | I21: 480-490 | J21: Part Profit of Rs.14.5/- | K21: =H21-F21 -> 14.5 | L21: 3.29% | M21: Successful | N21: 2019-11-13 | O21: =VLOOKUP(D21,Sheet2!A67:M1706,6,0) -> 448.3 | R21: H
A22: 13 | B22: 2019-11-11 | D22: POWERGRID | E22: Buy | F22: 191-193 | G22: 183 | I22: 208-212 | J22: Open | O22: =VLOOKUP(D22,Sheet2!A68:M1707,6,0) -> 188 | R22: R
A23: 14 | B23: 2019-11-13 | D23: DLF | E23: Sell | F23: 210 | G23: 222.2 | H23: 203.5 | I23: 189-185 | J23: Part Profit of Rs.6.5/- | K23: =F23-H23 -> 6.5 | L23: =K23/F23 -> 3.10% | M23: Successful | N23: 2019-11-13 | O23: =VLOOKUP(D23,Sheet2!A69:M1708,6,0) -> 208.9 | R23: R
A24: 15 | B24: 2019-11-14 | D24: TORNTPHARM | E24: Buy | F24: 1755-1775 | G24: 1640 | I24: 1950-2000 | J24: Open | O24: =VLOOKUP(D24,Sheet2!A70:M1709,6,0) -> 1771.55
A25: 16 | B25: 2019-11-14 | D25: HEIDELBERG | E25: Buy | F25: 186-187 | G25: 174 | I25: 205-210 | J25: Open | O25: =VLOOKUP(D25,Sheet2!A71:M1710,6,0) -> 187.55
A26: 17 | B26: 2019-11-14 | D26: JMFINANCIL | E26: Sell | F26: 89-90 | G26: 98.8 | I26: 74-71 | J26: Open | O26: =VLOOKUP(D26,Sheet2!A72:M1711,6,0) -> 89.85
A30: CLBS = Closing Basis ***
A31: Dividend adjusted <> | F31: Reinitiated $
A32: Part book {} | F32: Revised stoploss #
B34: Momentum Call
A35: Sr.no | B35: Date | D35: Company | E35: Rec | F35: Rec Price | G35: Stop Loss | H35: Call Closed At | I35: Target | J35: Remark | K35: Profit / Loss per Share/Lot | L35: Gain / Loss % | M35: Gain / Loss per Lot | N35: Lot | O35: Status | P35: Closed Date
A36: 1 | B36: 2019-10-29 | D36: INDUSINDBK | E36: Buy | F36: 1319 | G36: 1278 | H36: 1347.5 | I36: 1370-1390 | J36: Profit of Rs.28.5/- | K36: =H36-F36 -> 28.5 | L36: =K36/F36 -> 2.16% | O36: Successful | P36: 2019-11-01 | R36: H
A37: 2 | B37: 2019-10-30 | D37: POWERGRID | E37: Buy | F37: 199.5 | G37: 194.5 | H37: 194.5 | I37: 210 | J37: Loss of Rs.5/- | K37: -5 | L37: -2.51% | O37: Unsuccessful | P37: 2019-11-07 | R37: H
A38: 3 | B38: 2019-10-31 | D38: MFSL NOV FUT | E38: Buy | F38: 407 | G38: 396 | H38: 414 | I38: 425 | J38: Profit of Rs.7/- | K38: 7 | M38: =N38*K38 -> 8400 | N38: 1200 | O38: Successful | P38: 2019-11-04 | R38: N
A39: 4 | B39: 2019-10-31 | D39: HDFCBANK NOV FUT | E39: Buy | F39: 1239 | G39: 1215 | H39: 1251 | I39: 1280 | J39: Profit of Rs.12/- | K39: 12 | M39: =N39*K39 -> 6000 | N39: 500 | O39: Successful | P39: 2019-11-06 | R39: N
A40: 5 | B40: 2019-11-01 | D40: TORNTPOWER NOV FUT | E40: Sell | F40: 285 | G40: 289 | H40: 282 | I40: 276 | J40: Profit of Rs.3/- | K40: =F40-H40 -> 3 | M40: =N40*K40 -> 9000 | N40: 3000 | O40: Successful | P40: 2019-11-01 | R40: N
A41: 6 | B41: 2019-11-01 | D41: SBIN | E41: Sell | F41: 314 | G41: 322 | H41: 323 | I41: 300-395 | J41: Loss of Rs.9/- | K41: =F41-H41 -> -9 | L41: =K41/F41 -> -2.87% | O41: Unsuccessful | P41: 2019-11-07 | R41: R
A42: 7 | B42: 2019-11-04 | D42: AXISBANK NOV FUT | E42: Sell | F42: 749 | G42: 758.3 | H42: 742.5 | I42: 733 | J42: Profit of Rs.6.50/- | K42: =F42-H42 -> 6.5 | M42: =N42*K42 -> 7800 | N42: 1200 | O42: Successful | P42: 2019-11-04 | R42: R
A43: 8 | B43: 2019-11-04 | D43: COLPAL NOV FUT | E43: Buy | F43: 1527.5 | G43: 1510 | H43: 1539 | I43: 1560 | J43: Profit of Rs.11.50/- | K43: =H43-F43 -> 11.5 | M43: =N43*K43 -> 8050 | N43: 700 | O43: Successful | P43: 2019-11-04 | R43: N
A44: 9 | B44: 2019-11-04 | D44: LUPIN | E44: Buy | F44: 762.5 | G44: 747 | H44: 781 | I44: 790-800 | J44: Profit of Rs.18.50/- | K44: 18.5 | L44: =K44/F44 -> 2.43% | O44: Successful | P44: 2019-11-06 | R44: H
A45: 10 | B45: 2019-11-04 | D45: MARUTI | E45: Sell | F45: 7515 | G45: 7777.7 | H45: 7335 | I45: 7100-7000 | J45: Profit of Rs.180/- | K45: =F45-H45 -> 180 | L45: 2.40% | O45: Successful | P45: 2019-11-05 | R45: R
A46: 11 | B46: 2019-11-04 | D46: BANKBARODA | E46: Sell | F46: 101.5 | G46: 105 | H46: 99.6 | I46: 97-95 | J46: Profit of Rs.1.90/- | K46: =F46-H46 -> 1.9 | L46: 1.87% | O46: Successful | P46: 2019-11-06 | R46: H
A47: 12 | B47: 2019-11-04 | D47: COALINDIA | E47: Sell | F47: 211 | G47: 216.3 | H47: 207.25 | I47: 200-198 | J47: Profit of Rs.3.75/- | K47: =F47-H47 -> 3.75 | L47: =K47/F47 -> 1.78% | O47: Successful | P47: 2019-11-11 | R47: R
A48: 13 | B48: 2019-11-05 | D48: TCS | E48: Buy | F48: 2170 | G48: 2097 | H48: 2205 | I48: 2300-2330 | J48: Profit of Rs.35/- | K48: =H48-F48 -> 35 | L48: =K48/F48 -> 1.61% | O48: Successful | P48: 2019-11-05 | R48: R
A49: 14 | B49: 2019-11-05 | D49: COLPAL NOV FUT | E49: Buy | F49: 1527 | G49: 1509 | H49: 1540 | I49: 1560 | J49: Profit of Rs.13/- | K49: 13 | M49: =N49*K49 -> 9100 | N49: 700 | O49: Successful | P49: 2019-11-06 | R49: N
A50: 15 | B50: 2019-11-05 | D50: HDFCLIFE | E50: Buy | F50: 588.5 | G50: 569 | H50: 571.5 | I50: 620-630 | J50: Loss of Rs.17/- | K50: -17 | L50: =K50/F50 -> -2.89% | O50: Unsuccessful | P50: 2019-11-08 | R50: H
A51: 16 | B51: 2019-11-05 | D51: ICICIBANK NOV FUT | E51: Sell | F51: 470 | G51: 480.2 | H51: 480.2 | I51: 450 | J51: Loss of Rs.10.20/- | K51: =F51-H51 -> -10.2 | M51: =N51*K51 -> -14025 | N51: 1375 | O51: Unsuccessful | P51: 2019-11-06 | R51: R
A52: 17 | B52: 2019-11-06 | D52: HINDALCO | E52: Sell | F52: 202.35 | G52: 208.3 | H52: 199 | I52: 193-190 | J52: Profit of Rs.3.35/- | K52: =F52-H52 -> 3.35 | L52: =K52/F52 -> 1.66% | O52: Successful | P52: 2019-11-06 | R52: R
A53: 18 | B53: 2019-11-06 | D53: KOTAKBANK NOV FUT | E53: Buy | F53: 1568 | G53: 1544 | H53: 1588 | I53: 1600-1620 | J53: Profit of Rs.20/- | K53: =H53-F53 -> 20 | M53: =N53*K53 -> 8000 | N53: 400 | O53: Successful | P53: 2019-11-06 | R53: R
A54: 19 | B54: 2019-11-07 | D54: MGL NOV FUT | E54: Sell | F54: 979.5 | G54: 959 | H54: 960 | I54: 1020 | J54: Loss of Rs.19.50/- | K54: -19.5 | M54: =N54*K54 -> -11700 | N54: 600 | O54: Unsuccessful | P54: 2019-11-07 | R54: N
A55: 20 | B55: 2019-11-07 | D55: HINDALCO | E55: Sell | F55: 202.5 | G55: 208.3 | H55: 197.25 | I55: 193-190 | J55: Profit of Rs.5.25/- | K55: =F55-H55 -> 5.25 | L55: =K55/F55 -> 2.59% | O55: Successful | P55: 2019-11-13 | R55: R
A56: 21 | B56: 2019-11-07 | D56: AXISBANK NOV FUT | E56: Buy | F56: 739 | G56: 729 | H56: 729 | I56: 760 | J56: Loss of Rs.10/- | K56: =H56-F56 -> -10 | M56: =N56*K56 -> -12000 | N56: 1200 | O56: Unsuccessful | P56: 2019-11-08 | R56: N
A57: 22 | B57: 2019-11-08 | D57: HINDPETRO | E57: Buy | F57: 304.5 | G57: 296.3 | H57: 296.3 | I57: 317-320 | J57: Loss of Rs.8.2/- | K57: =H57-F57 -> -8.2 | L57: =K57/F57 -> -2.69% | O57: Unsuccessful | P57: 2019-11-08 | R57: R
A58: 23 | B58: 2019-11-08 | D58: COLPAL NOV FUT | E58: Buy | F58: 1578 | G58: 1560 | H58: 1591 | I58: 1600 | J58: Profit of Rs.13/- | K58: 13 | M58: =N58*K58 -> 9100 | N58: 700 | O58: Successful | P58: 2019-11-08 | R58: N
A59: 24 | B59: 2019-11-08 | D59: AXISBANK | E59: Buy | F59: 733 | G59: 715 | H59: 712.5 | I59: 760-765 | J59: Loss of Rs.20.50/- | K59: -20.5 | L59: =K59/F59 -> -2.80% | O59: Unsuccessful | P59: 2019-11-13 | R59: H
A60: 25 | B60: 2019-11-08 | D60: HINDUNILVR | E60: Buy | F60: 2080-2090 | G60: 2035 | I60: 2160-2180 | J60: Open | R60: H
A61: 26 | B61: 2019-11-08 | D61: RELIANCE | E61: Sell | F61: 1445-1450 | G61: 1505 | I61: 1380-1350 | J61: Open | R61: H
A62: 27 | B62: 2019-11-08 | D62: COLPAL NOV FUT | E62: Buy | F62: 1574 | G62: 1556 | H62: 1586.5 | I62: 1600-1620 | J62: Profit of Rs.12.50/- | K62: =H62-F62 -> 12.5 | M62: =N62*K62 -> 8750 | N62: 700 | O62: Successful | P62: 2019-11-11 | R62: N
A63: 28 | B63: 2019-11-11 | D63: TATAGLOBAL | E63: Buy | F63: 293-295 | G63: 284 | I63: 305-310 | J63: Open | R63: H
A64: 29 | B64: 2019-11-11 | D64: TVSMOTOR NOV FUT | E64: Buy | F64: 443.5 | G64: 433 | H64: 448.5 | I64: 462 | J64: Profit of Rs.5/- | K64: =H64-F64 -> 5 | M64: =N64*K64 -> 5500 | N64: 1100 | O64: Successful | P64: 2019-11-13 | R64: R
A65: 30 | B65: 2019-11-11 | D65: APOLLOTYRE | E65: Buy | F65: 166-167 | G65: 162.2 | I65: 173-176 | J65: Open | R65: R
A66: 31 | B66: 2019-11-11 | D66: PIDILITIND NOV FUT | E66: Buy | F66: 1335 | G66: 1313 | H66: 1333 | I66: 1375 | J66: Loss of Rs.2/- | K66: =H66-F66 -> -2 | M66: =N66*K66 -> -1000 | N66: 500 | O66: Unsuccessful | P66: 2019-11-13 | R66: R
A67: 32 | B67: 2019-11-11 | D67: HAVELLS | E67: Buy | F67: 696.5 | G67: 677 | H67: 676.5 | I67: 725-735 | J67: Loss of Rs.20/- | K67: -20 | L67: =K67/F67 -> -2.87% | O67: Unsuccessful | P67: 2019-11-13 | R67: H
A68: 33 | B68: 2019-11-11 | D68: MFSL NOV FUT | E68: Buy | F68: 472 | G68: 461 | H68: 461.5 | I68: 493 | J68: Loss of Rs.10.50/- | K68: -10.5 | M68: =N68*K68 -> -12600 | N68: 1200 | O68: Unsuccessful | P68: 2019-11-13 | R68: N
A69: 34 | B69: 2019-11-11 | D69: TORNTPOWER NOV FUT | E69: Sell | F69: 298.5 | G69: 303 | H69: 303.5 | I69: 290 | J69: Loss of Rs.5/- | K69: =F69-H69 -> -5 | M69: =N69*K69 -> -15000 | N69: 3000 | O69: Unsuccessful | P69: 2019-11-13 | R69: N
A70: 35 | B70: 2019-11-13 | D70: CUMMINSIND NOV FUT | E70: Sell | F70: 569 | G70: 583.3 | H70: 559.5 | I70: 548 | J70: Profit of Rs.9.5/- | K70: =F70-H70 -> 9.5 | M70: =N70*K70 -> 6650 | N70: 700 | O70: Successful | P70: 2019-11-14 | R70: R
A71: 36 | B71: 2019-11-13 | D71: COLPAL NOV FUT | E71: Buy | F71: 1563 | G71: 1545 | H71: 1545 | I71: 1600 | J71: Loss of Rs.18/- | K71: =F71-H71 -> 18 | M71: =N71*K71 -> 12600 | N71: 700 | O71: Unsuccessful | P71: 2019-11-14 | R71: N
A72: 37 | B72: 2019-11-13 | D72: POWERGRID | E72: Buy | F72: 189-190 | G72: 184 | I72: 200-205 | J72: Open | R72: H
A73: 38 | B73: 2019-11-13 | D73: SBIN | E73: Sell | F73: 313.5 | G73: 324.4 | H73: 306.5 | I73: 294-290 | J73: Profit of Rs.7/- | K73: =F73-H73 -> 7 | L73: =K73/F73 -> 2.23% | O73: Successful | P73: 2019-11-13 | R73: R
A74: 39 | B74: 2019-11-14 | D74: HINDPETRO | E74: Buy | F74: 290-292 | G74: 281.7 | I74: 305-310 | J74: Open
A75: 40 | B75: 2019-11-14 | D75: SUNPHARMA | E75: Buy | F75: 412-415 | G75: 401 | I75: 435-440 | J75: Open
A76: 41
A77: 42
A78: 43
A79: 44
A80: 45
A81: 46
A82: 47
A83: 48
A84: 49
A86: CLBS = Closing Basis ***
A87: Dividend adjusted <> | F87: Reinitiated $
F88: Revised stoploss #
A90: Master Trade High Risk
A91: Sr.no | B91: Date | D91: Company | E91: Rec | F91: Rec Price | G91: Stop Loss | H91: Call Closed At | I91: Target | J91: Remark | K91: Profit / Loss per share | L91: Gain / Loss per Lot | M91: Lot | N91: Status | O91: Closed Date
A92: 1 | B92: 2019-10-30 | D92: BAJAJ-AUTO NOV FUT | E92: Sell | F92: 3240 | G92: 3360 | H92: 3205 | I92: 3040 | J92: Profit of Rs.36.50/- | K92: =F92-H92 -> 35 | L92: =M92*36.5 -> 9125 | M92: 250 | N92: Successful | O92: 2019-11-04 | R92: H
D93: BAJAJ-AUTO 3100 PE NOV | E93: Sell | F93: 49.50 | H93: 48 | K93: =F93-H93 -> 1.5 | R93: H
A94: 2 | B94: 2019-10-30 | D94: LT NOV FUT | E94: Buy | F94: 1476.5 | G94: 1418 | H94: 1427.5 | I94: 1550 | J94: Loss of Rs.28/- | K94: =H94-F94 -> -49 | L94: =M94*-28 -> -10500 | M94: 375 | N94: Unsuccessful | O94: 2019-11-08 | R94: H
D95: LT 1520 CE NOV | E95: Sell | F95: 28 | H95: 7 | K95: =F95-H95 -> 21 | R95: H
A96: 3 | B96: 2019-10-30 | D96: HEROMOTOCO NOV FUT | E96: Buy | F96: 2715 | G96: 2640 | H96: 2747.5 | I96: 2900 | J96: Profit of Rs.27.50/- | K96: =H96-F96 -> 32.5 | L96: =M96*27.5 -> 5500 | M96: 200 | N96: Successful | O96: 2019-11-01 | R96: N
D97: HEROMOTOCO 2850 CE NOV | E97: Sell | F97: 55 | H97: 60 | K97: =F97-H97 -> -5 | R97: N
A98: 4 | B98: 2019-10-31 | D98: AXISBANK NOV FUT | E98: Buy | F98: 738 | G98: 718 | H98: 743.5 | I98: 760 | J98: Profit of Rs.5/- | K98: =H98-F98 -> 5.5 | L98: =M98*5 -> 6000 | M98: 1200 | N98: Successful | O98: 2019-11-01 | R98: H
D99: AXISBANK 760 CE NOV | E99: Sell | F99: 17.50 | H99: 18 | K99: =F99-H99 -> -0.5 | R99: H
A100: 5 | B100: 2019-11-01 | D100: NIFTY NOV FUT | E100: Sell | F100: 11907.5 | G100: 12060 | H100: 12060 | I100: 11700 | J100: Loss of Rs.82.50/- | K100: =F100-H100 -> -152.5 | L100: =M100*-82.5 -> -6187.5 | M100: 75 | N100: Unsuccessful | O100: 2019-11-08 | R100: H
D101: Nifty 11750 PE 14-NOV | E101: Sell | F101: 78 | H101: 8 | K101: =F101-H101 -> 70 | R101: H
A102: 6 | B102: 2019-11-05 | D102: HAVELLS NOV FUT | E102: Buy | F102: 687 | G102: 670 | H102: 696 | I102: 720-730 | J102: Profit of Rs.8.50/- | K102: =H102-F102 -> 9 | L102: =M102*8.5 -> 8500 | M102: 1000 | N102: Successful | O102: 2019-11-06 | R102: N
D103: HAVELLS 710 CE NOV | E103: Sell | F103: 13.50 | H103: 14 | K103: =F103-H103 -> -0.5 | R103: N
A104: 7 | B104: 2019-11-05 | D104: BATAINDIA NOV FUT | E104: Buy | F104: 1735 | G104: 1701 | H104: 1701 | I104: 1820 | J104: Loss of Rs.22.50/- | K104: =H104-F104 -> -34 | L104: =M104*-22.5 -> -12375 | M104: 550 | N104: Unsuccessful | O104: 2019-11-06 | R104: N
D105: BATAINDIA 1800 CE NOV | E105: Sell | F105: 35 | H105: 23.5 | K105: =F105-H105 -> 11.5 | R105: N
A106: 8 | B106: 2019-11-06 | D106: GRASIM NOV FUT | E106: Buy | F106: 775 | G106: 754 | H106: 788 | I106: 820 | J106: Profit of Rs.11/- | K106: =H106-F106 -> 13 | L106: =M106*11 -> 8250 | M106: 750 | N106: Successful | O106: 2019-11-08 | R106: N
D107: GRASIM 820 CE NOV | E107: Sell | F107: 15.5 | H107: 17.5 | K107: =F107-H107 -> -2 | R107: N
A108: 9 | B108: 2019-11-06 | D108: ULTRACEMCO NOV FUT | E108: Buy | F108: 4150 | G108: 4070 | H108: 4195 | I108: 4350 | J108: Profit of Rs.37.50/- | K108: =H108-F108 -> 45 | L108: =M108*37.5 -> 7500 | M108: 200 | N108: Successful | O108: 2019-11-07 | R108: N
D109: ULTRACEMCO 4300 CE NOV | E109: Sell | F109: 70 | H109: 77.5 | K109: =F109-H109 -> -7.5 | R109: N
A110: 10 | B110: 2019-11-07 | D110: BAJAJ-AUTO NOV FUT | E110: Sell | F110: 3240 | G110: 3355 | H110: 3212.5 | I110: 3100 | J110: Profit of Rs.32.50/- | K110: =F110-H110 -> 27.5 | L110: =M110*32.5 -> 8125 | M110: 250 | N110: Successful | O110: 2019-11-13 | R110: H
D111: BAJAJ-AUTO 3150 PE NOV | E111: Sell | F111: 47.50 | H111: 42.5 | K111: =F111-H111 -> 5 | R111: H
A112: 11 | B112: 2019-11-11 | D112: KOTAKBANK NOV FUT | E112: Buy | F112: 1598-1602 | G112: 1560 | I112: 1660-1680 | J112: Open | R112: N
D113: KOTAKBANK 1640 CE NOV | E113: Sell | F113: 20-24 | R113: N
A114: 12 | B114: 2019-11-11 | D114: ULTRACEMCO NOV FUT | E114: Buy | F114: 4160 | G114: 4070 | H114: 4080 | I114: 4350 | J114: Loss of Rs.50/- | K114: =H114-F114 -> -80 | L114: =M114*-50 -> -10000 | M114: 200 | N114: Unsuccessful | O114: 2019-11-14 | R114: N
D115: ULTRACEMCO 4300 CE NOV | E115: Sell | F115: 62.50 | H115: 32.5 | K115: =F115-H115 -> 30 | R115: N
A116: 13 | B116: 2019-11-13 | D116: NIFTY NOV FUT | E116: Sell | F116: 11930 | G116: 12070 | H116: 11850 | I116: 11700 | J116: Profit of Rs.67.50/- | K116: =F116-H116 -> 80 | L116: =M116*67.5 -> 5062.5 | M116: 75 | N116: Successful | O116: 2019-11-14 | R116: H
D117: Nifty 11750 PE NOV | E117: Sell | F117: 80 | H117: 92.5 | K117: =F117-H117 -> -12.5 | R117: H
A118: 14 | B118: 2019-11-14 | D118: M&M NOV FUT | E118: Buy | F118: 577-578 | G118: 559 | I118: 600 | J118: Open
D119: M&M Nov 590 CE | E119: Sell | F119: 9-10
A120: 15 | B120: 2019-11-14 | D120: ICICIBANK NOV FUT | E120: Sell | F120: 494-495 | G120: 507 | I120: 480 | J120: Open
D121: ICICIBANK 480 PE NOV | E121: Sell | F121: 6-7
A130: Master Trade Medium Risk
A131: Sr.no | B131: Date | D131: Company | E131: Rec | F131: Rec Price | G131: Stop Loss | H131: Call Closed At | I131: Target | J131: Remark | K131: Profit/ Loss per lot | L131: Gain / Loss per Lot | M131: Lot | N131: Status | O131: Closed Date
A132: 1 | B132: 2019-11-01 | D132: INFRATEL NOV 200 CE | E132: Buy | F132: 16.50 | H132: 21.5 | J132: Profit of Rs.2/- | K132: =H132-F132 -> 5 | L132: =2000*2 -> 4000 | M132: 2000 | N132: Successful | O132: 2019-11-04 | R132: H
D133: INFRATEL NOV 210 CE | E133: Sell | F133: 12.50 | H133: 15.5 | K133: -3 | R133: H
A134: 2 | B134: 2019-11-01 | D134: MARUTI NOV 7500 PE | E134: Buy | F134: 200 | H134: 270 | J134: Profit of Rs.30/- | K134: =H134-F134 -> 70 | L134: =30*M134 -> 2250 | M134: 75 | N134: Successful | O134: 2019-11-05 | R134: N
D135: MARUTI NOV 7300 PE | E135: Sell | F135: 132.50 | H135: 172.5 | K135: -40 | R135: N
A136: 3 | B136: 2019-11-01 | D136: BANKNIFTY 30000 PE 7-NOV | E136: Buy | F136: 250 | G136: 130 | H136: 130 | I136: 450-500 | J136: Loss of Rs.120/- | K136: =H136-F136 -> -120 | L136: =M136*K136 -> -2400 | M136: 20 | N136: Unsuccessful | O136: 2019-11-04 | R136: H
A137: 4 | B137: 2019-11-04 | D137: BANKNIFTY 14 NOV 30400 PE | E137: Buy | F137: 400-420 | J137: Open | R137: H
D138: BANKNIFTY 14 NOV 30100 PE | E138: Sell | F138: 295-305 | R138: H
A139: 5 | B139: 2019-11-04 | D139: MOTHERSUMI NOV 120 PE | E139: Buy | F139: 5.50-6.00 | J139: Open | R139: H
D140: MOTHERSUMI 115 PE | E140: Sell | F140: 4.00-4.20 | R140: H
A141: 6 | B141: 2019-11-13 | D141: ICICIBANK NOV 490 PE | E141: Buy | F141: 11.50 | H141: 14.5 | J141: Profit of Rs.2.10/- | K141: =H141-F141 -> 3 | L141: =2.1*M141 -> 2887.5 | M141: 1375 | N141: Successful | O141: 2019-11-14 | R141: H
D142: ICICIBANK NOV 475 PE | E142: Sell | F142: 6.50 | H142: 7.4 | K142: -0.9 | R142: H
A143: 7 | B143: 2019-11-14 | D143: BANKBARODA NOV 95 CE | E143: Buy | F143: 1.80-2.00 | J143: Open
D144: BANKBARODA NOV 100 CE | E144: Sell | F144: 0.90-1.10
A145: 8 | B145: 2019-11-14 | D145: HINDUNILVR NOV 2100 CE | E145: Buy | F145: 25-27 | J145: Open
D146: HINDUNILVR NOV 2140 CE | E146: Sell | F146: 13-15
A149: Techno -Funda (positional)
A150: Sr.no | B150: Date | D150: Company | E150: Rec | F150: Rec Price | G150: Stop Loss*** | H150: Call Closed At | I150: Target | J150: Remark | K150: Profit / Loss per Share | L150: Gain / Loss % | M150: Status | N150: Closed Date | O150: NSE Closed Price
A151: 1 | B151: 2019-08-13 | D151: ITC | E151: Buy | F151: 247 | G151: 228 | H151: 262.5 | I151: 290-300 | J151: Part Profit of Rs.15.5/- | K151: =H151-F151 -> 15.5 | L151: =K151/F151 -> 6.28% | M151: Successful | N151: 2019-10-01 | O151: =VLOOKUP(D151,Sheet2!A131:M1770,6,0) -> 253.9 | R151: H
A155: CLBS = Closing Basis *** | F155: Reinitiated $
A156: Dividend adjusted <> | F156: Revised stoploss #
B161: Investment Idea
A162: Sr.no | B162: Date | D162: Company | E162: Rec | F162: Rec Price | G162: Point of Review | H162: Close Rate | I162: Target | J162: Remark | K162: Profit / Loss per Share | L162: Gain / Loss % | M162: Status | N162: Closed Date
A163: 1 | B163: 2013-11-01 | D163: L&T Finance Holding | E163: Accu | F163: 82.00 | G163: - | H163: 100 | I163: 100.00 | J163: Target Achieved | K163: =H163-F163 -> 18.00 | L163: =K163/F163 -> 21.95% | M163: Successful | N163: 2016-10-14
A164: 2 | B164: 2014-06-04 | D164: Finolex Inds | E164: Buy | F164: 257.00 | G164: - | H164: 300 | I164: 300.00 | J164: Target Achieved | K164: 43.00 | L164: 16.73% | M164: Successful | N164: 2014-07-02
A165: 3 | B165: 2014-07-08 | D165: JK Cement | E165: Buy | F165: 393.00 | G165: - | H165: 468 | I165: 468.00 | J165: Target Achieved | K165: 75.00 | L165: 19.08% | M165: Successful | N165: 2014-08-12
A166: 4 | B166: 2014-08-06 | D166: Finolex Cables | E166: Buy | F166: 205.00 | G166: - | H166: 275 | I166: 250.00 | J166: Target Achieved | K166: 70.00 | L166: 34.15% | M166: Successful | N166: 2014-11-19
A167: 5 | B167: 2014-09-04 | D167: Exide Inds | E167: Buy | F167: 162.00 | G167: - | H167: 190 | I167: 190.00 | J167: Target Achieved | K167: 28.00 | L167: 17.28% | M167: Successful | N167: 2015-01-02
A168: 6 | B168: 2014-09-04 | D168: Deepak Nitrite | E168: Buy | F168: 75.00 | G168: - | H168: 91.5 | I168: 95-100 | J168: Profit of Rs.16.50/- | K168: 16.50 | L168: 22.00% | M168: Successful | N168: 2014-11-11
A169: 7 | B169: 2014-10-01 | D169: Mercks | E169: Buy | F169: 850.00 | G169: - | H169: 982.5 | I169: 1050.00 | J169: Profit of Rs.132.50/- | K169: 132.50 | L169: 15.59% | M169: Successful | N169: 2015-02-04
A170: 8 | B170: 2014-10-01 | D170: Grindwell Norton | E170: Buy | F170: 475.00 | G170: - | H170: 515 | I170: 600.00 | J170: Profit of Rs.40/- | K170: 40.00 | L170: 8.42% | M170: Successful | N170: 2014-10-27
A171: 9 | B171: 2014-10-01 | D171: Snowman Logistics | E171: Buy | F171: 86.00 | G171: - | H171: 99 | I171: 140.00 | J171: Profit of Rs.13.00/- | K171: 13.00 | L171: 15.12% | M171: Successful | N171: 2014-10-27
A172: 10 | B172: 2014-10-14 | D172: Birla Corp | E172: Buy | F172: 496.60 | G172: - | H172: 621 | I172: 580.00 | J172: Target Achieved | K172: 124.40 | L172: 25.05% | M172: Successful | N172: 2016-08-23
A173: 11 | B173: 2014-10-14 | D173: Ultratech Cem | E173: Buy | F173: 2481.90 | G173: - | H173: 2840 | I173: 2870.00 | J173: Profit of Rs.358.10/- | K173: 358.10 | L173: 14.43% | M173: Successful | N173: 2015-01-13
A174: 12 | B174: 2014-10-16 | D174: Sintex Inds | E174: Buy | F174: 84.50 | G174: - | H174: 93 | I174: 110.00 | J174: Profit of Rs.8.50/- | K174: 8.50 | L174: 10.06% | M174: Successful | N174: 2014-10-27
A175: 13 | B175: 2014-10-16 | D175: HSIL | E175: Buy | F175: 401.00 | G175: - | H175: 428 | I175: 450.00 | J175: Profit of Rs.27.00/- | K175: 27.00 | L175: 6.73% | M175: Successful | N175: 2015-01-16
A176: 14 | B176: 2014-10-16 | D176: Eveready Inds | E176: Buy | F176: 101.00 | G176: - | H176: 112 | I176: 120.00 | J176: Profit of Rs.11.00/- | K176: 11.00 | L176: 10.89% | M176: Successful | N176: 2014-10-27
A177: 15 | B177: 2014-11-11 | D177: Pennar Inds | E177: Buy | F177: 59.00 | G177: - | H177: 76 | I177: 76.00 | J177: Target Achieved | K177: 17.00 | L177: 28.81% | M177: Successful | N177: 2017-10-24
A178: 16 | B178: 2014-11-11 | D178: Snowman Logistics | E178: Buy | F178: 99.00 | G178: - | H178: 120 | I178: 120.00 | J178: Profit of Rs.21/- | K178: 21.00 | L178: 21.21% | M178: Successful | N178: 2014-11-17
A179: 17 | B179: 2014-11-13 | D179: Dharamsi Morarji Chem | E179: Buy | F179: 22.00 | G179: - | H179: 33.55 | I179: 32.00 | J179: Profit of Rs 11.55/- | K179: 11.55 | L179: 52.50% | M179: Successful | N179: 2015-07-03
A180: 18 | B180: 2014-12-03 | D180: Tatachem | E180: Buy | F180: 440.00 | G180: - | H180: 520 | I180: 520.00 | J180: Profit of Rs 80.00/- | K180: 80.00 | L180: 18.18% | M180: Successful | N180: 2015-07-23
A181: 19 | B181: 2014-12-03 | D181: Advanta | E181: Buy | F181: 360.00 | G181: - | H181: 427 | I181: 425.00 | J181: Profit of Rs.67.00/- | K181: 67.00 | L181: 18.61% | M181: Successful | N181: 2015-02-23
A182: 20 | B182: 2015-01-08 | D182: GDL | E182: Buy | F182: 360.00 | G182: - | H182: 455 | I182: 420.00 | J182: Profit of Rs.95.00/- | K182: 95.00 | L182: 26.39% | M182: Successful | N182: 2015-01-20
A183: 21 | B183: 2015-01-08 | D183: NRB Bearing | E183: Buy | F183: 130.00 | H183: 175.5 | I183: 165.00 | J183: Profit of Rs 45.50/- | K183: 45.50 | L183: 35.00% | M183: Successful | N183: 2017-12-19
A184: 22 | B184: 2015-02-05 | D184: GSFC | E184: Accu | F184: 98.00 | H184: 120 | I184: 120.00 | J184: Target Achieved | K184: 22.00 | L184: 22.45% | M184: Successful | N184: 2017-01-18
A185: 23 | B185: 2015-02-05 | D185: Sundrmfast | E185: Accu | F185: 196.00 | H185: 262 | I185: 255.00 | J185: Target Achieved | K185: 66.00 | L185: 33.67% | M185: Successful | N185: 2016-08-17
A186: 24 | B186: 2015-03-04 | D186: GPPL | E186: Accu | F186: 235 | H186: 77.00 | I186: 280-285 | J186: Loss of Rs.158/- | K186: -158.00 | L186: -67.23% | M186: Unsuccessful | N186: 2019-02-26
A187: 25 | B187: 2015-03-04 | D187: ORIENTCEM | E187: Accu | F187: 185.00 | H187: 224 | I187: 220-225 | J187: Target Achieved | K187: 39.00 | L187: 21.08% | M187: Successful | N187: 2016-10-04
A188: 26 | B188: 2015-03-27 | D188: PFS | E188: Accu | F188: 49.5 | H188: 15.85 | I188: 67.00 | J188: Loss of Rs.33.65/- | K188: -33.65 | L188: -68% | M188: Unsuccessful | N188: 2019-06-11
A189: 27 | B189: 2015-03-30 | D189: Walchandnagar Ind Ltd | E189: Accu | F189: 183.50 | H189: 219 | I189: 218.00 | J189: Profit of Rs.35.50/- | K189: 35.50 | L189: 19.35% | M189: Successful | N189: 2015-04-09
A190: 28 | B190: 2015-04-20 | D190: Kalpataru Power Transmission Ltd | E190: Accu | F190: =(227+237)/2 -> 232.00 | H190: 298 | I190: 298.00 | J190: Target Achieved | K190: 66.00 | L190: 28.45% | M190: Successful | N190: 2017-03-29
A191: 29 | B191: 2015-05-04 | D191: Mastek Ltd | E191: Buy | F191: 385.00 | H191: =212.5+331 -> 543.5 | I191: 510.00 | J191: Profit of Rs 158.50/- | K191: 158.50 | L191: 41.17% | M191: Successful | N191: 2015-08-19
A192: 30 | B192: 2015-05-04 | D192: Suprajit Eng | E192: Buy | F192: 115.50 | H192: 146 | I192: 142.00 | J192: Profit of Rs 30.50/- | K192: 30.50 | L192: 26.41% | M192: Successful | N192: 2015-07-17
A193: 31 | B193: 2015-05-27 | D193: TCI | E193: Buy | F193: 237.50 | H193: 279.5 | I193: 278.00 | J193: Target Achieved | K193: 42.00 | L193: 17.68% | M193: Successful | N193: 2015-08-06
A194: 32 | B194: 2015-06-19 | D194: HSIL | E194: Accu | F194: 340.00 | H194: 448 | I194: 448.00 | J194: Target Achieved | K194: 108.00 | L194: 31.76% | M194: Successful | N194: 2017-10-10
A195: 33 | B195: 2015-07-06 | D195: Capital First | E195: Accu | F195: 390.00 | H195: 460 | I195: 460.00 | J195: Target Achieved | K195: =H195-F195 -> 70.00 | L195: =K195/F195 -> 17.95% | M195: Successful | N195: 2016-04-18
A196: 34 | B196: 2015-07-10 | D196: Dolphin OffShore | E196: Accu | F196: 122.5 | H196: 61.00 | I196: 172.00 | J196: Loss of Rs.61.50/- | K196: -61.50 | L196: -50.20% | M196: Unsuccessful | N196: 2018-08-21
A197: 35 | B197: 2015-08-03 | D197: Allcargo logistics | E197: Accu | F197: 297.50 | H197: 350 | I197: 360.00 | J197: Profit of Rs 52.50/- | K197: 52.50 | L197: 17.65% | M197: Successful | N197: 2015-08-16
A198: 36 | B198: 2015-08-03 | D198: Camline Fine | E198: Accu | F198: 115.50 | H198: 149 | I198: 140.00 | J198: Profit of Rs 33.50/- | K198: 33.50 | L198: 29.00% | M198: Successful | N198: 2017-01-05
A199: 37 | B199: 2015-09-04 | D199: TCI | E199: Accu | F199: 226.00 | H199: 292 | I199: 292.00 | J199: Target Achieved | K199: 66.00 | L199: 29.20% | M199: Successful | N199: 2015-10-09
A200: 38 | B200: 2015-09-07 | D200: Kalpataru Power Transmission Ltd | E200: Accu | F200: 232.50 | H200: 312.5 | I200: 310.00 | J200: Target Achieved | K200: 80.00 | L200: 34.41% | M200: Successful | N200: 2017-03-29
A201: 39 | B201: 2015-09-21 | D201: LLOYD ELECTRIC & ENG LTD | E201: Accu | F201: 196.50 | H201: 238 | I201: 238.00 | J201: Target Achieved | K201: 41.50 | L201: 21.12% | M201: Successful | N201: 2015-10-14
A202: 40 | B202: 2015-09-24 | D202: L&T Finance Holding | E202: Accu | F202: 65.00 | H202: 82 | I202: 82.00 | J202: Target Achieved | K202: 17.00 | L202: 26.15% | M202: Successful | N202: 2016-07-27
A203: 41 | B203: 2015-10-14 | D203: KEC International ltd | E203: Accu | F203: 144.00 | H203: 182.5 | I203: 181.00 | J203: Target Achieved | K203: 38.50 | L203: 26.74% | M203: Successful | N203: 2017-03-23
A204: 42 | B204: 2015-10-14 | D204: Gruh Finance | E204: Accu | F204: 264.00 | H204: 311 | I204: 311.00 | J204: Target Achieved | K204: 47.00 | L204: 17.80% | M204: Successful | N204: 2016-08-22
A205: 43 | B205: 2015-11-10 | D205: Pidilitind | E205: Buy | F205: 549.50 | H205: 630 | I205: 630.00 | J205: Target Achieved | K205: 80.50 | L205: 14.65% | M205: Successful | N205: 2016-02-19
A206: 44 | B206: 2015-12-04 | D206: Zensar Technology | E206: Accu | F206: 1027.50 | H206: 1315 | I206: 1250.00 | J206: Target Achieved | K206: 287.50 | L206: 27.98% | M206: Successful | N206: 2018-05-24
A207: 45 | B207: 2015-12-29 | D207: Vinati Organics Ltd | E207: Accu | F207: 465.00 | H207: 540 | I207: 540.00 | J207: Target Achieved | K207: 75.00 | L207: 16.13% | M207: Successful | N207: 2016-06-09
A208: 46 | B208: 2016-01-11 | D208: GSFC | E208: Buy | F208: 81.00 | H208: 110 | I208: 110.00 | J208: Target Achieved | K208: 29.00 | L208: 35.80% | M208: Successful | N208: 2017-01-10
A209: 47 | B209: 2016-01-13 | D209: SSWL | E209: Buy | F209: 417.50 | H209: 547 | I209: 535.00 | J209: Target Achieved | K209: 129.50 | L209: 31.02% | M209: Successful | N209: 2016-07-27
A210: 48 | B210: 2016-02-08 | D210: Persistent System Ltd | E210: Accu | F210: 650.00 | H210: 800 | I210: 800.00 | J210: Target Achieved | K210: 150.00 | L210: 23.08% | M210: Successful | N210: 2018-02-23
A211: 49 | B211: 2016-03-04 | D211: UPL | E211: Accu | F211: 437.50 | H211: 504.5 | I211: 522.00 | J211: Profit of Rs.67/- | K211: 67.00 | L211: 15.31% | M211: Successful | N211: 2016-04-20
A212: 50 | B212: 2016-03-09 | D212: Ashoka Buildcon Ltd | E212: Accu | F212: 189.50 | H212: 218 | I212: 218.00 | J212: Target Achieved | K212: 28.50 | L212: 15.04% | M212: Successful | N212: 2017-10-26
A213: 51 | B213: 2016-04-11 | D213: PTC INDIA FIN SERV LTD | E213: Accu | F213: 36.5 | H213: 15.85 | I213: 60.00 | J213: Loss of Rs.20.65/- | K213: -20.65 | L213: -56.58% | M213: Unsuccessful | N213: 2019-06-11
A214: 52 | B214: 2016-04-12 | D214: CAMLINFINE $ | E214: Accu | F214: 93.00 | H214: 149 | I214: 140.00 | J214: Profit of Rs 56/- | K214: 56.00 | L214: 60.22% | M214: Successful | N214: 2017-01-05
A215: 53 | B215: 2016-04-12 | D215: Greaves Cotton Ltd. | E215: Accu | F215: 130.00 | H215: 150 | I215: 150-155 | J215: Target Achieved | K215: 20.00 | L215: 15.38% | M215: Successful | N215: 2016-07-13
A216: 54 | B216: 2016-04-13 | D216: DHFL | E216: Accu | F216: 196.00 | H216: 299 | I216: 299.00 | J216: Target Achieved | K216: 103.00 | L216: 52.55% | M216: Successful | N216: 2016-09-07
A217: 55 | B217: 2016-04-13 | D217: Magma | E217: Accu | F217: 88.00 | H217: 103 | I217: 103.00 | J217: Target Achieved | K217: 15.00 | L217: 17.05% | M217: Successful | N217: 2016-06-09
A218: 56 | B218: 2016-05-02 | D218: KEC International ltd $ | E218: Accu | F218: 127.50 | H218: 148 | I218: 148-150 | J218: Target Achieved | K218: =H218-F218 -> 20.50 | L218: =K218/F218 -> 16.08% | M218: Successful | N218: 2016-07-13
A219: 57 | B219: 2016-05-03 | D219: Mindtree | E219: Accu | F219: 675.00 | H219: 815 | I219: 790-800 | J219: Target Achieved | K219: =H219-F219 -> 140.00 | L219: =K219/F219 -> 20.74% | M219: Successful | N219: 2018-02-23
A220: 58 | B220: 2016-06-01 | D220: Atulauto | E220: Accu | F220: 500 | H220: 232.50 | I220: 565-570 | J220: Loss of Rs.267.50 /- | K220: =H220-F220 -> -267.50 | L220: =K220/F220 -> -53.50% | M220: Unsuccessful | N220: 2019-09-27
A221: 59 | B221: 2016-06-06 | D221: TRITURBINE | E221: Accu | F221: 110.00 | H221: 126.5 | I221: 125.00 | J221: Profit of Rs.16.50/- | K221: =H221-F221 -> 16.50 | L221: =K221/F221 -> 15.00% | M221: Successful | N221: 2016-07-01
A222: 60 | B222: 2016-06-17 | D222: Pennar Industries Ltd | E222: Accu | F222: 44.00 | H222: 69.5 | I222: 69.50 | J222: Profit of Rs.25.50/- | K222: =H222-F222 -> 25.50 | L222: =K222/F222 -> 57.95% | M222: Successful | N222: 2017-08-30
A223: 61 | B223: 2016-06-28 | D223: EVEREADY | E223: Accu | F223: 262.50 | H223: 340 | I223: 333.00 | J223: Profit of Rs.77.50/- | K223: 77.50 | L223: 29.52% | M223: Successful | N223: 2017-10-09
A224: 62 | B224: 2016-06-28 | D224: FIEMIND | E224: Accu | F224: 840.00 | H224: 1230 | I224: 1230.00 | J224: Target Achieved | K224: 390.00 | L224: 46.43% | M224: Successful | N224: 2016-10-06
A225: 63 | B225: 2016-07-05 | D225: Bajaj Corp Ltd | E225: Accu | F225: 395 | H225: =(468.5+342.5)/2 -> 405.50 | I225: 510.00 | J225: Profit of Rs.10.50/- | K225: =H225-F225 -> 10.50 | L225: =K225/F225 -> 3% | M225: Neutral | N225: 2019-05-21
A226: 64 | B226: 2016-08-02 | D226: GPPL $ | E226: Buy | F226: 169.5 | H226: 77.00 | I226: 198-200 | J226: Loss of Rs.92.5/- | K226: -92.50 | L226: -54.57% | M226: Unsuccessful | N226: 2019-02-26
A227: 65 | B227: 2016-08-04 | D227: WONDERLA HOLIDAYS LTD | E227: Accu | F227: 400 | H227: 305.00 | I227: 475.00 | J227: Loss of Rs.95/- | K227: -95.00 | L227: -23.75% | M227: Unsuccessful | N227: 2019-05-21
... 88 more rows

Sheet Sheet2 (hidden)
A1: SYMBOL | B1: SERIES | C1: OPEN | D1: HIGH | E1: LOW | F1: CLOSE | G1: LAST | H1: PREVCLOSE | I1: TOTTRDQTY | J1: TOTTRDVAL | K1: TIMESTAMP | L1: TOTALTRADES | M1: ISIN | N1: ISIN
A2: 20MICRONS | B2: EQ | C2: 36.6 | D2: 36.85 | E2: 35.8 | F2: 35.9 | G2: 36 | H2: 36.4 | I2: 24275 | J2: 876390.65 | K2: 2019-11-14 | L2: 566 | M2: INE144J01027
A3: 21STCENMGM | B3: EQ | C3: 13.7 | D3: 13.95 | E3: 13.7 | F3: 13.95 | G3: 13.95 | H3: 13.95 | I3: 1007 | J3: 14022.15 | K3: 2019-11-14 | L3: 11 | M3: INE253B01015
A4: 3IINFOTECH | B4: EQ | C4: 1.95 | D4: 1.95 | E4: 1.9 | F4: 1.9 | G4: 1.95 | H4: 1.9 | I4: 629699 | J4: 1203037.85 | K4: 2019-11-14 | L4: 434 | M4: INE748C01020
A5: 3MINDIA | B5: EQ | C5: 22160 | D5: 22464 | E5: 22160 | F5: 22269.55 | G5: 22165.05 | H5: 22258.2 | I5: 1460 | J5: 32597748.4 | K5: 2019-11-14 | L5: 619 | M5: INE470A01017
A6: 3PLAND | B6: EQ | C6: 6.25 | D6: 6.45 | E6: 6.25 | F6: 6.45 | G6: 6.45 | H6: 6.55 | I6: 55 | J6: 346.75 | K6: 2019-11-14 | L6: 2 | M6: INE105C01023
A7: 5PAISA | B7: EQ | C7: 156.35 | D7: 157.15 | E7: 149 | F7: 155.3 | G7: 156.8 | H7: 156.35 | I7: 6849 | J7: 1068625.6 | K7: 2019-11-14 | L7: 198 | M7: INE618L01018
A8: 63MOONS | B8: EQ | C8: 114.05 | D8: 117 | E8: 113.1 | F8: 113.7 | G8: 113.85 | H8: 114.05 | I8: 122789 | J8: 14074512.4 | K8: 2019-11-14 | L8: 1787 | M8: INE111B01023
A9: A2ZINFRA | B9: EQ | C9: 10.15 | D9: 10.15 | E9: 9.8 | F9: 9.8 | G9: 9.85 | H9: 9.95 | I9: 246671 | J9: 2440653.85 | K9: 2019-11-14 | L9: 321 | M9: INE619I01012
A10: AARTIDRUGS | B10: EQ | C10: 522 | D10: 533 | E10: 519.5 | F10: 527.75 | G10: 530 | H10: 528.2 | I10: 9945 | J10: 5230947.9 | K10: 2019-11-14 | L10: 1056 | M10: INE767A01016
A11: AARTIIND | B11: EQ | C11: 807.3 | D11: 809.95 | E11: 791.1 | F11: 799 | G11: 799 | H11: 814.45 | I11: 139999 | J11: 112515309.7 | K11: 2019-11-14 | L11: 4778 | M11: INE769A01020
A12: AARVEEDEN | B12: EQ | C12: 13.7 | D12: 13.8 | E12: 12.6 | F12: 13.05 | G12: 13.15 | H12: 14.2 | I12: 15192 | J12: 199973.35 | K12: 2019-11-14 | L12: 182 | M12: INE273D01019
A13: AAVAS | B13: EQ | C13: 1528 | D13: 1615 | E13: 1512 | F13: 1596.15 | G13: 1615 | H13: 1528.45 | I13: 54799 | J13: 86188687.8 | K13: 2019-11-14 | L13: 3924 | M13: INE216P01012
A14: ABAN | B14: BE | C14: 28.5 | D14: 28.9 | E14: 27.6 | F14: 28.1 | G14: 28.4 | H14: 28.85 | I14: 35642 | J14: 997509.6 | K14: 2019-11-14 | L14: 218 | M14: INE421A01028
A15: ABB | B15: EQ | C15: 1495 | D15: 1495 | E15: 1465 | F15: 1468.9 | G15: 1465 | H15: 1497.65 | I15: 197909 | J15: 292350216.2 | K15: 2019-11-14 | L15: 5384 | M15: INE117A01022
A16: ABBOTINDIA | B16: EQ | C16: 11899 | D16: 12293.1 | E16: 11899 | F16: 12043.25 | G16: 12035 | H16: 11794.6 | I16: 32851 | J16: 396348949.4 | K16: 2019-11-14 | L16: 5711 | M16: INE358A01014
A17: ABCAPITAL | B17: EQ | C17: 83 | D17: 83.85 | E17: 79 | F17: 80.25 | G17: 80.15 | H17: 83.4 | I17: 2579465 | J17: 208378458.1 | K17: 2019-11-14 | L17: 16745 | M17: INE674K01013
A18: ABFRL | B18: EQ | C18: 211 | D18: 211.9 | E18: 204.75 | F18: 208 | G18: 210 | H18: 210.4 | I18: 702009 | J18: 145082585.4 | K18: 2019-11-14 | L18: 7263 | M18: INE647O01011
A19: ABSLBANETF | B19: EQ | C19: 324.9 | D19: 324.9 | E19: 324.9 | F19: 324.9 | G19: 324.9 | H19: 309 | I19: 5 | J19: 1624.5 | K19: 2019-11-14 | L19: 1 | M19: INF209KB1O58
A20: ABSLNN50ET | B20: EQ | C20: 286.7 | D20: 286.7 | E20: 283.95 | F20: 283.95 | G20: 283.95 | H20: 287.96 | I20: 138 | J20: 39223.2 | K20: 2019-11-14 | L20: 6 | M20: INF209KB1B87
A21: ACC | B21: EQ | C21: 1490 | D21: 1508.6 | E21: 1473.55 | F21: 1486.9 | G21: 1485.05 | H21: 1494 | I21: 737571 | J21: 1096519503 | K21: 2019-11-14 | L21: 22494 | M21: INE012A01025
A22: ACCELYA | B22: EQ | C22: 970 | D22: 1124.9 | E22: 966.65 | F22: 1099 | G22: 1110 | H22: 983.2 | I22: 42007 | J22: 44320201.3 | K22: 2019-11-14 | L22: 4429 | M22: INE793A01012
A23: ACE | B23: EQ | C23: 86.5 | D23: 87.45 | E23: 84 | F23: 86.15 | G23: 86.25 | H23: 86.35 | I23: 133715 | J23: 11503198.2 | K23: 2019-11-14 | L23: 1164 | M23: INE731H01025
A24: ADANIENT | B24: EQ | C24: 196.25 | D24: 203.15 | E24: 194.05 | F24: 202.3 | G24: 201.6 | H24: 198.2 | I24: 4141184 | J24: 830455493.8 | K24: 2019-11-14 | L24: 28224 | M24: INE423A01024
A25: ADANIGAS | B25: EQ | C25: 148.9 | D25: 148.9 | E25: 147.15 | F25: 147.4 | G25: 147.45 | H25: 148.4 | I25: 546430 | J25: 80667430.65 | K25: 2019-11-14 | L25: 3079 | M25: INE399L01023
A26: ADANIGREEN | B26: EQ | C26: 96.7 | D26: 98.5 | E26: 93.5 | F26: 95.05 | G26: 95.2 | H26: 96 | I26: 1611104 | J26: 153630031.8 | K26: 2019-11-14 | L26: 12218 | M26: INE364U01010
A27: ADANIPORTS | B27: EQ | C27: 371.9 | D27: 374.1 | E27: 365.85 | F27: 369.1 | G27: 368.2 | H27: 370.8 | I27: 2662084 | J27: 985322863.5 | K27: 2019-11-14 | L27: 38410 | M27: INE742F01042
A28: ADANIPOWER | B28: EQ | C28: 62 | D28: 63.3 | E28: 59.8 | F28: 61.8 | G28: 61.8 | H28: 63.35 | I28: 22541888 | J28: 1384765265 | K28: 2019-11-14 | L28: 51505 | M28: INE814H01011
A29: ADANITRANS | B29: EQ | C29: 275 | D29: 276.25 | E29: 268.25 | F29: 271.15 | G29: 270.7 | H29: 274.5 | I29: 214175 | J29: 58111958.6 | K29: 2019-11-14 | L29: 5453 | M29: INE931S01010
A30: ADFFOODS | B30: EQ | C30: 298 | D30: 301.9 | E30: 287.5 | F30: 298.2 | G30: 299.45 | H30: 299.9 | I30: 69480 | J30: 20547077.65 | K30: 2019-11-14 | L30: 1404 | M30: INE982B01019
A31: ADHUNIKIND | B31: EQ | C31: 122.6 | D31: 124.6 | E31: 98 | F31: 99.85 | G31: 104 | H31: 122.5 | I31: 129124 | J31: 14201645.85 | K31: 2019-11-14 | L31: 2055 | M31: INE452L01012
A32: ADLABS | B32: BE | C32: 3.6 | D32: 3.6 | E32: 3.6 | F32: 3.6 | G32: 3.6 | H32: 3.45 | I32: 78652 | J32: 283147.2 | K32: 2019-11-14 | L32: 106 | M32: INE172N01012
A33: ADORWELD | B33: EQ | C33: 342.85 | D33: 342.85 | E33: 319 | F33: 322.05 | G33: 325.95 | H33: 339.35 | I33: 7182 | J33: 2327729.4 | K33: 2019-11-14 | L33: 403 | M33: INE045A01017
A34: ADROITINFO | B34: EQ | C34: 9.4 | D34: 9.75 | E34: 8.85 | F34: 9.75 | G34: 9.75 | H34: 9.3 | I34: 4533 | J34: 43235.1 | K34: 2019-11-14 | L34: 27 | M34: INE737B01033
A35: ADSL | B35: EQ | C35: 16.35 | D35: 18.5 | E35: 16.35 | F35: 17.3 | G35: 17.25 | H35: 16.3 | I35: 247336 | J35: 4371454.35 | K35: 2019-11-14 | L35: 670 | M35: INE102I01027
A36: ADVANIHOTR | B36: EQ | C36: 57.9 | D36: 57.95 | E36: 56 | F36: 56.5 | G36: 56.5 | H36: 57.15 | I36: 1883 | J36: 106052.75 | K36: 2019-11-14 | L36: 50 | M36: INE199C01026
A37: ADVENZYMES | B37: EQ | C37: 172 | D37: 173.45 | E37: 165.45 | F37: 166.35 | G37: 166.5 | H37: 173.4 | I37: 70807 | J37: 11935315.3 | K37: 2019-11-14 | L37: 2134 | M37: INE837H01020
A38: AEGISCHEM | B38: EQ | C38: 165 | D38: 184.35 | E38: 165 | F38: 179.2 | G38: 180.8 | H38: 165.25 | I38: 649000 | J38: 115521254.5 | K38: 2019-11-14 | L38: 9944 | M38: INE208C01025
A39: AFFLE | B39: EQ | C39: 1665 | D39: 1704.25 | E39: 1585 | F39: 1663.8 | G39: 1662 | H39: 1650.55 | I39: 442580 | J39: 733980640.5 | K39: 2019-11-14 | L39: 32798 | M39: INE00WC01019
A40: AGARIND | B40: EQ | C40: 113.45 | D40: 117.5 | E40: 111.95 | F40: 114.2 | G40: 113.4 | H40: 113.4 | I40: 23080 | J40: 2688692.7 | K40: 2019-11-14 | L40: 154 | M40: INE204E01012
A41: AGCNET | B41: BE | C41: 120 | D41: 122.2 | E41: 120 | F41: 120.55 | G41: 120 | H41: 121.45 | I41: 2471 | J41: 297160.7 | K41: 2019-11-14 | L41: 23 | M41: INE676A01019
A42: AGRITECH | B42: EQ | C42: 47.4 | D42: 47.8 | E42: 44.3 | F42: 44.5 | G42: 44.4 | H42: 46.75 | I42: 11716 | J42: 528599.35 | K42: 2019-11-14 | L42: 312 | M42: INE449G01018
A43: AGROPHOS | B43: EQ | C43: 122.2 | D43: 122.6 | E43: 122.15 | F43: 122.2 | G43: 122.25 | H43: 122.1 | I43: 326528 | J43: 39944511.25 | K43: 2019-11-14 | L43: 21347 | M43: INE740V01019
A44: AHLEAST | B44: EQ | C44: 182.05 | D44: 183.65 | E44: 174.25 | F44: 178.25 | G44: 177.05 | H44: 177 | I44: 2700 | J44: 475302.45 | K44: 2019-11-14 | L44: 156 | M44: INE926K01017
A45: AHLUCONT | B45: EQ | C45: 286 | D45: 298.25 | E45: 276 | F45: 285.85 | G45: 287.8 | H45: 286.4 | I45: 13258 | J45: 3799803.65 | K45: 2019-11-14 | L45: 1077 | M45: INE758C01029
A46: AHLWEST | B46: EQ | C46: 274.5 | D46: 283.95 | E46: 274.5 | F46: 275 | G46: 275 | H46: 284.75 | I46: 726 | J46: 201448.45 | K46: 2019-11-14 | L46: 211 | M46: INE915K01010
A47: AIAENG | B47: EQ | C47: 1698.2 | D47: 1698.2 | E47: 1639.95 | F47: 1641.8 | G47: 1640.1 | H47: 1698.6 | I47: 84255 | J47: 138654261.7 | K47: 2019-11-14 | L47: 7739 | M47: INE212H01026
A48: AIONJSW | B48: EQ | C48: 10 | D48: 10.4 | E48: 9.85 | F48: 9.95 | G48: 10 | H48: 9.95 | I48: 33180 | J48: 329904.6 | K48: 2019-11-14 | L48: 76 | M48: INE743C01021
A49: AIRAN | B49: EQ | C49: 10.2 | D49: 11.1 | E49: 10.2 | F49: 10.9 | G49: 10.75 | H49: 10.7 | I49: 40736 | J49: 439273.85 | K49: 2019-11-14 | L49: 117 | M49: INE645W01026
A50: AJANTPHARM | B50: EQ | C50: 982 | D50: 989.75 | E50: 971 | F50: 975.55 | G50: 979.9 | H50: 981.45 | I50: 42356 | J50: 41432059.8 | K50: 2019-11-14 | L50: 3573 | M50: INE031B01049
A51: AJMERA | B51: EQ | C51: 123.9 | D51: 124.95 | E51: 121.55 | F51: 123.1 | G51: 122.6 | H51: 123.15 | I51: 18296 | J51: 2251949.9 | K51: 2019-11-14 | L51: 661 | M51: INE298G01027
A52: AKASH | B52: EQ | C52: 63 | D52: 65.1 | E52: 60 | F52: 60.15 | G52: 60 | H52: 62.05 | I52: 2282 | J52: 143147.1 | K52: 2019-11-14 | L52: 18 | M52: INE737W01013
A53: AKSHARCHEM | B53: EQ | C53: 201.45 | D53: 202 | E53: 194.85 | F53: 197.95 | G53: 197.9 | H53: 209.8 | I53: 9697 | J53: 1922141.05 | K53: 2019-11-14 | L53: 541 | M53: INE542B01011
A54: AKSHOPTFBR | B54: EQ | C54: 6.85 | D54: 7.05 | E54: 6.75 | F54: 6.8 | G54: 6.85 | H54: 6.95 | I54: 239565 | J54: 1635448.15 | K54: 2019-11-14 | L54: 425 | M54: INE523B01011
A55: AKZOINDIA | B55: EQ | C55: 1928 | D55: 1940 | E55: 1898.95 | F55: 1930.15 | G55: 1940 | H55: 1914.45 | I55: 14543 | J55: 27847194.65 | K55: 2019-11-14 | L55: 2360 | M55: INE133A01011
A56: ALANKIT | B56: EQ | C56: 15.3 | D56: 15.6 | E56: 14.9 | F56: 15.6 | G56: 15.6 | H56: 14.9 | I56: 63137 | J56: 981445.15 | K56: 2019-11-14 | L56: 337 | M56: INE914E01040
A57: ALBERTDAVD | B57: EQ | C57: 424 | D57: 449.9 | E57: 405.7 | F57: 414.8 | G57: 420 | H57: 417.65 | I57: 17316 | J57: 7241474.6 | K57: 2019-11-14 | L57: 1001 | M57: INE155C01010
A58: ALBK | B58: EQ | C58: 25.6 | D58: 25.9 | E58: 25.1 | F58: 25.55 | G58: 25.7 | H58: 25.6 | I58: 522584 | J58: 13306532.8 | K58: 2019-11-14 | L58: 2103 | M58: INE428A01015
A59: ALCHEM | B59: BE | C59: 0.8 | D59: 0.8 | E59: 0.8 | F59: 0.8 | G59: 0.8 | H59: 0.8 | I59: 1 | J59: 0.8 | K59: 2019-11-14 | L59: 1 | M59: INE964B01033
A60: ALEMBICLTD | B60: EQ | C60: 58 | D60: 59.15 | E60: 54.2 | F60: 54.8 | G60: 54.9 | H60: 58 | I60: 441604 | J60: 24863177.9 | K60: 2019-11-14 | L60: 6622 | M60: INE426A01027
A61: ALICON | B61: EQ | C61: 378.5 | D61: 388 | E61: 377.95 | F61: 384 | G61: 384 | H61: 378.4 | I61: 850 | J61: 326565.65 | K61: 2019-11-14 | L61: 165 | M61: INE062D01024
A62: ALKALI | B62: EQ | C62: 44.5 | D62: 44.5 | E62: 42.4 | F62: 43 | G62: 43 | H62: 43.05 | I62: 9355 | J62: 402642.95 | K62: 2019-11-14 | L62: 128 | M62: INE773I01017
A63: ALKEM | B63: EQ | C63: 2079.45 | D63: 2080 | E63: 2011 | F63: 2021.25 | G63: 2015 | H63: 2065.8 | I63: 91701 | J63: 189483304.2 | K63: 2019-11-14 | L63: 3438 | M63: INE540L01014
A64: ALKYLAMINE | B64: EQ | C64: 1008.95 | D64: 1048.3 | E64: 995 | F64: 1019.55 | G64: 1030 | H64: 1009.3 | I64: 18442 | J64: 18872996.75 | K64: 2019-11-14 | L64: 1164 | M64: INE150B01021
A65: ALLCARGO | B65: EQ | C65: 96.75 | D65: 97 | E65: 94.2 | F65: 94.55 | G65: 94.7 | H65: 96.6 | I65: 118063 | J65: 11286011.15 | K65: 2019-11-14 | L65: 1950 | M65: INE418H01029
A66: ALLSEC | B66: EQ | C66: 293.75 | D66: 293.75 | E66: 275.75 | F66: 283.15 | G66: 287.75 | H66: 282 | I66: 4153 | J66: 1171051.9 | K66: 2019-11-14 | L66: 298 | M66: INE835G01018
A67: ALMONDZ | B67: EQ | C67: 9.05 | D67: 9.85 | E67: 9.05 | F67: 9.25 | G67: 9.25 | H67: 9.4 | I67: 2340 | J67: 22346.6 | K67: 2019-11-14 | L67: 8 | M67: INE326B01027
A68: ALOKTEXT | B68: EQ | C68: 1.95 | D68: 1.95 | E68: 1.95 | F68: 1.95 | G68: 1.95 | H68: 1.9 | I68: 322809 | J68: 629477.55 | K68: 2019-11-14 | L68: 152 | M68: INE270A01011
A69: ALPA | B69: EQ | C69: 17.45 | D69: 17.45 | E69: 16.45 | F69: 16.95 | G69: 17 | H69: 17.3 | I69: 17757 | J69: 299885.6 | K69: 2019-11-14 | L69: 98 | M69: INE385I01010
A70: ALPHAGEO | B70: EQ | C70: 168.05 | D70: 177.45 | E70: 168.05 | F70: 169.7 | G70: 169.1 | H70: 176.85 | I70: 17096 | J70: 2889407.1 | K70: 2019-11-14 | L70: 487 | M70: INE137C01018
A71: ALPSINDUS | B71: BE | C71: 0.7 | D71: 0.7 | E71: 0.65 | F71: 0.7 | G71: 0.7 | H71: 0.65 | I71: 39022 | J71: 27260.4 | K71: 2019-11-14 | L71: 18 | M71: INE093B01015
A72: AMARAJABAT | B72: EQ | C72: 733 | D72: 750 | E72: 728.3 | F72: 748.3 | G72: 749.95 | H72: 732.2 | I72: 1457387 | J72: 1082501046 | K72: 2019-11-14 | L72: 38012 | M72: INE885A01032
A73: AMBER | B73: EQ | C73: 985.1 | D73: 1015 | E73: 964.25 | F73: 978.2 | G73: 971.2 | H73: 985.1 | I73: 37973 | J73: 37686807.55 | K73: 2019-11-14 | L73: 2843 | M73: INE371P01015
A74: AMBIKCO | B74: EQ | C74: 890 | D74: 891.05 | E74: 876.5 | F74: 889.65 | G74: 890 | H74: 870.25 | I74: 3536 | J74: 3137726.55 | K74: 2019-11-14 | L74: 341 | M74: INE540G01014
A75: AMBUJACEM | B75: EQ | C75: 195.1 | D75: 201 | E75: 193 | F75: 200.55 | G75: 200.65 | H75: 195.25 | I75: 4639427 | J75: 919670576 | K75: 2019-11-14 | L75: 29378 | M75: INE079A01024
A76: AMDIND | B76: EQ | C76: 17.25 | D76: 17.45 | E76: 16.4 | F76: 16.9 | G76: 17 | H76: 17.25 | I76: 23777 | J76: 401360.65 | K76: 2019-11-14 | L76: 221 | M76: INE005I01014
A77: AMJLAND | B77: EQ | C77: 18.6 | D77: 19.2 | E77: 18.45 | F77: 18.55 | G77: 19 | H77: 18.9 | I77: 31372 | J77: 583779.25 | K77: 2019-11-14 | L77: 56 | M77: INE606A01024
A78: AMRUTANJAN | B78: EQ | C78: 502.8 | D78: 502.8 | E78: 458.95 | F78: 466.9 | G78: 466.5 | H78: 501.35 | I78: 42591 | J78: 20034461.45 | K78: 2019-11-14 | L78: 2858 | M78: INE098F01031
A79: ANANTRAJ | B79: EQ | C79: 33.15 | D79: 33.25 | E79: 32.75 | F79: 33 | G79: 33.15 | H79: 33.1 | I79: 216422 | J79: 7144180.7 | K79: 2019-11-14 | L79: 406 | M79: INE242C01024
A80: ANDHRABANK | B80: EQ | C80: 17.5 | D80: 17.5 | E80: 17 | F80: 17.15 | G80: 17.2 | H80: 17.4 | I80: 488989 | J80: 8404028 | K80: 2019-11-14 | L80: 1393 | M80: INE434A01013
A81: ANDHRACEMT | B81: BE | C81: 3 | D81: 3 | E81: 2.8 | F81: 2.85 | G81: 2.9 | H81: 2.9 | I81: 90426 | J81: 261790.8 | K81: 2019-11-14 | L81: 114 | M81: INE666E01012
A82: ANDHRSUGAR | B82: EQ | C82: 304 | D82: 305 | E82: 293.35 | F82: 298.3 | G82: 299 | H82: 302.85 | I82: 37394 | J82: 11169278.15 | K82: 2019-11-14 | L82: 1574 | M82: INE715B01013
A83: ANIKINDS | B83: BE | C83: 9.05 | D83: 9.55 | E83: 9.05 | F83: 9.55 | G83: 9.55 | H83: 9.5 | I83: 879 | J83: 8104.95 | K83: 2019-11-14 | L83: 8 | M83: INE087B01017
A84: ANKITMETAL | B84: BE | C84: 0.5 | D84: 0.6 | E84: 0.5 | F84: 0.6 | G84: 0.5 | H84: 0.55 | I84: 37822 | J84: 22356.4 | K84: 2019-11-14 | L84: 28 | M84: INE106I01010
A85: ANSALAPI | B85: EQ | C85: 5.3 | D85: 5.3 | E85: 5.3 | F85: 5.3 | G85: 5.3 | H85: 5.55 | I85: 8583 | J85: 45489.9 | K85: 2019-11-14 | L85: 21 | M85: INE436A01026
A86: ANSALHSG | B86: EQ | C86: 7.45 | D86: 7.45 | E86: 7.45 | F86: 7.45 | G86: 7.45 | H86: 8.25 | I86: 11579 | J86: 86263.55 | K86: 2019-11-14 | L86: 59 | M86: INE880B01015
A87: ANTGRAPHIC | B87: BE | C87: 0.65 | D87: 0.65 | E87: 0.6 | F87: 0.6 | G87: 0.6 | H87: 0.65 | I87: 22420 | J87: 13457.2 | K87: 2019-11-14 | L87: 15 | M87: INE414B01021
A88: ANUP | B88: EQ | C88: 505.05 | D88: 505.9 | E88: 489 | F88: 491.5 | G88: 492 | H88: 499.9 | I88: 25473 | J88: 12571949 | K88: 2019-11-14 | L88: 536 | M88: INE294Z01018
A89: APARINDS | B89: EQ | C89: 502.9 | D89: 508.75 | E89: 489.95 | F89: 493.25 | G89: 493 | H89: 510.35 | I89: 4752 | J89: 2370793.3 | K89: 2019-11-14 | L89: 661 | M89: INE372A01015
A90: APCL | B90: EQ | C90: 153.45 | D90: 160.95 | E90: 151.35 | F90: 157.15 | G90: 159 | H90: 155.95 | I90: 3272 | J90: 510908.8 | K90: 2019-11-14 | L90: 213 | M90: INE071F01012
A91: APCOTEXIND | B91: EQ | C91: 160.1 | D91: 166 | E91: 160.1 | F91: 162.35 | G91: 162.5 | H91: 160.75 | I91: 18227 | J91: 2969161.85 | K91: 2019-11-14 | L91: 848 | M91: INE116A01032
A92: APEX | B92: EQ | C92: 307.25 | D92: 346.65 | E92: 307 | F92: 327.6 | G92: 327.5 | H92: 301.5 | I92: 1267637 | J92: 423369982.3 | K92: 2019-11-14 | L92: 27043 | M92: INE346W01013
A93: APLAPOLLO | B93: EQ | C93: 1510 | D93: 1530 | E93: 1470 | F93: 1493.1 | G93: 1498 | H93: 1498.85 | I93: 26115 | J93: 39250975.4 | K93: 2019-11-14 | L93: 1890 | M93: INE702C01019
A94: APLLTD | B94: EQ | C94: 565.95 | D94: 572 | E94: 556.85 | F94: 565.25 | G94: 570 | H94: 569.85 | I94: 43114 | J94: 24412984.2 | K94: 2019-11-14 | L94: 2341 | M94: INE901L01018
A95: APOLLO | B95: EQ | C95: 80.45 | D95: 81.75 | E95: 77.25 | F95: 77.5 | G95: 77.25 | H95: 80.45 | I95: 37554 | J95: 2921110.8 | K95: 2019-11-14 | L95: 607 | M95: INE713T01010
A96: APOLLOHOSP | B96: EQ | C96: 1394 | D96: 1441.5 | E96: 1386.3 | F96: 1419.15 | G96: 1422 | H96: 1388.65 | I96: 1643108 | J96: 2326256906 | K96: 2019-11-14 | L96: 54471 | M96: INE437A01024
A97: APOLLOPIPE | B97: EQ | C97: 374.05 | D97: 378.5 | E97: 369 | F97: 370.95 | G97: 369 | H97: 373.45 | I97: 8624 | J97: 3219026.45 | K97: 2019-11-14 | L97: 251 | M97: INE126J01016
A98: APOLLOTYRE | B98: EQ | C98: 163 | D98: 165.15 | E98: 161.9 | F98: 162.7 | G98: 163 | H98: 163.6 | I98: 2272057 | J98: 371232176.5 | K98: 2019-11-14 | L98: 16861 | M98: INE438A01022
A99: APOLSINHOT | B99: EQ | C99: 825 | D99: 839 | E99: 810 | F99: 813.45 | G99: 815 | H99: 823.95 | I99: 1761 | J99: 1453123.45 | K99: 2019-11-14 | L99: 67 | M99: INE451F01024
A100: APTECHT | B100: EQ | C100: 167.65 | D100: 170.7 | E100: 161.9 | F100: 162.6 | G100: 163.7 | H100: 167.65 | I100: 186083 | J100: 30885402.05 | K100: 2019-11-14 | L100: 3921 | M100: INE266F01018
A101: ARCHIDPLY | B101: EQ | C101: 29.5 | D101: 29.5 | E101: 27.45 | F101: 28.05 | G101: 27.95 | H101: 27.9 | I101: 6689 | J101: 186716.3 | K101: 2019-11-14 | L101: 183 | M101: INE877I01016
A102: ARCHIES | B102: BE | C102: 19.45 | D102: 19.7 | E102: 19.1 | F102: 19.5 | G102: 19.7 | H102: 19.2 | I102: 8575 | J102: 166031.75 | K102: 2019-11-14 | L102: 71 | M102: INE731A01020
A103: ARCOTECH | B103: BE | C103: 2.4 | D103: 2.4 | E103: 2.4 | F103: 2.4 | G103: 2.4 | H103: 2.3 | I103: 10120 | J103: 24288 | K103: 2019-11-14 | L103: 20 | M103: INE574I01035
A104: ARIES | B104: EQ | C104: 70.3 | D104: 73.7 | E104: 67.6 | F104: 68.35 | G104: 68.5 | H104: 64.35 | I104: 179941 | J104: 12532284.1 | K104: 2019-11-14 | L104: 2971 | M104: INE298I01015
A105: ARIHANT | B105: EQ | C105: 32.5 | D105: 33 | E105: 28.55 | F105: 31.9 | G105: 31.8 | H105: 31.55 | I105: 35118 | J105: 1068873.3 | K105: 2019-11-14 | L105: 359 | M105: INE413D01011
A106: ARIHANTSUP | B106: BE | C106: 29.5 | D106: 29.5 | E106: 26.95 | F106: 28.4 | G106: 28.4 | H106: 28.1 | I106: 1268 | J106: 35164.2 | K106: 2019-11-14 | L106: 22 | M106: INE643K01018
A107: ARMANFIN | B107: EQ | C107: 557.95 | D107: 569.95 | E107: 541.2 | F107: 557.55 | G107: 566.5 | H107: 555.65 | I107: 8776 | J107: 4910566.1 | K107: 2019-11-14 | L107: 641 | M107: INE109C01017
A108: AROGRANITE | B108: EQ | C108: 40.35 | D108: 40.8 | E108: 37.55 | F108: 38.4 | G108: 38.35 | H108: 38.85 | I108: 7270 | J108: 277648.15 | K108: 2019-11-14 | L108: 160 | M108: INE210C01013
A109: ARROWGREEN | B109: EQ | C109: 53.8 | D109: 54.95 | E109: 51.25 | F109: 54.8 | G109: 54.95 | H109: 52.35 | I109: 5352 | J109: 289261.2 | K109: 2019-11-14 | L109: 230 | M109: INE570D01018
A110: ARROWTEX | B110: EQ | C110: 11.7 | D110: 11.7 | E110: 9.55 | F110: 10.1 | G110: 10.1 | H110: 10.55 | I110: 24498 | J110: 240985.65 | K110: 2019-11-14 | L110: 152 | M110: INE933J01015
A111: ARSHIYA | B111: EQ | C111: 18.35 | D111: 18.35 | E111: 17 | F111: 17.4 | G111: 17 | H111: 17.85 | I111: 28627 | J111: 501124.65 | K111: 2019-11-14 | L111: 119 | M111: INE968D01022
A112: ARSSINFRA | B112: EQ | C112: 24.45 | D112: 24.75 | E112: 24.45 | F112: 24.75 | G112: 24.75 | H112: 23.6 | I112: 12365 | J112: 305557.75 | K112: 2019-11-14 | L112: 43 | M112: INE267I01010
A113: ARVIND | B113: EQ | C113: 50.5 | D113: 50.7 | E113: 49.4 | F113: 49.85 | G113: 49.9 | H113: 50.4 | I113: 552856 | J113: 27544307.3 | K113: 2019-11-14 | L113: 4117 | M113: INE034A01011
A114: ARVINDFASN | B114: EQ | C114: 398.4 | D114: 399 | E114: 381.05 | F114: 385.9 | G114: 385.6 | H114: 398.4 | I114: 18969 | J114: 7332453.55 | K114: 2019-11-14 | L114: 2096 | M114: INE955V01021
A115: ARVSMART | B115: EQ | C115: 96.05 | D115: 98.4 | E115: 94.5 | F115: 97.1 | G115: 96.25 | H115: 96.8 | I115: 5328 | J115: 512808.55 | K115: 2019-11-14 | L115: 278 | M115: INE034S01021
A116: ASAHIINDIA | B116: EQ | C116: 195.05 | D116: 196.5 | E116: 193.5 | F116: 195.15 | G116: 195 | H116: 194.95 | I116: 55613 | J116: 10845153.8 | K116: 2019-11-14 | L116: 478 | M116: INE439A01020
A117: ASAHISONG | B117: EQ | C117: 149.85 | D117: 151.45 | E117: 141 | F117: 147.9 | G117: 150 | H117: 145.2 | I117: 2743 | J117: 400470.35 | K117: 2019-11-14 | L117: 453 | M117: INE228I01012
A118: ASAL | B118: EQ | C118: 33.2 | D118: 33.2 | E118: 30.9 | F118: 31.4 | G118: 31.1 | H118: 32.15 | I118: 6042 | J118: 189946.45 | K118: 2019-11-14 | L118: 152 | M118: INE900C01027
A119: ASHAPURMIN | B119: BE | C119: 26.25 | D119: 28.5 | E119: 26.25 | F119: 26.55 | G119: 27.15 | H119: 27.5 | I119: 6868 | J119: 184679 | K119: 2019-11-14 | L119: 49 | M119: INE348A01023
A120: ASHIANA | B120: EQ | C120: 100.3 | D120: 102.6 | E120: 95.5 | F120: 97.9 | G120: 98 | H120: 103.95 | I120: 111990 | J120: 10911466.8 | K120: 2019-11-14 | L120: 1874 | M120: INE365D01021
A121: ASHIMASYN | B121: EQ | C121: 7.55 | D121: 7.55 | E121: 7 | F121: 7.2 | G121: 7.15 | H121: 7.4 | I121: 38313 | J121: 273342.9 | K121: 2019-11-14 | L121: 192 | M121: INE440A01010
A122: ASHOKA | B122: EQ | C122: 99.7 | D122: 103 | E122: 94.65 | F122: 96.05 | G122: 95.3 | H122: 94.2 | I122: 1447040 | J122: 142323790.8 | K122: 2019-11-14 | L122: 26289 | M122: INE442H01029
A123: ASHOKLEY | B123: EQ | C123: 80.2 | D123: 80.4 | E123: 77.4 | F123: 79 | G123: 80.1 | H123: 80.6 | I123: 26587855 | J123: 2098541580 | K123: 2019-11-14 | L123: 90472 | M123: INE208A01029
A124: ASIANHOTNR | B124: EQ | C124: 101.2 | D124: 102.7 | E124: 94 | F124: 95.95 | G124: 94 | H124: 101.2 | I124: 859 | J124: 84420.45 | K124: 2019-11-14 | L124: 159 | M124: INE363A01022
A125: ASIANPAINT | B125: EQ | C125: 1778 | D125: 1800 | E125: 1766.45 | F125: 1771.85 | G125: 1770.2 | H125: 1770.45 | I125: 1116800 | J125: 1988563051 | K125: 2019-11-14 | L125: 48710 | M125: INE021A01026
A126: ASIANTILES | B126: EQ | C126: 228.35 | D126: 234.4 | E126: 226.2 | F126: 230.35 | G126: 230 | H126: 226.25 | I126: 28581 | J126: 6608804.2 | K126: 2019-11-14 | L126: 3913 | M126: INE022I01019
A127: ASPINWALL | B127: EQ | C127: 142 | D127: 144.95 | E127: 135.05 | F127: 140 | G127: 140 | H127: 144.5 | I127: 604 | J127: 84549.6 | K127: 2019-11-14 | L127: 12 | M127: INE991I01015
A128: ASTEC | B128: EQ | C128: 361.45 | D128: 373 | E128: 358 | F128: 368.1 | G128: 373 | H128: 360.4 | I128: 7569 | J128: 2738509.8 | K128: 2019-11-14 | L128: 409 | M128: INE563J01010
A129: ASTERDM | B129: EQ | C129: 146 | D129: 155 | E129: 142.75 | F129: 152.85 | G129: 154 | H129: 145.95 | I129: 232796 | J129: 35181675.45 | K129: 2019-11-14 | L129: 6551 | M129: INE914M01019
A130: ASTRAL | B130: EQ | C130: 1085 | D130: 1102.4 | E130: 1067 | F130: 1085.55 | G130: 1081.5 | H130: 1082.05 | I130: 123757 | J130: 133951355.7 | K130: 2019-11-14 | L130: 8981 | M130: INE006I01046
A131: ASTRAMICRO | B131: EQ | C131: 81 | D131: 81.95 | E131: 78.45 | F131: 78.85 | G131: 78.9 | H131: 81.55 | I131: 68717 | J131: 5461235.85 | K131: 2019-11-14 | L131: 784 | M131: INE386C01029
A132: ASTRAZEN | B132: EQ | C132: 2548.95 | D132: 2658.95 | E132: 2528.45 | F132: 2648.8 | G132: 2654 | H132: 2541.4 | I132: 53592 | J132: 139928742.9 | K132: 2019-11-14 | L132: 5821 | M132: INE203A01020
A133: ASTRON | B133: EQ | C133: 38.35 | D133: 40.8 | E133: 38.35 | F133: 40.65 | G133: 40.2 | H133: 38.9 | I133: 899026 | J133: 36271417.45 | K133: 2019-11-14 | L133: 2069 | M133: INE646X01014
A134: ATFL | B134: EQ | C134: 597.95 | D134: 597.95 | E134: 582.55 | F134: 584.65 | G134: 584 | H134: 590.55 | I134: 1701 | J134: 997665.6 | K134: 2019-11-14 | L134: 199 | M134: INE209A01019
A135: ATLANTA | B135: BE | C135: 7.5 | D135: 7.5 | E135: 7.1 | F135: 7.2 | G135: 7.3 | H135: 7.45 | I135: 3852 | J135: 27643.85 | K135: 2019-11-14 | L135: 39 | M135: INE285H01022
A136: ATLASCYCLE | B136: BE | C136: 54.95 | D136: 56.5 | E136: 53.8 | F136: 55.2 | G136: 55.2 | H136: 54.95 | I136: 1396 | J136: 76132.6 | K136: 2019-11-14 | L136: 31 | M136: INE446A01025
A137: ATUL | B137: EQ | C137: 4011.1 | D137: 4102.55 | E137: 3968 | F137: 3976.75 | G137: 3982 | H137: 4029.55 | I137: 12049 | J137: 48220522.95 | K137: 2019-11-14 | L137: 2419 | M137: INE100A01010
A138: ATULAUTO | B138: EQ | C138: 220.8 | D138: 224.05 | E138: 218.5 | F138: 220.15 | G138: 220.5 | H138: 220.75 | I138: 11054 | J138: 2440292.8 | K138: 2019-11-14 | L138: 530 | M138: INE951D01028
A139: AUBANK | B139: EQ | C139: 811.4 | D139: 848.7 | E139: 776.5 | F139: 836.05 | G139: 825 | H139: 808.15 | I139: 2697966 | J139: 2220757752 | K139: 2019-11-14 | L139: 79768 | M139: INE949L01017
A140: AURIONPRO | B140: EQ | C140: 75.25 | D140: 76.95 | E140: 74.75 | F140: 74.85 | G140: 74.75 | H140: 75.5 | I140: 4686 | J140: 354912.9 | K140: 2019-11-14 | L140: 99 | M140: INE132H01018
A141: AUROPHARMA | B141: EQ | C141: 412.65 | D141: 412.65 | E141: 389.35 | F141: 395.8 | G141: 397 | H141: 433.85 | I141: 16978139 | J141: 6740026228 | K141: 2019-11-14 | L141: 226984 | M141: INE406A01037
A142: AUSOMENT | B142: EQ | C142: 30.9 | D142: 30.9 | E142: 26.25 | F142: 27.85 | G142: 28.85 | H142: 28.85 | I142: 1254 | J142: 35195.45 | K142: 2019-11-14 | L142: 87 | M142: INE218C01016
A143: AUTOAXLES | B143: EQ | C143: 802.15 | D143: 812 | E143: 793.05 | F143: 800.55 | G143: 803 | H143: 801.3 | I143: 6013 | J143: 4827793 | K143: 2019-11-14 | L143: 662 | M143: INE449A01011
A144: AUTOIND | B144: EQ | C144: 25 | D144: 25 | E144: 23.15 | F144: 24 | G144: 24 | H144: 24.25 | I144: 13585 | J144: 323756.45 | K144: 2019-11-14 | L144: 116 | M144: INE718H01014
A145: AUTOLITIND | B145: EQ | C145: 24.8 | D145: 24.8 | E145: 20.6 | F145: 20.75 | G145: 20.6 | H145: 22.85 | I145: 14196 | J145: 301814.9 | K145: 2019-11-14 | L145: 311 | M145: INE448A01013
A146: AVADHSUGAR | B146: EQ | C146: 256.1 | D146: 259 | E146: 252 | F146: 252.75 | G146: 252.7 | H146: 255.8 | I146: 49017 | J146: 12495069.25 | K146: 2019-11-14 | L146: 1572 | M146: INE349W01017
A147: AVANTIFEED | B147: EQ | C147: 505.1 | D147: 540.9 | E147: 505.1 | F147: 530.8 | G147: 531 | H147: 504.6 | I147: 1366750 | J147: 723682366.8 | K147: 2019-11-14 | L147: 35217 | M147: INE871C01038
A148: AVTNPL | B148: EQ | C148: 29.3 | D148: 29.35 | E148: 28.55 | F148: 28.65 | G148: 28.6 | H148: 28.65 | I148: 55252 | J148: 1593780.5 | K148: 2019-11-14 | L148: 339 | M148: INE488D01021
A149: AXISBANK | B149: EQ | C149: 711 | D149: 721.8 | E149: 707.25 | F149: 715.9 | G149: 716.25 | H149: 711.2 | I149: 8000528 | J149: 5718510838 | K149: 2019-11-14 | L149: 127491 | M149: INE238A01034
A150: AXISCADES | B150: EQ | C150: 71.35 | D150: 72.6 | E150: 70.5 | F150: 71.6 | G150: 72.5 | H150: 71.8 | I150: 56388 | J150: 4015726.2 | K150: 2019-11-14 | L150: 540 | M150: INE555B01013
A151: AXISGOLD | B151: EQ | C151: 3356 | D151: 3380.9 | E151: 3356 | F151: 3366.55 | G151: 3370 | H151: 3356.4 | I151: 153 | J151: 515329.9 | K151: 2019-11-14 | L151: 42 | M151: INF846K01347
A152: AXISNIFTY | B152: EQ | C152: 1246 | D152: 1249 | E152: 1213.52 | F152: 1228.73 | G152: 1228.73 | H152: 1222.6 | I152: 63 | J152: 77034.37 | K152: 2019-11-14 | L152: 19 | M152: INF846K01ZL0
A153: AYMSYNTEX | B153: EQ | C153: 30 | D153: 30.9 | E153: 29.4 | F153: 30.5 | G153: 30.7 | H153: 30.65 | I153: 7047 | J153: 208883.1 | K153: 2019-11-14 | L153: 62 | M153: INE193B01039
A154: BAGFILMS | B154: EQ | C154: 2.3 | D154: 2.3 | E154: 2.1 | F154: 2.2 | G154: 2.15 | H154: 2.2 | I154: 693312 | J154: 1554927 | K154: 2019-11-14 | L154: 565 | M154: INE116D01028
A155: BAJAJ-AUTO | B155: EQ | C155: 3205 | D155: 3244.55 | E155: 3191.1 | F155: 3233.3 | G155: 3232.5 | H155: 3206 | I155: 310906 | J155: 1001061288 | K155: 2019-11-14 | L155: 17523 | M155: INE917I01010
A156: BAJAJCON | B156: EQ | C156: 242.5 | D156: 248.95 | E156: 240 | F156: 241.3 | G156: 241 | H156: 244.55 | I156: 141806 | J156: 34513253.4 | K156: 2019-11-14 | L156: 6099 | M156: INE933K01021
A157: BAJAJELEC | B157: EQ | C157: 325.55 | D157: 329.8 | E157: 319.65 | F157: 321.65 | G157: 323.75 | H157: 325.55 | I157: 128966 | J157: 41828974.9 | K157: 2019-11-14 | L157: 3761 | M157: INE193E01025
A158: BAJAJFINSV | B158: EQ | C158: 8979.95 | D158: 9091 | E158: 8900 | F158: 9061.85 | G158: 9090 | H158: 8978.35 | I158: 348634 | J158: 3142804903 | K158: 2019-11-14 | L158: 55135 | M158: INE918I01018
A159: BAJAJHIND | B159: EQ | C159: 7.15 | D159: 7.15 | E159: 6.45 | F159: 6.6 | G159: 6.6 | H159: 7.3 | I159: 3195324 | J159: 21849933.7 | K159: 2019-11-14 | L159: 5869 | M159: INE306A01021
A160: BAJAJHLDNG | B160: EQ | C160: 3735 | D160: 3750 | E160: 3695 | F160: 3716.25 | G160: 3703.7 | H160: 3718.05 | I160: 23300 | J160: 86690779.1 | K160: 2019-11-14 | L160: 3075 | M160: INE118A01012
A161: BAJFINANCE | B161: EQ | C161: 4158 | D161: 4221 | E161: 4120.4 | F161: 4210.55 | G161: 4218.9 | H161: 4144.55 | I161: 1383629 | J161: 5798053966 | K161: 2019-11-14 | L161: 64582 | M161: INE296A01024
A162: BALAJITELE | B162: EQ | C162: 59.3 | D162: 61.3 | E162: 58.1 | F162: 59.65 | G162: 59.65 | H162: 57.75 | I162: 300839 | J162: 18016323.15 | K162: 2019-11-14 | L162: 2190 | M162: INE794B01026
A163: BALAMINES | B163: EQ | C163: 360.9 | D163: 365 | E163: 354.15 | F163: 357.75 | G163: 364 | H163: 359.9 | I163: 16478 | J163: 5940643.95 | K163: 2019-11-14 | L163: 956 | M163: INE050E01027
A164: BALAXI | B164: EQ | C164: 78 | D164: 78 | E164: 77.95 | F164: 78 | G164: 78 | H164: 77.2 | I164: 12 | J164: 935.85 | K164: 2019-11-14 | L164: 3 | M164: INE618N01014
A165: BALKRISHNA | B165: BE | C165: 17.55 | D165: 17.85 | E165: 17 | F165: 17 | G165: 17 | H165: 17.2 | I165: 2793 | J165: 47938.5 | K165: 2019-11-14 | L165: 32 | M165: INE875R01011
A166: BALKRISIND | B166: EQ | C166: 825.4 | D166: 837.6 | E166: 816.05 | F166: 822.6 | G166: 821 | H166: 825.15 | I166: 512885 | J166: 423465072.9 | K166: 2019-11-14 | L166: 16626 | M166: INE787D01026
A167: BALLARPUR | B167: EQ | C167: 0.5 | D167: 0.55 | E167: 0.45 | F167: 0.55 | G167: 0.55 | H167: 0.5 | I167: 1100253 | J167: 556662.35 | K167: 2019-11-14 | L167: 289 | M167: INE294A01037
A168: BALMLAWRIE | B168: EQ | C168: 196.65 | D168: 197.95 | E168: 189 | F168: 189.8 | G168: 190.3 | H168: 196.2 | I168: 198550 | J168: 38026347.15 | K168: 2019-11-14 | L168: 3586 | M168: INE164A01016
A169: BALPHARMA | B169: EQ | C169: 45.8 | D169: 46 | E169: 44 | F169: 45.35 | G169: 45.5 | H169: 45.8 | I169: 6392 | J169: 288761.55 | K169: 2019-11-14 | L169: 269 | M169: INE083D01012
A170: BALRAMCHIN | B170: EQ | C170: 145 | D170: 147.5 | E170: 144 | F170: 146.75 | G170: 146.6 | H170: 144.3 | I170: 492965 | J170: 72110583.1 | K170: 2019-11-14 | L170: 10339 | M170: INE119A01028
A171: BANARBEADS | B171: EQ | C171: 31.75 | D171: 33.25 | E171: 31 | F171: 31.1 | G171: 32.6 | H171: 32.15 | I171: 2443 | J171: 76850.45 | K171: 2019-11-14 | L171: 33 | M171: INE655B01011
A172: BANARISUG | B172: EQ | C172: 1179.95 | D172: 1179.95 | E172: 1150 | F172: 1165.35 | G172: 1170 | H172: 1159.05 | I172: 103 | J172: 119867.75 | K172: 2019-11-14 | L172: 97 | M172: INE459A01010
A173: BANCOINDIA | B173: EQ | C173: 101.75 | D173: 102.75 | E173: 98.4 | F173: 99.05 | G173: 99 | H173: 101.75 | I173: 47096 | J173: 4725826.8 | K173: 2019-11-14 | L173: 1099 | M173: INE213C01025
A174: BANDHANBNK | B174: EQ | C174: 565.3 | D174: 576.7 | E174: 552.05 | F174: 557.55 | G174: 556.5 | H174: 563.95 | I174: 1883718 | J174: 1054541775 | K174: 2019-11-14 | L174: 51425 | M174: INE545U01014
A175: BANG | B175: EQ | C175: 17.15 | D175: 17.8 | E175: 16.5 | F175: 17.35 | G175: 17.3 | H175: 17.1 | I175: 10968 | J175: 186197 | K175: 2019-11-14 | L175: 72 | M175: INE863I01016
A176: BANKBARODA | B176: EQ | C176: 93.5 | D176: 94 | E176: 90.65 | F176: 93.3 | G176: 93.05 | H176: 93.35 | I176: 29659716 | J176: 2747921100 | K176: 2019-11-14 | L176: 75096 | M176: INE028A01039
A177: BANKBEES | B177: EQ | C177: 3116 | D177: 3135.95 | E177: 3094.87 | F177: 3132.8 | G177: 3134.88 | H177: 3115.02 | I177: 4376 | J177: 13635201.19 | K177: 2019-11-14 | L177: 635 | M177: INF732E01078
A178: BANKINDIA | B178: EQ | C178: 65.55 | D178: 66.75 | E178: 63.9 | F178: 66.25 | G178: 66.3 | H178: 65.5 | I178: 7293774 | J178: 479272187.9 | K178: 2019-11-14 | L178: 17121 | M178: INE084A01016
A179: BANSWRAS | B179: EQ | C179: 94.8 | D179: 98 | E179: 87.25 | F179: 89.1 | G179: 89 | H179: 91.3 | I179: 78782 | J179: 7185570.65 | K179: 2019-11-14 | L179: 1543 | M179: INE629D01012
A180: BARTRONICS | B180: BE | C180: 1.7 | D180: 1.7 | E180: 1.65 | F180: 1.65 | G180: 1.65 | H180: 1.7 | I180: 2663 | J180: 4426.95 | K180: 2019-11-14 | L180: 12 | M180: INE855F01034
A181: BASF | B181: EQ | C181: 1000.05 | D181: 1000.05 | E181: 960 | F181: 964.05 | G181: 962.65 | H181: 997.35 | I181: 16429 | J181: 15999816.7 | K181: 2019-11-14 | L181: 1620 | M181: INE373A01013
A182: BASML | B182: EQ | C182: 133 | D182: 134.9 | E182: 130.05 | F182: 133.2 | G182: 134.8 | H182: 130.6 | I182: 7668 | J182: 1024332.15 | K182: 2019-11-14 | L182: 110 | M182: INE186H01014
A183: BATAINDIA | B183: EQ | C183: 1691 | D183: 1775.25 | E183: 1686.4 | F183: 1711.15 | G183: 1712 | H183: 1684.75 | I183: 2767571 | J183: 4770832949 | K183: 2019-11-14 | L183: 80409 | M183: INE176A01028
A184: BAYERCROP | B184: EQ | C184: 3379 | D184: 3379 | E184: 3300 | F184: 3320.7 | G184: 3305.25 | H184: 3340.9 | I184: 3073 | J184: 10224867.25 | K184: 2019-11-14 | L184: 1068 | M184: INE462A01022
A185: BBL | B185: EQ | C185: 862 | D185: 873 | E185: 853.35 | F185: 858.8 | G185: 859 | H185: 861 | I185: 6797 | J185: 5854525.5 | K185: 2019-11-14 | L185: 770 | M185: INE464A01028
A186: BBTC | B186: EQ | C186: 1222.05 | D186: 1227.4 | E186: 1188 | F186: 1192.45 | G186: 1189.05 | H186: 1220.25 | I186: 78607 | J186: 94204921.5 | K186: 2019-11-14 | L186: 5077 | M186: INE050A01025
A187: BCG | B187: EQ | C187: 3.2 | D187: 3.3 | E187: 3.1 | F187: 3.25 | G187: 3.25 | H187: 3.2 | I187: 287020 | J187: 911833.45 | K187: 2019-11-14 | L187: 184 | M187: INE425B01027
A188: BCP | B188: EQ | C188: 9 | D188: 9 | E188: 9 | F188: 9 | G188: 9 | H188: 8.85 | I188: 10638 | J188: 95742 | K188: 2019-11-14 | L188: 24 | M188: INE905P01028
A189: BDL | B189: EQ | C189: 353.55 | D189: 356.8 | E189: 337.3 | F189: 339.05 | G189: 337.3 | H189: 351.3 | I189: 91590 | J189: 31655630.45 | K189: 2019-11-14 | L189: 3846 | M189: INE171Z01018
A190: BEARDSELL | B190: EQ | C190: 11.4 | D190: 12.05 | E190: 9.75 | F190: 10.55 | G190: 10.55 | H190: 11.4 | I190: 5445 | J190: 56982.1 | K190: 2019-11-14 | L190: 292 | M190: INE520H01022
A191: BEDMUTHA | B191: EQ | C191: 11.7 | D191: 12.25 | E191: 11.7 | F191: 12.25 | G191: 12.2 | H191: 12 | I191: 12120 | J191: 145822.95 | K191: 2019-11-14 | L191: 30 | M191: INE844K01012
A192: BEL | B192: EQ | C192: 109.45 | D192: 110.9 | E192: 108.8 | F192: 109.3 | G192: 109.55 | H192: 109.1 | I192: 5999657 | J192: 657832729.6 | K192: 2019-11-14 | L192: 27216 | M192: INE263A01024
A193: BEML | B193: EQ | C193: 961 | D193: 963.9 | E193: 945 | F193: 949.6 | G193: 950.5 | H193: 961.3 | I193: 250905 | J193: 238300383.2 | K193: 2019-11-14 | L193: 8783 | M193: INE258A01016
A194: BEPL | B194: EQ | C194: 48.8 | D194: 50.25 | E194: 48.35 | F194: 48.7 | G194: 48.75 | H194: 48.95 | I194: 346379 | J194: 17012070.65 | K194: 2019-11-14 | L194: 1768 | M194: INE922A01025
A195: BERGEPAINT | B195: EQ | C195: 482.45 | D195: 488.7 | E195: 479.2 | F195: 482 | G195: 481.3 | H195: 479.95 | I195: 1636558 | J195: 789505013.4 | K195: 2019-11-14 | L195: 48849 | M195: INE463A01038
A196: BFINVEST | B196: EQ | C196: 332 | D196: 337.9 | E196: 305 | F196: 320.3 | G196: 316.05 | H196: 330.7 | I196: 111131 | J196: 36489543.15 | K196: 2019-11-14 | L196: 4786 | M196: INE878K01010
A197: BFUTILITIE | B197: EQ | C197: 298.85 | D197: 301.35 | E197: 283.8 | F197: 285.15 | G197: 283.8 | H197: 298.7 | I197: 259136 | J197: 75505891.25 | K197: 2019-11-14 | L197: 5419 | M197: INE243D01012
A198: BGLOBAL | B198: BE | C198: 2.1 | D198: 2.1 | E198: 1.9 | F198: 1.9 | G198: 1.9 | H198: 2 | I198: 6894 | J198: 13845.1 | K198: 2019-11-14 | L198: 23 | M198: INE224M01013
A199: BGRENERGY | B199: EQ | C199: 31.75 | D199: 32.45 | E199: 30.55 | F199: 30.7 | G199: 30.7 | H199: 30.75 | I199: 48583 | J199: 1500206.3 | K199: 2019-11-14 | L199: 739 | M199: INE661I01014
A200: BHAGERIA | B200: EQ | C200: 105.65 | D200: 105.8 | E200: 103 | F200: 103.15 | G200: 103 | H200: 104.15 | I200: 4960 | J200: 516890.15 | K200: 2019-11-14 | L200: 197 | M200: INE354C01027
... 1491 more rows

Sheet Sheet1 (hidden)

Sheet Sheet3 (hidden)

Sheet Sheet4 (hidden)

Sheet Sheet5 (hidden)
